{"text_format":"1","workbook":"xlsx","n_sheets":2,"sheets":["11 kat","11 ROC"],"not_rendered":{"charts":3,"images":1,"macros":1,"external_links":0,"defined_names":6,"comments":1,"pivot_tables":0},"unopened":[{"sheet":"11 ROC","index":1,"reason":"not_a_worksheet"}],"bounds":{"document_bytes":16777216,"sheet_cells":100000,"rows_first":2000,"rows_last":500,"rows_between":2000,"halvings":0,"cell_chars":16384,"cell_head_chars":4096},"cells_cut":0,"cells_raw":0,"read":"whole","date_system":"1900"}

{"sheet":"11 kat","index":0,"n_rows":10004,"n_cols":125,"rows_kept":1125,"cut":true,"hidden":false,"merged":[],"bounds":{"rows_first":500,"rows_last":125,"rows_between":500,"halvings":2}}
[null,"Svenssons method"]
[null,"Individtabell",null,null,null,null,null,null,null,null,null,null,null,"No of cat.","Utskrift",null,null,null,null,null,null,null,null,"Symbol"]
["Nr","X","Y","XY",null,null,null,null,"Resultattabell",null,"SE","Konfidensintervall",null,11,null,null,null,null,null,null,null,null,null,"A",null,null,null,null,null,null,null,null,null,null,null,null,null,null,null,null,null,"X","Y","XY"]
[1,null,null,{"$f":"TRIM(B4)&\"-\"&TRIM(C4)","v":"-"},null,{"$f":"$X$3&\"-\"&$X$3","v":"A-A"},{"$f":"COUNTIF($D$4:$D$10004,F4)","v":0},null,"PA",{"$f":"IF(ISERROR(SUM(K23,L22,M21,N20,O19,P18,Q17,R16,S15,T14,U13)/V24),\"\",SUM(K23,L22,M21,N20,O19,P18,Q17,R16,S15,T14,U13)/V24)","v":""},null,null,null,null,null,null,null,null,null,null,null,null,null,"B",null,null,null,null,null,null,null,null,null,null,null,null,null,null,null,null,null,null,null,{"$f":"AP4&\"-\"&AQ4","v":"-"},null,{"$f":"$X$3&\"-\"&$X$3","v":"A-A"},{"$f":"COUNTIF($AR$4:$AR$10004,AT4)","v":0},null,null,null,null,null,null,null,null,null,null,null,null,null,null,null,null,null,null,null,null,null,null,null,null,null,null,null,null,null,null,null,"RV",null,null,null,null,null,null,null,null,null,null,null,null,null,null,null,null,null,null,null,null,null,null,null,null,null,null,null,null,null,null,null,null,null,null,null,null,"n",{"$f":"V24","v":0}]
[2,null,null,{"$f":"TRIM(B5)&\"-\"&TRIM(C5)","v":"-"},null,{"$f":"$X$3&\"-\"&$X$4","v":"A-B"},0,null,"RP",{"$f":"IF(ISERROR(AZ37),\"\",AZ37)","v":""},{"$f":"IF(ISERROR(DM10),\"\",DM10)","v":""},{"$f":"IF(ISERROR(J5-1.96*K5),\"\",IF(J5<>\"\",IF((J5-1.96*K5)<-1,-1,J5-1.96*K5),\"\"))","v":""},{"$f":"IF(ISERROR(J5+1.96*K5),\"\",IF(J5<>\"\",IF((J5+1.96*K5)>1,1,J5+1.96*K5),\"\"))","v":""},"Developed by Anders Avdic",null,null,null,null,null,null,null,null,null,"C",null,null,null,null,null,null,null,null,null,null,null,null,null,null,null,null,null,null,null,{"$f":"AP5&\"-\"&AQ5","v":"-"},null,{"$f":"$X$3&\"-\"&$X$4","v":"A-B"},0,null,null,null,{"$f":"$X$3","v":"A"},{"$f":"$X$4","v":"B"},{"$f":"$X$5","v":"C"},{"$f":"$X$6","v":"D"},{"$f":"$X$7","v":"E"},{"$f":"$X$8","v":"F"},{"$f":"$X$9","v":"G"},{"$f":"$X$10","v":"H"},{"$f":"$X$11","v":"I"},{"$f":"$X$12","v":"J"},{"$f":"$X$13","v":"K"},null,null,null,null,null,null,null,null,null,null,null,null,null,null,null,null,null,null,null,"X"]
[3,null,null,"-",null,{"$f":"$X$3&\"-\"&$X$5","v":"A-C"},0,null,"RC",{"$f":"IF(ISERROR(BI11),\"\",BI11)","v":""},{"$f":"IF(ISERROR(DN10),\"\",DN10)","v":""},{"$f":"IF(ISERROR(J6-1.96*K6),\"\",IF(J6<>\"\",IF((J6-1.96*K6)<-1,-1,J6-1.96*K6),\"\"))","v":""},{"$f":"IF(ISERROR(J6+1.96*K6),\"\",IF(J6<>\"\",IF((J6+1.96*K6)>1,1,J6+1.96*K6),\"\"))","v":""},"anders@avdic.se",null,null,null,null,null,null,null,null,null,"D",null,null,null,null,null,null,null,null,null,null,null,null,null,null,null,null,null,null,null,"-",null,{"$f":"$X$3&\"-\"&$X$5","v":"A-C"},0,null,null,"x",{"$f":"K24","v":0},0,0,0,0,0,0,0,0,0,0,null,null,null,null,null,null,null,null,null,null,null,null,null,null,null,null,null,null,null,{"$f":"$X$3","v":"A"},{"$f":"$X$4","v":"B"},{"$f":"$X$5","v":"C"},{"$f":"$X$6","v":"D"},{"$f":"$X$7","v":"E"},{"$f":"$X$8","v":"F"},{"$f":"$X$9","v":"G"},{"$f":"$X$10","v":"H"},{"$f":"$X$11","v":"I"},{"$f":"$X$12","v":"J"},{"$f":"$X$13","v":"K"},null,null,null,null,null,null,null,null,null,null,null,null,null,null,null,null,null,null,null,null,null,null,null,null,null,"JackKnife"]
[4,null,null,"-",null,{"$f":"$X$3&\"-\"&$X$6","v":"A-D"},0,null,"RV",{"$f":"IF(ISERROR(CP20),\"\",CP20)","v":""},{"$f":"IF(ISERROR(DO10),\"\",DO10)","v":""},{"$f":"IF(ISERROR(J7-1.96*K7),\"\",IF(J7<>\"\",IF((J7-1.96*K7)<0,0,J7-1.96*K7),\"\"))","v":""},{"$f":"IF(ISERROR(J7+1.96*K7),\"\",IF(J7<>\"\",IF((J7+1.96*K7)>1,1,J7+1.96*K7),\"\"))","v":""},"ver 1.3.1 - 2021",null,null,null,null,null,null,null,null,null,"E",null,null,null,null,null,null,null,null,null,null,null,null,null,null,null,null,null,null,null,"-",null,{"$f":"$X$3&\"-\"&$X$6","v":"A-D"},0,null,null,"C(x)",{"$f":"SUM($AY$6:AY6)","v":0},{"$f":"SUM($AY$6:AZ6)","v":0},{"$f":"SUM($AY$6:BA6)","v":0},{"$f":"SUM($AY$6:BB6)","v":0},{"$f":"SUM($AY$6:BC6)","v":0},{"$f":"SUM($AY$6:BD6)","v":0},{"$f":"SUM($AY$6:BE6)","v":0},{"$f":"SUM($AY$6:BF6)","v":0},{"$f":"SUM($AY$6:BG6)","v":0},{"$f":"SUM($AY$6:BH6)","v":0},{"$f":"SUM($AY$6:BI6)","v":0},null,null,null,null,null,null,null,null,null,null,null,null,null,null,null,null,null,"Y",{"$f":"$X$13","v":"K"},{"$f":"K13","v":""},{"$f":"L13","v":""},{"$f":"M13","v":""},{"$f":"N13","v":""},{"$f":"O13","v":""},{"$f":"P13","v":""},{"$f":"Q13","v":""},{"$f":"R13","v":""},{"$f":"S13","v":""},{"$f":"T13","v":""},{"$f":"U13","v":""},{"$f":"SUM(CC7:CM7)","v":0},null,{"$f":"IF(ISERROR((0-SUM(CD8:$CM$17))^2*CC7),0,(0-SUM(CD8:$CM$17))^2*CC7)","v":0},{"$f":"IF(ISERROR((0-SUM(CE8:$CM$17))^2*CD7),0,(0-SUM(CE8:$CM$17))^2*CD7)","v":0},{"$f":"IF(ISERROR((0-SUM(CF8:$CM$17))^2*CE7),0,(0-SUM(CF8:$CM$17))^2*CE7)","v":0},{"$f":"IF(ISERROR((0-SUM(CG8:$CM$17))^2*CF7),0,(0-SUM(CG8:$CM$17))^2*CF7)","v":0},{"$f":"IF(ISERROR((0-SUM(CH8:$CM$17))^2*CG7),0,(0-SUM(CH8:$CM$17))^2*CG7)","v":0},{"$f":"IF(ISERROR((0-SUM(CI8:$CM$17))^2*CH7),0,(0-SUM(CI8:$CM$17))^2*CH7)","v":0},{"$f":"IF(ISERROR((0-SUM(CJ8:$CM$17))^2*CI7),0,(0-SUM(CJ8:$CM$17))^2*CI7)","v":0},{"$f":"IF(ISERROR((0-SUM(CK8:$CM$17))^2*CJ7),0,(0-SUM(CK8:$CM$17))^2*CJ7)","v":0},{"$f":"IF(ISERROR((0-SUM(CL8:$CM$17))^2*CK7),0,(0-SUM(CL8:$CM$17))^2*CK7)","v":0},{"$f":"IF(ISERROR((0-SUM(CM8:$CM$17))^2*CL7),0,(0-SUM(CM8:$CM$17))^2*CL7)","v":0},0,null,null,null,null,null,null,null,null,null,null,null,null,"RP","RC","RV",null,null,null,"RP","RC","RV"]
[5,null,null,"-",null,{"$f":"$X$3&\"-\"&$X$7","v":"A-E"},0,null,"D",{"$f":"IF(ISERROR(CP60),\"\",CP60)","v":""},null,null,null,null,null,null,null,null,null,null,null,null,null,"F",null,null,null,null,null,null,null,null,null,null,null,null,null,null,null,null,null,null,null,"-",null,{"$f":"$X$3&\"-\"&$X$7","v":"A-E"},0,null,null,"y",{"$f":"V23","v":0},{"$f":"V22","v":0},{"$f":"V21","v":0},{"$f":"V20","v":0},{"$f":"V19","v":0},{"$f":"V18","v":0},{"$f":"V17","v":0},{"$f":"V16","v":0},{"$f":"V15","v":0},{"$f":"V14","v":0},{"$f":"V13","v":0},null,null,null,null,null,null,null,null,null,null,null,null,null,null,null,null,null,null,{"$f":"$X$12","v":"J"},"","","","","","","","","","","",{"$f":"SUM(CC8:CM8)","v":0},null,{"$f":"IF(ISERROR((0-SUM(CD9:$CM$17))^2*CC8),0,(0-SUM(CD9:$CM$17))^2*CC8)","v":0},{"$f":"IF(ISERROR((SUM($CC$7:CC7)-SUM(CE9:$CM$17))^2*CD8),0,(SUM($CC$7:CC7)-SUM(CE9:$CM$17))^2*CD8)","v":0},{"$f":"IF(ISERROR((SUM($CC$7:CD7)-SUM(CF9:$CM$17))^2*CE8),0,(SUM($CC$7:CD7)-SUM(CF9:$CM$17))^2*CE8)","v":0},{"$f":"IF(ISERROR((SUM($CC$7:CE7)-SUM(CG9:$CM$17))^2*CF8),0,(SUM($CC$7:CE7)-SUM(CG9:$CM$17))^2*CF8)","v":0},{"$f":"IF(ISERROR((SUM($CC$7:CF7)-SUM(CH9:$CM$17))^2*CG8),0,(SUM($CC$7:CF7)-SUM(CH9:$CM$17))^2*CG8)","v":0},{"$f":"IF(ISERROR((SUM($CC$7:CG7)-SUM(CI9:$CM$17))^2*CH8),0,(SUM($CC$7:CG7)-SUM(CI9:$CM$17))^2*CH8)","v":0},{"$f":"IF(ISERROR((SUM($CC$7:CH7)-SUM(CJ9:$CM$17))^2*CI8),0,(SUM($CC$7:CH7)-SUM(CJ9:$CM$17))^2*CI8)","v":0},{"$f":"IF(ISERROR((SUM($CC$7:CI7)-SUM(CK9:$CM$17))^2*CJ8),0,(SUM($CC$7:CI7)-SUM(CK9:$CM$17))^2*CJ8)","v":0},{"$f":"IF(ISERROR((SUM($CC$7:CJ7)-SUM(CL9:$CM$17))^2*CK8),0,(SUM($CC$7:CJ7)-SUM(CL9:$CM$17))^2*CK8)","v":0},{"$f":"IF(ISERROR((SUM($CC$7:CK7)-SUM(CM9:$CM$17))^2*CL8),0,(SUM($CC$7:CK7)-SUM(CM9:$CM$17))^2*CL8)","v":0},{"$f":"IF(ISERROR((SUM($CC$7:CL7)-0)^2*CM8),0,(SUM($CC$7:CL7)-0)^2*CM8)","v":0},null,null,null,null,null,null,null,null,null,null,null,"Variance",{"$f":"VAR(DS8:DS1008)","v":{"$error":"#DIV/0!"}},{"$f":"VAR(DT8:DT1008)","v":{"$error":"#DIV/0!"}},{"$f":"VAR(DU8:DU1008)","v":{"$error":"#DIV/0!"}}]
[6,null,null,"-",null,{"$f":"$X$3&\"-\"&$X8","v":"A-F"},0,null,null,null,null,null,null,null,null,null,null,null,null,null,null,null,null,"G",null,null,null,null,null,null,null,null,null,null,null,null,null,null,null,null,null,null,null,"-",null,{"$f":"$X$3&\"-\"&$X8","v":"A-F"},0,null,null,"C(y)",{"$f":"SUM($AY$8:AY8)","v":0},{"$f":"SUM($AY$8:AZ8)","v":0},{"$f":"SUM($AY$8:BA8)","v":0},{"$f":"SUM($AY$8:BB8)","v":0},{"$f":"SUM($AY$8:BC8)","v":0},{"$f":"SUM($AY$8:BD8)","v":0},{"$f":"SUM($AY$8:BE8)","v":0},{"$f":"SUM($AY$8:BF8)","v":0},{"$f":"SUM($AY$8:BG8)","v":0},{"$f":"SUM($AY$8:BH8)","v":0},{"$f":"SUM($AY$8:BI8)","v":0},null,null,null,null,null,null,null,null,null,null,null,null,null,null,null,null,null,null,{"$f":"$X$11","v":"I"},"","","","","","","","","","","",0,null,{"$f":"IF(ISERROR((0-SUM(CD10:$CM$17))^2*CC9),0,(0-SUM(CD10:$CM$17))^2*CC9)","v":0},{"$f":"IF(ISERROR((SUM($CC$7:CC8)-SUM(CE10:$CM$17))^2*CD9),0,(SUM($CC$7:CC8)-SUM(CE10:$CM$17))^2*CD9)","v":0},{"$f":"IF(ISERROR((SUM($CC$7:CD8)-SUM(CF10:$CM$17))^2*CE9),0,(SUM($CC$7:CD8)-SUM(CF10:$CM$17))^2*CE9)","v":0},{"$f":"IF(ISERROR((SUM($CC$7:CE8)-SUM(CG10:$CM$17))^2*CF9),0,(SUM($CC$7:CE8)-SUM(CG10:$CM$17))^2*CF9)","v":0},{"$f":"IF(ISERROR((SUM($CC$7:CF8)-SUM(CH10:$CM$17))^2*CG9),0,(SUM($CC$7:CF8)-SUM(CH10:$CM$17))^2*CG9)","v":0},{"$f":"IF(ISERROR((SUM($CC$7:CG8)-SUM(CI10:$CM$17))^2*CH9),0,(SUM($CC$7:CG8)-SUM(CI10:$CM$17))^2*CH9)","v":0},{"$f":"IF(ISERROR((SUM($CC$7:CH8)-SUM(CJ10:$CM$17))^2*CI9),0,(SUM($CC$7:CH8)-SUM(CJ10:$CM$17))^2*CI9)","v":0},{"$f":"IF(ISERROR((SUM($CC$7:CI8)-SUM(CK10:$CM$17))^2*CJ9),0,(SUM($CC$7:CI8)-SUM(CK10:$CM$17))^2*CJ9)","v":0},{"$f":"IF(ISERROR((SUM($CC$7:CJ8)-SUM(CL10:$CM$17))^2*CK9),0,(SUM($CC$7:CJ8)-SUM(CL10:$CM$17))^2*CK9)","v":0},{"$f":"IF(ISERROR((SUM($CC$7:CK8)-SUM(CM10:$CM$17))^2*CL9),0,(SUM($CC$7:CK8)-SUM(CM10:$CM$17))^2*CL9)","v":0},{"$f":"IF(ISERROR((SUM($CC$7:CL8)-0)^2*CM9),0,(SUM($CC$7:CL8)-0)^2*CM9)","v":0},null,null,null,null,null,null,null,null,null,null,null,"JK",{"$f":"DM8*(($DM$4-1)^4/$DM$4^3)","v":{"$error":"#DIV/0!"}},{"$f":"DN8*(($DM$4-1)^4/$DM$4^3)","v":{"$error":"#DIV/0!"}},{"$f":"DO8*(($DM$4-1)^6/$DM$4^5)","v":{"$error":"#DIV/0!"}}]
[7,null,null,"-",null,"A-G",0,null,null,null,null,null,null,null,null,null,null,null,null,null,null,null,null,"H",null,null,null,null,null,null,null,null,null,null,null,null,null,null,null,null,null,null,null,"-",null,"A-G",0,null,null,"RC",null,null,null,null,null,null,null,null,null,null,null,null,null,null,null,null,null,null,null,null,null,null,null,null,null,null,null,null,null,{"$f":"$X$10","v":"H"},"","","","","","","","","","","",0,null,{"$f":"IF(ISERROR((0-SUM(CD11:$CM$17))^2*CC10),0,(0-SUM(CD11:$CM$17))^2*CC10)","v":0},{"$f":"IF(ISERROR((SUM($CC$7:CC9)-SUM(CE11:$CM$17))^2*CD10),0,(SUM($CC$7:CC9)-SUM(CE11:$CM$17))^2*CD10)","v":0},{"$f":"IF(ISERROR((SUM($CC$7:CD9)-SUM(CF11:$CM$17))^2*CE10),0,(SUM($CC$7:CD9)-SUM(CF11:$CM$17))^2*CE10)","v":0},{"$f":"IF(ISERROR((SUM($CC$7:CE9)-SUM(CG11:$CM$17))^2*CF10),0,(SUM($CC$7:CE9)-SUM(CG11:$CM$17))^2*CF10)","v":0},{"$f":"IF(ISERROR((SUM($CC$7:CF9)-SUM(CH11:$CM$17))^2*CG10),0,(SUM($CC$7:CF9)-SUM(CH11:$CM$17))^2*CG10)","v":0},{"$f":"IF(ISERROR((SUM($CC$7:CG9)-SUM(CI11:$CM$17))^2*CH10),0,(SUM($CC$7:CG9)-SUM(CI11:$CM$17))^2*CH10)","v":0},{"$f":"IF(ISERROR((SUM($CC$7:CH9)-SUM(CJ11:$CM$17))^2*CI10),0,(SUM($CC$7:CH9)-SUM(CJ11:$CM$17))^2*CI10)","v":0},{"$f":"IF(ISERROR((SUM($CC$7:CI9)-SUM(CK11:$CM$17))^2*CJ10),0,(SUM($CC$7:CI9)-SUM(CK11:$CM$17))^2*CJ10)","v":0},{"$f":"IF(ISERROR((SUM($CC$7:CJ9)-SUM(CL11:$CM$17))^2*CK10),0,(SUM($CC$7:CJ9)-SUM(CL11:$CM$17))^2*CK10)","v":0},{"$f":"IF(ISERROR((SUM($CC$7:CK9)-SUM(CM11:$CM$17))^2*CL10),0,(SUM($CC$7:CK9)-SUM(CM11:$CM$17))^2*CL10)","v":0},{"$f":"IF(ISERROR((SUM($CC$7:CL9)-0)^2*CM10),0,(SUM($CC$7:CL9)-0)^2*CM10)","v":0},null,null,null,null,null,null,null,null,null,null,null,"SE",{"$f":"SQRT(DM9)","v":{"$error":"#DIV/0!"}},{"$f":"SQRT(DN9)","v":{"$error":"#DIV/0!"}},{"$f":"SQRT(DO9)","v":{"$error":"#DIV/0!"}}]
[8,null,null,"-",null,"A-H",0,null,"Korstabell",null,"X",null,null,null,null,null,null,null,null,null,null,null,null,"I",null,null,null,null,null,null,null,null,null,null,null,null,null,null,null,null,null,null,null,"-",null,"A-H",0,null,null,null,{"$f":"AZ8*AY7*SUM(BA6:$BI$6)","v":0},{"$f":"BA8*AZ7*SUM(BB6:$BI$6)","v":0},{"$f":"BB8*BA7*SUM(BC6:$BI$6)","v":0},{"$f":"BC8*BB7*SUM(BD6:$BI$6)","v":0},{"$f":"BD8*BC7*SUM(BE6:$BI$6)","v":0},{"$f":"BE8*BD7*SUM(BF6:$BI$6)","v":0},{"$f":"BF8*BE7*SUM(BG6:$BI$6)","v":0},{"$f":"BG8*BF7*SUM(BH6:$BI$6)","v":0},{"$f":"BH8*BG7*SUM(BI6:$BI$6)","v":0},null,{"$f":"(SUM(AY11:BG11)-SUM(AY12:BG12))/(V24^3*BI12)","v":{"$error":"#DIV/0!"}},null,null,null,null,null,null,null,null,null,null,null,null,null,null,null,null,null,null,{"$f":"$X$9","v":"G"},"","","","","","","","","","","",0,null,{"$f":"IF(ISERROR((0-SUM(CD12:$CM$17))^2*CC11),0,(0-SUM(CD12:$CM$17))^2*CC11)","v":0},{"$f":"IF(ISERROR((SUM($CC$7:CC10)-SUM(CE12:$CM$17))^2*CD11),0,(SUM($CC$7:CC10)-SUM(CE12:$CM$17))^2*CD11)","v":0},{"$f":"IF(ISERROR((SUM($CC$7:CD10)-SUM(CF12:$CM$17))^2*CE11),0,(SUM($CC$7:CD10)-SUM(CF12:$CM$17))^2*CE11)","v":0},{"$f":"IF(ISERROR((SUM($CC$7:CE10)-SUM(CG12:$CM$17))^2*CF11),0,(SUM($CC$7:CE10)-SUM(CG12:$CM$17))^2*CF11)","v":0},{"$f":"IF(ISERROR((SUM($CC$7:CF10)-SUM(CH12:$CM$17))^2*CG11),0,(SUM($CC$7:CF10)-SUM(CH12:$CM$17))^2*CG11)","v":0},{"$f":"IF(ISERROR((SUM($CC$7:CG10)-SUM(CI12:$CM$17))^2*CH11),0,(SUM($CC$7:CG10)-SUM(CI12:$CM$17))^2*CH11)","v":0},{"$f":"IF(ISERROR((SUM($CC$7:CH10)-SUM(CJ12:$CM$17))^2*CI11),0,(SUM($CC$7:CH10)-SUM(CJ12:$CM$17))^2*CI11)","v":0},{"$f":"IF(ISERROR((SUM($CC$7:CI10)-SUM(CK12:$CM$17))^2*CJ11),0,(SUM($CC$7:CI10)-SUM(CK12:$CM$17))^2*CJ11)","v":0},{"$f":"IF(ISERROR((SUM($CC$7:CJ10)-SUM(CL12:$CM$17))^2*CK11),0,(SUM($CC$7:CJ10)-SUM(CL12:$CM$17))^2*CK11)","v":0},{"$f":"IF(ISERROR((SUM($CC$7:CK10)-SUM(CM12:$CM$17))^2*CL11),0,(SUM($CC$7:CK10)-SUM(CM12:$CM$17))^2*CL11)","v":0},{"$f":"IF(ISERROR((SUM($CC$7:CL10)-0)^2*CM11),0,(SUM($CC$7:CL10)-0)^2*CM11)","v":0}]
[9,null,null,"-",null,"A-I",0,null,null,null,{"$f":"$X$3","v":"A"},{"$f":"$X$4","v":"B"},{"$f":"$X$5","v":"C"},{"$f":"$X$6","v":"D"},{"$f":"$X$7","v":"E"},{"$f":"$X$8","v":"F"},{"$f":"$X$9","v":"G"},{"$f":"$X$10","v":"H"},{"$f":"$X$11","v":"I"},{"$f":"$X$12","v":"J"},{"$f":"$X$13","v":"K"},null,null,"J",null,null,null,null,null,null,null,null,null,null,null,null,null,null,null,null,null,null,null,"-",null,"A-I",0,null,null,null,{"$f":"AZ6*AY9*SUM(BA8:$BI$8)","v":0},{"$f":"BA6*AZ9*SUM(BB8:$BI$8)","v":0},{"$f":"BB6*BA9*SUM(BC8:$BI$8)","v":0},{"$f":"BC6*BB9*SUM(BD8:$BI$8)","v":0},{"$f":"BD6*BC9*SUM(BE8:$BI$8)","v":0},{"$f":"BE6*BD9*SUM(BF8:$BI$8)","v":0},{"$f":"BF6*BE9*SUM(BG8:$BI$8)","v":0},{"$f":"BG6*BF9*SUM(BH8:$BI$8)","v":0},{"$f":"BH6*BG9*SUM(BI8:$BI$8)","v":0},null,{"$f":"MIN(BL21*(1-BL21),BL22*(1-BL22))","v":{"$error":"#DIV/0!"}},null,null,null,null,null,null,null,null,null,null,null,null,null,null,null,null,null,null,{"$f":"$X$8","v":"F"},"","","","","","","","","","","",0,null,{"$f":"IF(ISERROR((0-SUM(CD13:$CM$17))^2*CC12),0,(0-SUM(CD13:$CM$17))^2*CC12)","v":0},{"$f":"IF(ISERROR((SUM($CC$7:CC11)-SUM(CE13:$CM$17))^2*CD12),0,(SUM($CC$7:CC11)-SUM(CE13:$CM$17))^2*CD12)","v":0},{"$f":"IF(ISERROR((SUM($CC$7:CD11)-SUM(CF13:$CM$17))^2*CE12),0,(SUM($CC$7:CD11)-SUM(CF13:$CM$17))^2*CE12)","v":0},{"$f":"IF(ISERROR((SUM($CC$7:CE11)-SUM(CG13:$CM$17))^2*CF12),0,(SUM($CC$7:CE11)-SUM(CG13:$CM$17))^2*CF12)","v":0},{"$f":"IF(ISERROR((SUM($CC$7:CF11)-SUM(CH13:$CM$17))^2*CG12),0,(SUM($CC$7:CF11)-SUM(CH13:$CM$17))^2*CG12)","v":0},{"$f":"IF(ISERROR((SUM($CC$7:CG11)-SUM(CI13:$CM$17))^2*CH12),0,(SUM($CC$7:CG11)-SUM(CI13:$CM$17))^2*CH12)","v":0},{"$f":"IF(ISERROR((SUM($CC$7:CH11)-SUM(CJ13:$CM$17))^2*CI12),0,(SUM($CC$7:CH11)-SUM(CJ13:$CM$17))^2*CI12)","v":0},{"$f":"IF(ISERROR((SUM($CC$7:CI11)-SUM(CK13:$CM$17))^2*CJ12),0,(SUM($CC$7:CI11)-SUM(CK13:$CM$17))^2*CJ12)","v":0},{"$f":"IF(ISERROR((SUM($CC$7:CJ11)-SUM(CL13:$CM$17))^2*CK12),0,(SUM($CC$7:CJ11)-SUM(CL13:$CM$17))^2*CK12)","v":0},{"$f":"IF(ISERROR((SUM($CC$7:CK11)-SUM(CM13:$CM$17))^2*CL12),0,(SUM($CC$7:CK11)-SUM(CM13:$CM$17))^2*CL12)","v":0},{"$f":"IF(ISERROR((SUM($CC$7:CL11)-0)^2*CM12),0,(SUM($CC$7:CL11)-0)^2*CM12)","v":0}]
[10,null,null,"-",null,"A-J",0,null,"Y",{"$f":"$X$13","v":"K"},{"$f":"IF(OR(ISBLANK($G$14),$G$14=0),\"\",$G$14)","v":""},{"$f":"IF(OR(ISBLANK($G$25),$G$25=0),\"\",$G$25)","v":""},{"$f":"IF(OR(ISBLANK($G$36),$G$36=0),\"\",$G$36)","v":""},{"$f":"IF(OR(ISBLANK($G$47),$G$47=0),\"\",$G$47)","v":""},{"$f":"IF(OR(ISBLANK($G$58),$G$58=0),\"\",$G$58)","v":""},{"$f":"IF(OR(ISBLANK($G$69),$G$69=0),\"\",$G$69)","v":""},{"$f":"IF(OR(ISBLANK($G$80),$G$80=0),\"\",$G$80)","v":""},{"$f":"IF(OR(ISBLANK($G$91),$G$91=0),\"\",$G$91)","v":""},{"$f":"IF(OR(ISBLANK($G$102),$G$102=0),\"\",$G$102)","v":""},{"$f":"IF(OR(ISBLANK($G$113),$G$113=0),\"\",$G$113)","v":""},{"$f":"IF(OR(ISBLANK($G$124),$G$124=0),\"\",$G$124)","v":""},{"$f":"SUM(K13:U13)","v":0},null,"K",null,null,null,null,null,null,null,null,null,null,null,null,null,null,null,null,null,null,null,"-",null,"A-J",0,null,null,null,null,null,null,null,null,null,null,null,null,null,null,null,null,null,null,null,null,null,null,null,null,null,null,null,null,null,null,null,null,{"$f":"$X$7","v":"E"},"","","","","","","","","","","",0,null,{"$f":"IF(ISERROR((0-SUM(CD14:$CM$17))^2*CC13),0,(0-SUM(CD14:$CM$17))^2*CC13)","v":0},{"$f":"IF(ISERROR((SUM($CC$7:CC12)-SUM(CE14:$CM$17))^2*CD13),0,(SUM($CC$7:CC12)-SUM(CE14:$CM$17))^2*CD13)","v":0},{"$f":"IF(ISERROR((SUM($CC$7:CD12)-SUM(CF14:$CM$17))^2*CE13),0,(SUM($CC$7:CD12)-SUM(CF14:$CM$17))^2*CE13)","v":0},{"$f":"IF(ISERROR((SUM($CC$7:CE12)-SUM(CG14:$CM$17))^2*CF13),0,(SUM($CC$7:CE12)-SUM(CG14:$CM$17))^2*CF13)","v":0},{"$f":"IF(ISERROR((SUM($CC$7:CF12)-SUM(CH14:$CM$17))^2*CG13),0,(SUM($CC$7:CF12)-SUM(CH14:$CM$17))^2*CG13)","v":0},{"$f":"IF(ISERROR((SUM($CC$7:CG12)-SUM(CI14:$CM$17))^2*CH13),0,(SUM($CC$7:CG12)-SUM(CI14:$CM$17))^2*CH13)","v":0},{"$f":"IF(ISERROR((SUM($CC$7:CH12)-SUM(CJ14:$CM$17))^2*CI13),0,(SUM($CC$7:CH12)-SUM(CJ14:$CM$17))^2*CI13)","v":0},{"$f":"IF(ISERROR((SUM($CC$7:CI12)-SUM(CK14:$CM$17))^2*CJ13),0,(SUM($CC$7:CI12)-SUM(CK14:$CM$17))^2*CJ13)","v":0},{"$f":"IF(ISERROR((SUM($CC$7:CJ12)-SUM(CL14:$CM$17))^2*CK13),0,(SUM($CC$7:CJ12)-SUM(CL14:$CM$17))^2*CK13)","v":0},{"$f":"IF(ISERROR((SUM($CC$7:CK12)-SUM(CM14:$CM$17))^2*CL13),0,(SUM($CC$7:CK12)-SUM(CM14:$CM$17))^2*CL13)","v":0},{"$f":"IF(ISERROR((SUM($CC$7:CL12)-0)^2*CM13),0,(SUM($CC$7:CL12)-0)^2*CM13)","v":0}]
[11,null,null,"-",null,"A-K",0,null,null,{"$f":"$X$12","v":"J"},{"$f":"IF(OR(ISBLANK($G$13),$G$13=0),\"\",$G$13)","v":""},{"$f":"IF(OR(ISBLANK($G$24),$G$24=0),\"\",$G$24)","v":""},{"$f":"IF(OR(ISBLANK($G$35),$G$35=0),\"\",$G$35)","v":""},{"$f":"IF(OR(ISBLANK($G$46),$G$46=0),\"\",$G$46)","v":""},{"$f":"IF(OR(ISBLANK($G$57),$G$57=0),\"\",$G$57)","v":""},{"$f":"IF(OR(ISBLANK($G$68),$G$68=0),\"\",$G$68)","v":""},{"$f":"IF(OR(ISBLANK($G$79),$G$79=0),\"\",$G$79)","v":""},{"$f":"IF(OR(ISBLANK($G$90),$G$90=0),\"\",$G$90)","v":""},{"$f":"IF(OR(ISBLANK($G$101),$G$101=0),\"\",$G$101)","v":""},{"$f":"IF(OR(ISBLANK($G$112),$G$112=0),\"\",$G$112)","v":""},{"$f":"IF(OR(ISBLANK($G$123),$G$123=0),\"\",$G$123)","v":""},{"$f":"SUM(K14:U14)","v":0},null,null,null,null,null,null,null,null,null,null,null,null,null,null,null,null,null,null,null,null,null,"-",null,"A-K",0,null,null,null,{"$f":"$X$3","v":"A"},{"$f":"$X$4","v":"B"},{"$f":"$X$5","v":"C"},{"$f":"$X$6","v":"D"},{"$f":"$X$7","v":"E"},{"$f":"$X$8","v":"F"},{"$f":"$X$9","v":"G"},{"$f":"$X$10","v":"H"},{"$f":"$X$11","v":"I"},{"$f":"$X$12","v":"J"},{"$f":"$X$13","v":"K"},null,null,null,null,null,null,null,null,null,null,null,null,null,null,null,null,null,null,{"$f":"$X$6","v":"D"},"","","","","","","","","","","",0,null,{"$f":"IF(ISERROR((0-SUM(CD15:$CM$17))^2*CC14),0,(0-SUM(CD15:$CM$17))^2*CC14)","v":0},{"$f":"IF(ISERROR((SUM($CC$7:CC13)-SUM(CE15:$CM$17))^2*CD14),0,(SUM($CC$7:CC13)-SUM(CE15:$CM$17))^2*CD14)","v":0},{"$f":"IF(ISERROR((SUM($CC$7:CD13)-SUM(CF15:$CM$17))^2*CE14),0,(SUM($CC$7:CD13)-SUM(CF15:$CM$17))^2*CE14)","v":0},{"$f":"IF(ISERROR((SUM($CC$7:CE13)-SUM(CG15:$CM$17))^2*CF14),0,(SUM($CC$7:CE13)-SUM(CG15:$CM$17))^2*CF14)","v":0},{"$f":"IF(ISERROR((SUM($CC$7:CF13)-SUM(CH15:$CM$17))^2*CG14),0,(SUM($CC$7:CF13)-SUM(CH15:$CM$17))^2*CG14)","v":0},{"$f":"IF(ISERROR((SUM($CC$7:CG13)-SUM(CI15:$CM$17))^2*CH14),0,(SUM($CC$7:CG13)-SUM(CI15:$CM$17))^2*CH14)","v":0},{"$f":"IF(ISERROR((SUM($CC$7:CH13)-SUM(CJ15:$CM$17))^2*CI14),0,(SUM($CC$7:CH13)-SUM(CJ15:$CM$17))^2*CI14)","v":0},{"$f":"IF(ISERROR((SUM($CC$7:CI13)-SUM(CK15:$CM$17))^2*CJ14),0,(SUM($CC$7:CI13)-SUM(CK15:$CM$17))^2*CJ14)","v":0},{"$f":"IF(ISERROR((SUM($CC$7:CJ13)-SUM(CL15:$CM$17))^2*CK14),0,(SUM($CC$7:CJ13)-SUM(CL15:$CM$17))^2*CK14)","v":0},{"$f":"IF(ISERROR((SUM($CC$7:CK13)-SUM(CM15:$CM$17))^2*CL14),0,(SUM($CC$7:CK13)-SUM(CM15:$CM$17))^2*CL14)","v":0},{"$f":"IF(ISERROR((SUM($CC$7:CL13)-0)^2*CM14),0,(SUM($CC$7:CL13)-0)^2*CM14)","v":0}]
[12,null,null,"-",null,{"$f":"$X$4&\"-\"&$X$3","v":"B-A"},0,null,null,{"$f":"$X$11","v":"I"},{"$f":"IF(OR(ISBLANK($G$12),$G$12=0),\"\",$G$12)","v":""},{"$f":"IF(OR(ISBLANK($G$23),$G$23=0),\"\",$G$23)","v":""},{"$f":"IF(OR(ISBLANK($G$34),$G$34=0),\"\",$G$34)","v":""},{"$f":"IF(OR(ISBLANK($G$45),$G$45=0),\"\",$G$45)","v":""},{"$f":"IF(OR(ISBLANK($G$56),$G$56=0),\"\",$G$56)","v":""},{"$f":"IF(OR(ISBLANK($G$67),$G$67=0),\"\",$G$67)","v":""},{"$f":"IF(OR(ISBLANK($G$78),$G$78=0),\"\",$G$78)","v":""},{"$f":"IF(OR(ISBLANK($G$89),$G$89=0),\"\",$G$89)","v":""},{"$f":"IF(OR(ISBLANK($G$100),$G$100=0),\"\",$G$100)","v":""},{"$f":"IF(OR(ISBLANK($G$111),$G$111=0),\"\",$G$111)","v":""},{"$f":"IF(OR(ISBLANK($G$122),$G$122=0),\"\",$G$122)","v":""},0,null,null,null,null,null,null,null,null,null,null,null,null,null,null,null,null,null,null,null,null,null,"-",null,{"$f":"$X$4&\"-\"&$X$3","v":"B-A"},0,null,null,"x",0,0,0,0,0,0,0,0,0,0,0,null,null,null,null,null,null,null,null,null,null,null,null,null,null,null,null,null,null,{"$f":"$X$5","v":"C"},"","","","","","","","","","","",0,null,{"$f":"IF(ISERROR((0-SUM(CD16:$CM$17))^2*CC15),0,(0-SUM(CD16:$CM$17))^2*CC15)","v":0},{"$f":"IF(ISERROR((SUM($CC$7:CC14)-SUM(CE16:$CM$17))^2*CD15),0,(SUM($CC$7:CC14)-SUM(CE16:$CM$17))^2*CD15)","v":0},{"$f":"IF(ISERROR((SUM($CC$7:CD14)-SUM(CF16:$CM$17))^2*CE15),0,(SUM($CC$7:CD14)-SUM(CF16:$CM$17))^2*CE15)","v":0},{"$f":"IF(ISERROR((SUM($CC$7:CE14)-SUM(CG16:$CM$17))^2*CF15),0,(SUM($CC$7:CE14)-SUM(CG16:$CM$17))^2*CF15)","v":0},{"$f":"IF(ISERROR((SUM($CC$7:CF14)-SUM(CH16:$CM$17))^2*CG15),0,(SUM($CC$7:CF14)-SUM(CH16:$CM$17))^2*CG15)","v":0},{"$f":"IF(ISERROR((SUM($CC$7:CG14)-SUM(CI16:$CM$17))^2*CH15),0,(SUM($CC$7:CG14)-SUM(CI16:$CM$17))^2*CH15)","v":0},{"$f":"IF(ISERROR((SUM($CC$7:CH14)-SUM(CJ16:$CM$17))^2*CI15),0,(SUM($CC$7:CH14)-SUM(CJ16:$CM$17))^2*CI15)","v":0},{"$f":"IF(ISERROR((SUM($CC$7:CI14)-SUM(CK16:$CM$17))^2*CJ15),0,(SUM($CC$7:CI14)-SUM(CK16:$CM$17))^2*CJ15)","v":0},{"$f":"IF(ISERROR((SUM($CC$7:CJ14)-SUM(CL16:$CM$17))^2*CK15),0,(SUM($CC$7:CJ14)-SUM(CL16:$CM$17))^2*CK15)","v":0},{"$f":"IF(ISERROR((SUM($CC$7:CK14)-SUM(CM16:$CM$17))^2*CL15),0,(SUM($CC$7:CK14)-SUM(CM16:$CM$17))^2*CL15)","v":0},{"$f":"IF(ISERROR((SUM($CC$7:CL14)-0)^2*CM15),0,(SUM($CC$7:CL14)-0)^2*CM15)","v":0}]
[13,null,null,"-",null,{"$f":"$X$4&\"-\"&$X$4","v":"B-B"},0,null,null,{"$f":"$X$10","v":"H"},{"$f":"IF(OR(ISBLANK($G$11),$G$11=0),\"\",$G$11)","v":""},{"$f":"IF(OR(ISBLANK($G$22),$G$22=0),\"\",$G$22)","v":""},{"$f":"IF(OR(ISBLANK($G$33),$G$33=0),\"\",$G$33)","v":""},{"$f":"IF(OR(ISBLANK($G$44),$G$44=0),\"\",$G$44)","v":""},{"$f":"IF(OR(ISBLANK($G$55),$G$55=0),\"\",$G$55)","v":""},{"$f":"IF(OR(ISBLANK($G$66),$G$66=0),\"\",$G$66)","v":""},{"$f":"IF(OR(ISBLANK($G$77),$G$77=0),\"\",$G$77)","v":""},{"$f":"IF(OR(ISBLANK($G$88),$G$88=0),\"\",$G$88)","v":""},{"$f":"IF(OR(ISBLANK($G$99),$G$99=0),\"\",$G$99)","v":""},{"$f":"IF(OR(ISBLANK($G$110),$G$110=0),\"\",$G$110)","v":""},{"$f":"IF(OR(ISBLANK($G$121),$G$121=0),\"\",$G$121)","v":""},0,null,null,null,null,null,null,null,null,null,null,null,null,null,null,null,null,null,null,null,null,null,"-",null,{"$f":"$X$4&\"-\"&$X$4","v":"B-B"},0,null,null,"C(x)",{"$f":"AY28/$V$24","v":{"$error":"#DIV/0!"}},{"$error":"#DIV/0!"},{"$error":"#DIV/0!"},{"$error":"#DIV/0!"},{"$error":"#DIV/0!"},{"$error":"#DIV/0!"},{"$error":"#DIV/0!"},{"$error":"#DIV/0!"},{"$error":"#DIV/0!"},{"$error":"#DIV/0!"},{"$error":"#DIV/0!"},null,null,null,null,null,null,null,null,null,null,null,null,null,null,null,null,null,null,{"$f":"$X$4","v":"B"},{"$f":"K22","v":""},{"$f":"L22","v":""},"","","","","","","","","",0,null,{"$f":"IF(ISERROR((0-SUM(CD17:$CM$17))^2*CC16),0,(0-SUM(CD17:$CM$17))^2*CC16)","v":0},{"$f":"IF(ISERROR((SUM($CC$7:CC15)-SUM(CE17:$CM$17))^2*CD16),0,(SUM($CC$7:CC15)-SUM(CE17:$CM$17))^2*CD16)","v":0},{"$f":"IF(ISERROR((SUM($CC$7:CD15)-SUM(CF17:$CM$17))^2*CE16),0,(SUM($CC$7:CD15)-SUM(CF17:$CM$17))^2*CE16)","v":0},{"$f":"IF(ISERROR((SUM($CC$7:CE15)-SUM(CG17:$CM$17))^2*CF16),0,(SUM($CC$7:CE15)-SUM(CG17:$CM$17))^2*CF16)","v":0},{"$f":"IF(ISERROR((SUM($CC$7:CF15)-SUM(CH17:$CM$17))^2*CG16),0,(SUM($CC$7:CF15)-SUM(CH17:$CM$17))^2*CG16)","v":0},{"$f":"IF(ISERROR((SUM($CC$7:CG15)-SUM(CI17:$CM$17))^2*CH16),0,(SUM($CC$7:CG15)-SUM(CI17:$CM$17))^2*CH16)","v":0},{"$f":"IF(ISERROR((SUM($CC$7:CH15)-SUM(CJ17:$CM$17))^2*CI16),0,(SUM($CC$7:CH15)-SUM(CJ17:$CM$17))^2*CI16)","v":0},{"$f":"IF(ISERROR((SUM($CC$7:CI15)-SUM(CK17:$CM$17))^2*CJ16),0,(SUM($CC$7:CI15)-SUM(CK17:$CM$17))^2*CJ16)","v":0},{"$f":"IF(ISERROR((SUM($CC$7:CJ15)-SUM(CL17:$CM$17))^2*CK16),0,(SUM($CC$7:CJ15)-SUM(CL17:$CM$17))^2*CK16)","v":0},{"$f":"IF(ISERROR((SUM($CC$7:CK15)-SUM(CM17:$CM$17))^2*CL16),0,(SUM($CC$7:CK15)-SUM(CM17:$CM$17))^2*CL16)","v":0},{"$f":"IF(ISERROR((SUM($CC$7:CL15)-0)^2*CM16),0,(SUM($CC$7:CL15)-0)^2*CM16)","v":0}]
[14,null,null,"-",null,{"$f":"$X$4&\"-\"&$X$5","v":"B-C"},0,null,null,{"$f":"$X$9","v":"G"},{"$f":"IF(OR(ISBLANK($G$10),$G$10=0),\"\",$G$10)","v":""},{"$f":"IF(OR(ISBLANK($G$21),$G$21=0),\"\",$G$21)","v":""},{"$f":"IF(OR(ISBLANK($G$32),$G$32=0),\"\",$G$32)","v":""},{"$f":"IF(OR(ISBLANK($G$43),$G$43=0),\"\",$G$43)","v":""},{"$f":"IF(OR(ISBLANK($G$54),$G$54=0),\"\",$G$54)","v":""},{"$f":"IF(OR(ISBLANK($G$65),$G$65=0),\"\",$G$65)","v":""},{"$f":"IF(OR(ISBLANK($G$76),$G$76=0),\"\",$G$76)","v":""},{"$f":"IF(OR(ISBLANK($G$87),$G$87=0),\"\",$G$87)","v":""},{"$f":"IF(OR(ISBLANK($G$98),$G$98=0),\"\",$G$98)","v":""},{"$f":"IF(OR(ISBLANK($G$109),$G$109=0),\"\",$G$109)","v":""},{"$f":"IF(OR(ISBLANK($G$120),$G$120=0),\"\",$G$120)","v":""},0,null,null,null,null,null,null,null,null,null,null,null,null,null,null,null,null,null,null,null,null,null,"-",null,{"$f":"$X$4&\"-\"&$X$5","v":"B-C"},0,null,null,"y",0,0,0,0,0,0,0,0,0,0,0,null,null,null,null,null,null,null,null,null,null,null,null,null,null,null,null,null,null,{"$f":"$X$3","v":"A"},{"$f":"K23","v":""},{"$f":"L23","v":""},"","","","","","","","","",{"$f":"SUM(CC17:CM17)","v":0},null,0,{"$f":"IF(ISERROR((SUM($CC$7:CC16)-0)^2*CD17),0,(SUM($CC$7:CC16)-0)^2*CD17)","v":0},{"$f":"IF(ISERROR((SUM($CC$7:CD16)-0)^2*CE17),0,(SUM($CC$7:CD16)-0)^2*CE17)","v":0},{"$f":"IF(ISERROR((SUM($CC$7:CE16)-0)^2*CF17),0,(SUM($CC$7:CE16)-0)^2*CF17)","v":0},{"$f":"IF(ISERROR((SUM($CC$7:CF16)-0)^2*CG17),0,(SUM($CC$7:CF16)-0)^2*CG17)","v":0},{"$f":"IF(ISERROR((SUM($CC$7:CG16)-0)^2*CH17),0,(SUM($CC$7:CG16)-0)^2*CH17)","v":0},{"$f":"IF(ISERROR((SUM($CC$7:CH16)-0)^2*CI17),0,(SUM($CC$7:CH16)-0)^2*CI17)","v":0},{"$f":"IF(ISERROR((SUM($CC$7:CI16)-0)^2*CJ17),0,(SUM($CC$7:CI16)-0)^2*CJ17)","v":0},{"$f":"IF(ISERROR((SUM($CC$7:CJ16)-0)^2*CK17),0,(SUM($CC$7:CJ16)-0)^2*CK17)","v":0},{"$f":"IF(ISERROR((SUM($CC$7:CK16)-0)^2*CL17),0,(SUM($CC$7:CK16)-0)^2*CL17)","v":0},{"$f":"IF(ISERROR((SUM($CC$7:CL16)-0)^2*CM17),0,(SUM($CC$7:CL16)-0)^2*CM17)","v":0}]
[15,null,null,"-",null,{"$f":"$X$4&\"-\"&$X$6","v":"B-D"},0,null,null,{"$f":"$X$8","v":"F"},{"$f":"IF(OR(ISBLANK($G$9),$G$9=0),\"\",$G$9)","v":""},{"$f":"IF(OR(ISBLANK($G$20),$G$20=0),\"\",$G$20)","v":""},{"$f":"IF(OR(ISBLANK($G$31),$G$31=0),\"\",$G$31)","v":""},{"$f":"IF(OR(ISBLANK($G$42),$G$42=0),\"\",$G$42)","v":""},{"$f":"IF(OR(ISBLANK($G$53),$G$53=0),\"\",$G$53)","v":""},{"$f":"IF(OR(ISBLANK($G$64),$G$64=0),\"\",$G$64)","v":""},{"$f":"IF(OR(ISBLANK($G$75),$G$75=0),\"\",$G$75)","v":""},{"$f":"IF(OR(ISBLANK($G$86),$G$86=0),\"\",$G$86)","v":""},{"$f":"IF(OR(ISBLANK($G$97),$G$97=0),\"\",$G$97)","v":""},{"$f":"IF(OR(ISBLANK($G$108),$G$108=0),\"\",$G$108)","v":""},{"$f":"IF(OR(ISBLANK($G$119),$G$119=0),\"\",$G$119)","v":""},0,null,null,null,null,null,null,null,null,null,null,null,null,null,null,null,null,null,null,null,null,null,"-",null,{"$f":"$X$4&\"-\"&$X$6","v":"B-D"},0,null,null,"C(y)",{"$f":"AY30/$V$24","v":{"$error":"#DIV/0!"}},{"$error":"#DIV/0!"},{"$error":"#DIV/0!"},{"$error":"#DIV/0!"},{"$error":"#DIV/0!"},{"$error":"#DIV/0!"},{"$error":"#DIV/0!"},{"$error":"#DIV/0!"},{"$error":"#DIV/0!"},{"$error":"#DIV/0!"},{"$error":"#DIV/0!"},null,null,null,null,null,null,null,null,null,null,null,null,null,null,null,null,null,null,null,{"$f":"SUM(CC7:CC17)","v":0},{"$f":"SUM(CD7:CD17)","v":0},0,0,0,0,{"$f":"SUM(CI7:CI17)","v":0},0,{"$f":"SUM(CK7:CK17)","v":0},0,{"$f":"SUM(CM7:CM17)","v":0},0,null,null,null,null,null,null,null,null,null,null,null,null,{"$f":"SUM(CP7:CZ17)","v":0}]
[16,null,null,"-",null,{"$f":"$X$4&\"-\"&$X$7","v":"B-E"},0,null,null,{"$f":"$X$7","v":"E"},{"$f":"IF(OR(ISBLANK($G$8),$G$8=0),\"\",$G$8)","v":""},{"$f":"IF(OR(ISBLANK($G$19),$G$19=0),\"\",$G$19)","v":""},{"$f":"IF(OR(ISBLANK($G$30),$G$30=0),\"\",$G$30)","v":""},{"$f":"IF(OR(ISBLANK($G$41),$G$41=0),\"\",$G$41)","v":""},{"$f":"IF(OR(ISBLANK($G$52),$G$52=0),\"\",$G$52)","v":""},{"$f":"IF(OR(ISBLANK($G$63),$G$63=0),\"\",$G$63)","v":""},{"$f":"IF(OR(ISBLANK($G$74),$G$74=0),\"\",$G$74)","v":""},{"$f":"IF(OR(ISBLANK($G$85),$G$85=0),\"\",$G$85)","v":""},{"$f":"IF(OR(ISBLANK($G$96),$G$96=0),\"\",$G$96)","v":""},{"$f":"IF(OR(ISBLANK($G$107),$G$107=0),\"\",$G$107)","v":""},{"$f":"IF(OR(ISBLANK($G$118),$G$118=0),\"\",$G$118)","v":""},0,null,null,null,null,null,null,null,null,null,null,null,null,null,null,null,null,null,null,null,null,null,"-",null,{"$f":"$X$4&\"-\"&$X$7","v":"B-E"},0]
[17,null,null,"-",null,{"$f":"$X$4&\"-\"&$X8","v":"B-F"},0,null,null,{"$f":"$X$6","v":"D"},{"$f":"IF(OR(ISBLANK($G$7),$G$7=0),\"\",$G$7)","v":""},{"$f":"IF(OR(ISBLANK($G$18),$G$18=0),\"\",$G$18)","v":""},{"$f":"IF(OR(ISBLANK($G$29),$G$29=0),\"\",$G$29)","v":""},{"$f":"IF(OR(ISBLANK($G$40),$G$40=0),\"\",$G$40)","v":""},{"$f":"IF(OR(ISBLANK($G$51),$G$51=0),\"\",$G$51)","v":""},{"$f":"IF(OR(ISBLANK($G$62),$G$62=0),\"\",$G$62)","v":""},{"$f":"IF(OR(ISBLANK($G$73),$G$73=0),\"\",$G$73)","v":""},{"$f":"IF(OR(ISBLANK($G$84),$G$84=0),\"\",$G$84)","v":""},{"$f":"IF(OR(ISBLANK($G$95),$G$95=0),\"\",$G$95)","v":""},{"$f":"IF(OR(ISBLANK($G$106),$G$106=0),\"\",$G$106)","v":""},{"$f":"IF(OR(ISBLANK($G$117),$G$117=0),\"\",$G$117)","v":""},{"$f":"SUM(K20:U20)","v":0},null,null,null,null,null,null,null,null,null,null,null,null,null,null,null,null,null,null,null,null,null,"-",null,{"$f":"$X$4&\"-\"&$X8","v":"B-F"},0,null,null,"RP:",null,null,null,null,null,null,null,null,null,null,null,null,null,null,null,null,null,null,null,null,null,null,null,null,null,null,null,null,null,null,null,null,null,null,null,null,null,null,null,null,null,null,"RV",{"$f":"(DA18*6)/CN18^3","v":{"$error":"#DIV/0!"}}]
[18,null,null,"-",null,"B-G",0,null,null,{"$f":"$X$5","v":"C"},{"$f":"IF(OR(ISBLANK($G$6),$G$6=0),\"\",$G$6)","v":""},{"$f":"IF(OR(ISBLANK($G$17),$G$17=0),\"\",$G$17)","v":""},{"$f":"IF(OR(ISBLANK($G$28),$G$28=0),\"\",$G$28)","v":""},{"$f":"IF(OR(ISBLANK($G$39),$G$39=0),\"\",$G$39)","v":""},{"$f":"IF(OR(ISBLANK($G$50),$G$50=0),\"\",$G$50)","v":""},{"$f":"IF(OR(ISBLANK($G$61),$G$61=0),\"\",$G$61)","v":""},{"$f":"IF(OR(ISBLANK($G$72),$G$72=0),\"\",$G$72)","v":""},{"$f":"IF(OR(ISBLANK($G$83),$G$83=0),\"\",$G$83)","v":""},{"$f":"IF(OR(ISBLANK($G$94),$G$94=0),\"\",$G$94)","v":""},{"$f":"IF(OR(ISBLANK($G$105),$G$105=0),\"\",$G$105)","v":""},{"$f":"IF(OR(ISBLANK($G$116),$G$116=0),\"\",$G$116)","v":""},0,null,null,null,null,null,null,null,null,null,null,null,null,null,null,null,null,null,null,null,null,null,"-",null,"B-G",0,null,null,null,{"$f":"AZ29*AY28","v":0},0,0,0,0,0,0,0,0,0,null,{"$f":"SUM(AY21:BH21)","v":0},{"$f":"1/V24^2","v":{"$error":"#DIV/0!"}},{"$f":"BJ21*BK21","v":{"$error":"#DIV/0!"}}]
[19,null,null,"-",null,"B-H",0,null,null,{"$f":"$X$4","v":"B"},{"$f":"IF(OR(ISBLANK($G$5),$G$5=0),\"\",$G$5)","v":""},{"$f":"IF(OR(ISBLANK($G$16),$G$16=0),\"\",$G$16)","v":""},{"$f":"IF(OR(ISBLANK($G$27),$G$27=0),\"\",$G$27)","v":""},{"$f":"IF(OR(ISBLANK($G$38),$G$38=0),\"\",$G$38)","v":""},{"$f":"IF(OR(ISBLANK($G$49),$G$49=0),\"\",$G$49)","v":""},{"$f":"IF(OR(ISBLANK($G$60),$G$60=0),\"\",$G$60)","v":""},{"$f":"IF(OR(ISBLANK($G$71),$G$71=0),\"\",$G$71)","v":""},{"$f":"IF(OR(ISBLANK($G$82),$G$82=0),\"\",$G$82)","v":""},{"$f":"IF(OR(ISBLANK($G$93),$G$93=0),\"\",$G$93)","v":""},{"$f":"IF(OR(ISBLANK($G$104),$G$104=0),\"\",$G$104)","v":""},{"$f":"IF(OR(ISBLANK($G$115),$G$115=0),\"\",$G$115)","v":""},0,null,null,null,null,null,null,null,null,null,null,null,null,null,null,null,null,null,null,null,null,null,"-",null,"B-H",0,null,null,null,{"$f":"AZ27*AY30","v":0},0,0,0,0,0,0,0,0,0,null,{"$f":"SUM(AY22:BH22)","v":0},{"$f":"1/V24^2","v":{"$error":"#DIV/0!"}},{"$f":"BJ22*BK22","v":{"$error":"#DIV/0!"}}]
[20,null,null,"-",null,"B-I",0,null,null,{"$f":"$X$3","v":"A"},{"$f":"IF(OR(ISBLANK($G$4),$G$4=0),\"\",$G$4)","v":""},{"$f":"IF(OR(ISBLANK($G$15),$G$15=0),\"\",$G$15)","v":""},{"$f":"IF(OR(ISBLANK($G$26),$G$26=0),\"\",$G$26)","v":""},{"$f":"IF(OR(ISBLANK($G$37),$G$37=0),\"\",$G$37)","v":""},{"$f":"IF(OR(ISBLANK($G$48),$G$48=0),\"\",$G$48)","v":""},{"$f":"IF(OR(ISBLANK($G$59),$G$59=0),\"\",$G$59)","v":""},{"$f":"IF(OR(ISBLANK($G$70),$G$70=0),\"\",$G$70)","v":""},{"$f":"IF(OR(ISBLANK($G$81),$G$81=0),\"\",$G$81)","v":""},{"$f":"IF(OR(ISBLANK($G$92),$G$92=0),\"\",$G$92)","v":""},{"$f":"IF(OR(ISBLANK($G$103),$G$103=0),\"\",$G$103)","v":""},{"$f":"IF(OR(ISBLANK($G$114),$G$114=0),\"\",$G$114)","v":""},0,null,null,null,null,null,null,null,null,null,null,null,null,null,null,null,null,null,null,null,null,null,"-",null,"B-I",0]
[21,null,null,"-",null,"B-J",0,null,null,null,{"$f":"SUM(K13:K23)","v":0},{"$f":"SUM(L13:L23)","v":0},0,0,0,0,0,0,0,0,0,{"$f":"SUM(K13:U23)","v":0},null,null,null,null,null,null,null,null,null,null,null,null,null,null,null,null,null,null,null,null,null,"-",null,"B-J",0,null,null,null,null,null,null,null,null,null,null,null,null,null,null,null,null,null,null,null,null,null,null,null,null,null,null,null,null,null,null,null,"Disorder"]
[22,null,null,"-",null,"B-K",0,null,null,null,null,null,null,null,null,null,null,null,null,null,null,null,null,null,null,null,null,null,null,null,null,null,null,null,null,null,null,null,null,null,null,null,null,"-",null,"B-K",0,null,null,null,null,null,null,null,null,null,null,null,null,null,null,null,null,null,null,null,null,null,null,null,null,null,null,null,null,null,null,null,null,null,{"$f":"$X$3","v":"A"},{"$f":"$X$4","v":"B"},{"$f":"$X$5","v":"C"},{"$f":"$X$6","v":"D"},{"$f":"$X$7","v":"E"},{"$f":"$X$8","v":"F"},{"$f":"$X$9","v":"G"},{"$f":"$X$10","v":"H"},{"$f":"$X$11","v":"I"},{"$f":"$X$12","v":"J"},{"$f":"$X$13","v":"K"},null,null,"Täljaren"]
[23,null,null,"-",null,{"$f":"$X$5&\"-\"&$X$3","v":"C-A"},0,null,null,null,null,null,null,null,null,null,null,null,null,null,null,null,null,null,null,null,null,null,null,null,null,null,null,null,null,null,null,null,null,null,null,null,null,"-",null,{"$f":"$X$5&\"-\"&$X$3","v":"C-A"},0,null,null,"MD",{"$f":"$X$3","v":"A"},{"$f":"$X$4","v":"B"},{"$f":"$X$5","v":"C"},{"$f":"$X$6","v":"D"},{"$f":"$X$7","v":"E"},{"$f":"$X$8","v":"F"},{"$f":"$X$9","v":"G"},{"$f":"$X$10","v":"H"},{"$f":"$X$11","v":"I"},{"$f":"$X$12","v":"J"},{"$f":"$X$13","v":"K"},null,null,null,null,null,null,null,null,null,null,null,null,null,null,null,null,null,null,{"$f":"$X$13","v":"K"},{"$f":"K13","v":""},{"$f":"L13","v":""},{"$f":"M13","v":""},{"$f":"N13","v":""},{"$f":"O13","v":""},{"$f":"P13","v":""},{"$f":"Q13","v":""},{"$f":"R13","v":""},{"$f":"S13","v":""},{"$f":"T13","v":""},{"$f":"U13","v":""},null,null,{"$f":"IF(ISERROR(CC26*SUM(CD27:$CM$36)),0,CC26*SUM(CD27:$CM$36))","v":0},{"$f":"IF(ISERROR(CD26*SUM(CE27:$CM$36)),0,CD26*SUM(CE27:$CM$36))","v":0},{"$f":"IF(ISERROR(CE26*SUM(CF27:$CM$36)),0,CE26*SUM(CF27:$CM$36))","v":0},{"$f":"IF(ISERROR(CF26*SUM(CG27:$CM$36)),0,CF26*SUM(CG27:$CM$36))","v":0},{"$f":"IF(ISERROR(CG26*SUM(CH27:$CM$36)),0,CG26*SUM(CH27:$CM$36))","v":0},{"$f":"IF(ISERROR(CH26*SUM(CI27:$CM$36)),0,CH26*SUM(CI27:$CM$36))","v":0},{"$f":"IF(ISERROR(CI26*SUM(CJ27:$CM$36)),0,CI26*SUM(CJ27:$CM$36))","v":0},{"$f":"IF(ISERROR(CJ26*SUM(CK27:$CM$36)),0,CJ26*SUM(CK27:$CM$36))","v":0},{"$f":"IF(ISERROR(CK26*SUM(CL27:$CM$36)),0,CK26*SUM(CL27:$CM$36))","v":0},{"$f":"IF(ISERROR(CL26*SUM(CM27:$CM$36)),0,CL26*SUM(CM27:$CM$36))","v":0},0]
[24,null,null,"-",null,{"$f":"$X$5&\"-\"&$X$4","v":"C-B"},0,null,null,null,null,null,null,null,null,null,null,null,null,null,null,null,null,null,null,null,null,null,null,null,null,null,null,null,null,null,null,null,null,null,null,null,null,"-",null,{"$f":"$X$5&\"-\"&$X$4","v":"C-B"},0,null,null,"x",{"$f":"K24","v":0},0,0,0,0,0,0,0,0,0,0,null,null,null,null,null,null,null,null,null,null,null,null,null,null,null,null,null,null,{"$f":"$X$12","v":"J"},"","","","","","","","","","","",null,null,{"$f":"IF(ISERROR(CC27*SUM(CD28:$CM$36)),0,CC27*SUM(CD28:$CM$36))","v":0},{"$f":"IF(ISERROR(CD27*SUM(CE28:$CM$36)),0,CD27*SUM(CE28:$CM$36))","v":0},{"$f":"IF(ISERROR(CE27*SUM(CF28:$CM$36)),0,CE27*SUM(CF28:$CM$36))","v":0},{"$f":"IF(ISERROR(CF27*SUM(CG28:$CM$36)),0,CF27*SUM(CG28:$CM$36))","v":0},{"$f":"IF(ISERROR(CG27*SUM(CH28:$CM$36)),0,CG27*SUM(CH28:$CM$36))","v":0},{"$f":"IF(ISERROR(CH27*SUM(CI28:$CM$36)),0,CH27*SUM(CI28:$CM$36))","v":0},{"$f":"IF(ISERROR(CI27*SUM(CJ28:$CM$36)),0,CI27*SUM(CJ28:$CM$36))","v":0},{"$f":"IF(ISERROR(CJ27*SUM(CK28:$CM$36)),0,CJ27*SUM(CK28:$CM$36))","v":0},{"$f":"IF(ISERROR(CK27*SUM(CL28:$CM$36)),0,CK27*SUM(CL28:$CM$36))","v":0},{"$f":"IF(ISERROR(CL27*SUM(CM28:$CM$36)),0,CL27*SUM(CM28:$CM$36))","v":0},0]
[25,null,null,"-",null,{"$f":"$X$5&\"-\"&$X$5","v":"C-C"},0,null,null,null,null,null,null,null,null,null,null,null,null,null,null,null,null,null,null,null,null,null,null,null,null,null,null,null,null,null,null,null,null,null,null,null,null,"-",null,{"$f":"$X$5&\"-\"&$X$5","v":"C-C"},0,null,null,"C(x)",{"$f":"SUM($AY$27:AY27)","v":0},{"$f":"SUM($AY$27:AZ27)","v":0},{"$f":"SUM($AY$27:BA27)","v":0},{"$f":"SUM($AY$27:BB27)","v":0},{"$f":"SUM($AY$27:BC27)","v":0},{"$f":"SUM($AY$27:BD27)","v":0},{"$f":"SUM($AY$27:BE27)","v":0},{"$f":"SUM($AY$27:BF27)","v":0},{"$f":"SUM($AY$27:BG27)","v":0},{"$f":"SUM($AY$27:BH27)","v":0},{"$f":"SUM($AY$27:BI27)","v":0},null,null,null,null,null,null,null,null,null,null,null,null,null,null,null,null,null,null,{"$f":"$X$11","v":"I"},"","","","","","","","","","","",null,null,{"$f":"IF(ISERROR(CC28*SUM(CD29:$CM$36)),0,CC28*SUM(CD29:$CM$36))","v":0},{"$f":"IF(ISERROR(CD28*SUM(CE29:$CM$36)),0,CD28*SUM(CE29:$CM$36))","v":0},{"$f":"IF(ISERROR(CE28*SUM(CF29:$CM$36)),0,CE28*SUM(CF29:$CM$36))","v":0},{"$f":"IF(ISERROR(CF28*SUM(CG29:$CM$36)),0,CF28*SUM(CG29:$CM$36))","v":0},{"$f":"IF(ISERROR(CG28*SUM(CH29:$CM$36)),0,CG28*SUM(CH29:$CM$36))","v":0},{"$f":"IF(ISERROR(CH28*SUM(CI29:$CM$36)),0,CH28*SUM(CI29:$CM$36))","v":0},{"$f":"IF(ISERROR(CI28*SUM(CJ29:$CM$36)),0,CI28*SUM(CJ29:$CM$36))","v":0},{"$f":"IF(ISERROR(CJ28*SUM(CK29:$CM$36)),0,CJ28*SUM(CK29:$CM$36))","v":0},{"$f":"IF(ISERROR(CK28*SUM(CL29:$CM$36)),0,CK28*SUM(CL29:$CM$36))","v":0},{"$f":"IF(ISERROR(CL28*SUM(CM29:$CM$36)),0,CL28*SUM(CM29:$CM$36))","v":0},0]
[26,null,null,"-",null,{"$f":"$X$5&\"-\"&$X$6","v":"C-D"},0,null,null,null,null,null,null,null,null,null,null,null,null,null,null,null,null,null,null,null,null,null,null,null,null,null,null,null,null,null,null,null,null,null,null,null,null,"-",null,{"$f":"$X$5&\"-\"&$X$6","v":"C-D"},0,null,null,"y",{"$f":"V23","v":0},{"$f":"V22","v":0},{"$f":"V21","v":0},{"$f":"V20","v":0},{"$f":"V19","v":0},{"$f":"V18","v":0},{"$f":"V17","v":0},{"$f":"V16","v":0},{"$f":"V15","v":0},{"$f":"V14","v":0},{"$f":"V13","v":0},null,null,null,null,null,null,null,null,null,null,null,null,null,null,null,null,null,null,{"$f":"$X$10","v":"H"},"","","","","","","","","","","",null,null,{"$f":"IF(ISERROR(CC29*SUM(CD30:$CM$36)),0,CC29*SUM(CD30:$CM$36))","v":0},{"$f":"IF(ISERROR(CD29*SUM(CE30:$CM$36)),0,CD29*SUM(CE30:$CM$36))","v":0},{"$f":"IF(ISERROR(CE29*SUM(CF30:$CM$36)),0,CE29*SUM(CF30:$CM$36))","v":0},{"$f":"IF(ISERROR(CF29*SUM(CG30:$CM$36)),0,CF29*SUM(CG30:$CM$36))","v":0},{"$f":"IF(ISERROR(CG29*SUM(CH30:$CM$36)),0,CG29*SUM(CH30:$CM$36))","v":0},{"$f":"IF(ISERROR(CH29*SUM(CI30:$CM$36)),0,CH29*SUM(CI30:$CM$36))","v":0},{"$f":"IF(ISERROR(CI29*SUM(CJ30:$CM$36)),0,CI29*SUM(CJ30:$CM$36))","v":0},{"$f":"IF(ISERROR(CJ29*SUM(CK30:$CM$36)),0,CJ29*SUM(CK30:$CM$36))","v":0},{"$f":"IF(ISERROR(CK29*SUM(CL30:$CM$36)),0,CK29*SUM(CL30:$CM$36))","v":0},{"$f":"IF(ISERROR(CL29*SUM(CM30:$CM$36)),0,CL29*SUM(CM30:$CM$36))","v":0},0]
[27,null,null,"-",null,{"$f":"$X$5&\"-\"&$X$7","v":"C-E"},0,null,null,null,null,null,null,null,null,null,null,null,null,null,null,null,null,null,null,null,null,null,null,null,null,null,null,null,null,null,null,null,null,null,null,null,null,"-",null,{"$f":"$X$5&\"-\"&$X$7","v":"C-E"},0,null,null,"C(y)",{"$f":"SUM($AY$29:AY29)","v":0},{"$f":"SUM($AY$29:AZ29)","v":0},{"$f":"SUM($AY$29:BA29)","v":0},{"$f":"SUM($AY$29:BB29)","v":0},{"$f":"SUM($AY$29:BC29)","v":0},{"$f":"SUM($AY$29:BD29)","v":0},{"$f":"SUM($AY$29:BE29)","v":0},{"$f":"SUM($AY$29:BF29)","v":0},{"$f":"SUM($AY$29:BG29)","v":0},{"$f":"SUM($AY$29:BH29)","v":0},{"$f":"SUM($AY$29:BI29)","v":0},null,null,null,null,null,null,null,null,null,null,null,null,null,null,null,null,null,null,{"$f":"$X$9","v":"G"},"","","","","","","","","","","",null,null,{"$f":"IF(ISERROR(CC30*SUM(CD31:$CM$36)),0,CC30*SUM(CD31:$CM$36))","v":0},{"$f":"IF(ISERROR(CD30*SUM(CE31:$CM$36)),0,CD30*SUM(CE31:$CM$36))","v":0},{"$f":"IF(ISERROR(CE30*SUM(CF31:$CM$36)),0,CE30*SUM(CF31:$CM$36))","v":0},{"$f":"IF(ISERROR(CF30*SUM(CG31:$CM$36)),0,CF30*SUM(CG31:$CM$36))","v":0},{"$f":"IF(ISERROR(CG30*SUM(CH31:$CM$36)),0,CG30*SUM(CH31:$CM$36))","v":0},{"$f":"IF(ISERROR(CH30*SUM(CI31:$CM$36)),0,CH30*SUM(CI31:$CM$36))","v":0},{"$f":"IF(ISERROR(CI30*SUM(CJ31:$CM$36)),0,CI30*SUM(CJ31:$CM$36))","v":0},{"$f":"IF(ISERROR(CJ30*SUM(CK31:$CM$36)),0,CJ30*SUM(CK31:$CM$36))","v":0},{"$f":"IF(ISERROR(CK30*SUM(CL31:$CM$36)),0,CK30*SUM(CL31:$CM$36))","v":0},{"$f":"IF(ISERROR(CL30*SUM(CM31:$CM$36)),0,CL30*SUM(CM31:$CM$36))","v":0},0]
[28,null,null,"-",null,{"$f":"$X$5&\"-\"&$X8","v":"C-F"},0,null,null,null,null,null,null,null,null,null,null,null,null,null,null,null,null,null,null,null,null,null,null,null,null,null,null,null,null,null,null,null,null,null,null,null,null,"-",null,{"$f":"$X$5&\"-\"&$X8","v":"C-F"},0,null,null,null,null,null,null,null,null,null,null,null,null,null,null,null,null,null,null,null,null,null,null,null,null,null,null,null,null,null,null,null,null,{"$f":"$X$8","v":"F"},"","","","","",{"$f":"P18","v":""},"","","","","",null,null,{"$f":"IF(ISERROR(CC31*SUM(CD32:$CM$36)),0,CC31*SUM(CD32:$CM$36))","v":0},{"$f":"IF(ISERROR(CD31*SUM(CE32:$CM$36)),0,CD31*SUM(CE32:$CM$36))","v":0},{"$f":"IF(ISERROR(CE31*SUM(CF32:$CM$36)),0,CE31*SUM(CF32:$CM$36))","v":0},{"$f":"IF(ISERROR(CF31*SUM(CG32:$CM$36)),0,CF31*SUM(CG32:$CM$36))","v":0},{"$f":"IF(ISERROR(CG31*SUM(CH32:$CM$36)),0,CG31*SUM(CH32:$CM$36))","v":0},{"$f":"IF(ISERROR(CH31*SUM(CI32:$CM$36)),0,CH31*SUM(CI32:$CM$36))","v":0},{"$f":"IF(ISERROR(CI31*SUM(CJ32:$CM$36)),0,CI31*SUM(CJ32:$CM$36))","v":0},{"$f":"IF(ISERROR(CJ31*SUM(CK32:$CM$36)),0,CJ31*SUM(CK32:$CM$36))","v":0},{"$f":"IF(ISERROR(CK31*SUM(CL32:$CM$36)),0,CK31*SUM(CL32:$CM$36))","v":0},{"$f":"IF(ISERROR(CL31*SUM(CM32:$CM$36)),0,CL31*SUM(CM32:$CM$36))","v":0},0]
[29,null,null,"-",null,"C-G",0,null,null,null,null,null,null,null,null,null,null,null,null,null,null,null,null,null,null,null,null,null,null,null,null,null,null,null,null,null,null,null,null,null,null,null,null,"-",null,"C-G",0,null,null,null,null,null,null,null,null,null,null,null,null,null,null,null,null,null,null,null,null,null,null,null,null,null,null,null,null,null,null,null,null,{"$f":"$X$7","v":"E"},"","","","","","","","","","","",null,null,{"$f":"IF(ISERROR(CC32*SUM(CD33:$CM$36)),0,CC32*SUM(CD33:$CM$36))","v":0},{"$f":"IF(ISERROR(CD32*SUM(CE33:$CM$36)),0,CD32*SUM(CE33:$CM$36))","v":0},{"$f":"IF(ISERROR(CE32*SUM(CF33:$CM$36)),0,CE32*SUM(CF33:$CM$36))","v":0},{"$f":"IF(ISERROR(CF32*SUM(CG33:$CM$36)),0,CF32*SUM(CG33:$CM$36))","v":0},{"$f":"IF(ISERROR(CG32*SUM(CH33:$CM$36)),0,CG32*SUM(CH33:$CM$36))","v":0},{"$f":"IF(ISERROR(CH32*SUM(CI33:$CM$36)),0,CH32*SUM(CI33:$CM$36))","v":0},{"$f":"IF(ISERROR(CI32*SUM(CJ33:$CM$36)),0,CI32*SUM(CJ33:$CM$36))","v":0},{"$f":"IF(ISERROR(CJ32*SUM(CK33:$CM$36)),0,CJ32*SUM(CK33:$CM$36))","v":0},{"$f":"IF(ISERROR(CK32*SUM(CL33:$CM$36)),0,CK32*SUM(CL33:$CM$36))","v":0},{"$f":"IF(ISERROR(CL32*SUM(CM33:$CM$36)),0,CL32*SUM(CM33:$CM$36))","v":0},0]
[30,null,null,"-",null,"C-H",0,null,"RTP-tabell",null,"X",null,null,null,null,null,null,null,null,null,null,null,null,null,null,null,null,null,null,null,null,null,null,null,null,null,null,null,null,null,null,null,null,"-",null,"C-H",0,null,null,null,null,null,null,null,null,null,null,null,null,null,null,null,null,null,null,null,null,null,null,null,null,null,null,null,null,null,null,null,null,{"$f":"$X$6","v":"D"},"","","","","","","","","","","",null,null,{"$f":"IF(ISERROR(CC33*SUM(CD34:$CM$36)),0,CC33*SUM(CD34:$CM$36))","v":0},{"$f":"IF(ISERROR(CD33*SUM(CE34:$CM$36)),0,CD33*SUM(CE34:$CM$36))","v":0},{"$f":"IF(ISERROR(CE33*SUM(CF34:$CM$36)),0,CE33*SUM(CF34:$CM$36))","v":0},{"$f":"IF(ISERROR(CF33*SUM(CG34:$CM$36)),0,CF33*SUM(CG34:$CM$36))","v":0},{"$f":"IF(ISERROR(CG33*SUM(CH34:$CM$36)),0,CG33*SUM(CH34:$CM$36))","v":0},{"$f":"IF(ISERROR(CH33*SUM(CI34:$CM$36)),0,CH33*SUM(CI34:$CM$36))","v":0},{"$f":"IF(ISERROR(CI33*SUM(CJ34:$CM$36)),0,CI33*SUM(CJ34:$CM$36))","v":0},{"$f":"IF(ISERROR(CJ33*SUM(CK34:$CM$36)),0,CJ33*SUM(CK34:$CM$36))","v":0},{"$f":"IF(ISERROR(CK33*SUM(CL34:$CM$36)),0,CK33*SUM(CL34:$CM$36))","v":0},{"$f":"IF(ISERROR(CL33*SUM(CM34:$CM$36)),0,CL33*SUM(CM34:$CM$36))","v":0},0]
[31,null,null,"-",null,"C-I",0,null,null,null,{"$f":"X3","v":"A"},{"$f":"X4","v":"B"},{"$f":"X5","v":"C"},{"$f":"X6","v":"D"},{"$f":"X7","v":"E"},{"$f":"X8","v":"F"},{"$f":"$X$9","v":"G"},{"$f":"$X$10","v":"H"},{"$f":"$X$11","v":"I"},{"$f":"$X$12","v":"J"},{"$f":"$X$13","v":"K"},null,null,null,null,null,null,null,null,null,null,null,null,null,null,null,null,null,null,null,null,null,null,"-",null,"C-I",0,null,null,null,null,null,null,null,null,null,null,null,null,null,null,null,null,null,null,null,null,null,null,null,null,null,null,null,null,null,null,null,null,{"$f":"$X$5","v":"C"},"","","","","","","","","","","",null,null,{"$f":"IF(ISERROR(CC34*SUM(CD35:$CM$36)),0,CC34*SUM(CD35:$CM$36))","v":0},{"$f":"IF(ISERROR(CD34*SUM(CE35:$CM$36)),0,CD34*SUM(CE35:$CM$36))","v":0},{"$f":"IF(ISERROR(CE34*SUM(CF35:$CM$36)),0,CE34*SUM(CF35:$CM$36))","v":0},{"$f":"IF(ISERROR(CF34*SUM(CG35:$CM$36)),0,CF34*SUM(CG35:$CM$36))","v":0},{"$f":"IF(ISERROR(CG34*SUM(CH35:$CM$36)),0,CG34*SUM(CH35:$CM$36))","v":0},{"$f":"IF(ISERROR(CH34*SUM(CI35:$CM$36)),0,CH34*SUM(CI35:$CM$36))","v":0},{"$f":"IF(ISERROR(CI34*SUM(CJ35:$CM$36)),0,CI34*SUM(CJ35:$CM$36))","v":0},{"$f":"IF(ISERROR(CJ34*SUM(CK35:$CM$36)),0,CJ34*SUM(CK35:$CM$36))","v":0},{"$f":"IF(ISERROR(CK34*SUM(CL35:$CM$36)),0,CK34*SUM(CL35:$CM$36))","v":0},{"$f":"IF(ISERROR(CL34*SUM(CM35:$CM$36)),0,CL34*SUM(CM35:$CM$36))","v":0},0]
[32,null,null,"-",null,"C-J",0,null,"Y",{"$f":"$X$13","v":"K"},{"$f":"IF(OR(ISBLANK($AU$14),$AU$14=0),\"\",$AU$14)","v":""},{"$f":"IF(OR(ISBLANK($AU$25),$AU$25=0),\"\",$AU$25)","v":""},{"$f":"IF(OR(ISBLANK($AU$36),$AU$36=0),\"\",$AU$36)","v":""},{"$f":"IF(OR(ISBLANK($AU$47),$AU$47=0),\"\",$AU$47)","v":""},{"$f":"IF(OR(ISBLANK($AU$58),$AU$58=0),\"\",$AU$58)","v":""},{"$f":"IF(OR(ISBLANK($AU$69),$AU$69=0),\"\",$AU$69)","v":""},{"$f":"IF(OR(ISBLANK($AU$80),$AU$80=0),\"\",$AU$80)","v":""},{"$f":"IF(OR(ISBLANK($AU$91),$AU$91=0),\"\",$AU$91)","v":""},{"$f":"IF(OR(ISBLANK($AU$102),$AU$102=0),\"\",$AU$102)","v":""},{"$f":"IF(OR(ISBLANK($AU$113),$AU$113=0),\"\",$AU$113)","v":""},{"$f":"IF(OR(ISBLANK($AU$124),$AU$124=0),\"\",$AU$124)","v":""},{"$f":"SUM(K35:U35)","v":0},null,null,null,null,null,null,null,null,null,null,null,null,null,null,null,null,null,null,null,null,null,"-",null,"C-J",0,null,null,null,null,null,null,null,null,null,null,null,null,null,null,null,null,null,null,null,null,null,null,null,null,null,null,null,null,null,null,null,null,{"$f":"$X$4","v":"B"},"","","","","","","","","","","",null,null,{"$f":"IF(ISERROR(CC35*SUM(CD36:$CM$36)),0,CC35*SUM(CD36:$CM$36))","v":0},{"$f":"IF(ISERROR(CD35*SUM(CE36:$CM$36)),0,CD35*SUM(CE36:$CM$36))","v":0},{"$f":"IF(ISERROR(CE35*SUM(CF36:$CM$36)),0,CE35*SUM(CF36:$CM$36))","v":0},{"$f":"IF(ISERROR(CF35*SUM(CG36:$CM$36)),0,CF35*SUM(CG36:$CM$36))","v":0},{"$f":"IF(ISERROR(CG35*SUM(CH36:$CM$36)),0,CG35*SUM(CH36:$CM$36))","v":0},{"$f":"IF(ISERROR(CH35*SUM(CI36:$CM$36)),0,CH35*SUM(CI36:$CM$36))","v":0},{"$f":"IF(ISERROR(CI35*SUM(CJ36:$CM$36)),0,CI35*SUM(CJ36:$CM$36))","v":0},{"$f":"IF(ISERROR(CJ35*SUM(CK36:$CM$36)),0,CJ35*SUM(CK36:$CM$36))","v":0},{"$f":"IF(ISERROR(CK35*SUM(CL36:$CM$36)),0,CK35*SUM(CL36:$CM$36))","v":0},{"$f":"IF(ISERROR(CL35*SUM(CM36:$CM$36)),0,CL35*SUM(CM36:$CM$36))","v":0},0]
[33,null,null,"-",null,"C-K",{"$f":"COUNTIF($D$4:$D$10004,F36)","v":0},null,null,{"$f":"$X$12","v":"J"},{"$f":"IF(OR(ISBLANK($AU$13),$AU$13=0),\"\",$AU$13)","v":""},{"$f":"IF(OR(ISBLANK($AU$24),$AU$24=0),\"\",$AU$24)","v":""},{"$f":"IF(OR(ISBLANK($AU$35),$AU$35=0),\"\",$AU$35)","v":""},{"$f":"IF(OR(ISBLANK($AU$46),$AU$46=0),\"\",$AU$46)","v":""},{"$f":"IF(OR(ISBLANK($AU$57),$AU$57=0),\"\",$AU$57)","v":""},{"$f":"IF(OR(ISBLANK($AU$68),$AU$68=0),\"\",$AU$68)","v":""},{"$f":"IF(OR(ISBLANK($AU$79),$AU$79=0),\"\",$AU$79)","v":""},{"$f":"IF(OR(ISBLANK($AU$90),$AU$90=0),\"\",$AU$90)","v":""},{"$f":"IF(OR(ISBLANK($AU$101),$AU$101=0),\"\",$AU$101)","v":""},{"$f":"IF(OR(ISBLANK($AU$112),$AU$112=0),\"\",$AU$112)","v":""},{"$f":"IF(OR(ISBLANK($AU$123),$AU$123=0),\"\",$AU$123)","v":""},{"$f":"SUM(K36:U36)","v":0},null,null,null,null,null,null,null,null,null,null,null,null,null,null,null,null,null,null,null,null,null,"-",null,"C-K",{"$f":"COUNTIF($AR$4:$AR$10004,AT36)","v":0},null,null,null,null,null,null,null,null,null,null,null,null,null,null,null,null,null,null,null,null,null,null,null,null,null,null,null,null,null,null,null,null,{"$f":"$X$3","v":"A"},{"$f":"K23","v":""},"","","","","","","","","","",null,null,0,0,0,0,0,0,0,0,0,0,0]
[34,null,null,"-",null,{"$f":"$X$6&\"-\"&$X$3","v":"D-A"},0,null,null,{"$f":"$X$11","v":"I"},{"$f":"IF(OR(ISBLANK($AU$12),$AU$12=0),\"\",$AU$12)","v":""},{"$f":"IF(OR(ISBLANK($AU$23),$AU$23=0),\"\",$AU$23)","v":""},{"$f":"IF(OR(ISBLANK($AU$34),$AU$34=0),\"\",$AU$34)","v":""},{"$f":"IF(OR(ISBLANK($AU$45),$AU$45=0),\"\",$AU$45)","v":""},{"$f":"IF(OR(ISBLANK($AU$56),$AU$56=0),\"\",$AU$56)","v":""},{"$f":"IF(OR(ISBLANK($AU$67),$AU$67=0),\"\",$AU$67)","v":""},{"$f":"IF(OR(ISBLANK($AU$78),$AU$78=0),\"\",$AU$78)","v":""},{"$f":"IF(OR(ISBLANK($AU$89),$AU$89=0),\"\",$AU$89)","v":""},{"$f":"IF(OR(ISBLANK($AU$100),$AU$100=0),\"\",$AU$100)","v":""},{"$f":"IF(OR(ISBLANK($AU$111),$AU$111=0),\"\",$AU$111)","v":""},{"$f":"IF(OR(ISBLANK($AU$122),$AU$122=0),\"\",$AU$122)","v":""},0,null,null,null,null,null,null,null,null,null,null,null,null,null,null,null,null,null,null,null,null,null,"-",null,{"$f":"$X$6&\"-\"&$X$3","v":"D-A"},0,null,null,{"$f":"BJ21-BJ22","v":0},{"$f":"1/V24^2","v":{"$error":"#DIV/0!"}},{"$f":"AX37*AY37","v":{"$error":"#DIV/0!"}},null,null,null,null,null,null,null,null,null,null,null,null,null,null,null,null,null,null,null,null,null,null,null,null,null,null,null,null,null,null,null,null,null,null,null,null,null,null,null,{"$f":"SUM(CC26:CM36)","v":0},null,null,null,null,null,null,null,null,null,null,null,null,{"$f":"SUM(CP26:CZ36)","v":0}]
[35,null,null,"-",null,{"$f":"$X$6&\"-\"&$X$4","v":"D-B"},0,null,null,{"$f":"$X$10","v":"H"},{"$f":"IF(OR(ISBLANK($AU$11),$AU$11=0),\"\",$AU$11)","v":""},{"$f":"IF(OR(ISBLANK($AU$22),$AU$22=0),\"\",$AU$22)","v":""},{"$f":"IF(OR(ISBLANK($AU$33),$AU$33=0),\"\",$AU$33)","v":""},{"$f":"IF(OR(ISBLANK($AU$44),$AU$44=0),\"\",$AU$44)","v":""},{"$f":"IF(OR(ISBLANK($AU$55),$AU$55=0),\"\",$AU$55)","v":""},{"$f":"IF(OR(ISBLANK($AU$66),$AU$66=0),\"\",$AU$66)","v":""},{"$f":"IF(OR(ISBLANK($AU$77),$AU$77=0),\"\",$AU$77)","v":""},{"$f":"IF(OR(ISBLANK($AU$88),$AU$88=0),\"\",$AU$88)","v":""},{"$f":"IF(OR(ISBLANK($AU$99),$AU$99=0),\"\",$AU$99)","v":""},{"$f":"IF(OR(ISBLANK($AU$110),$AU$110=0),\"\",$AU$110)","v":""},{"$f":"IF(OR(ISBLANK($AU$121),$AU$121=0),\"\",$AU$121)","v":""},0,null,null,null,null,null,null,null,null,null,null,null,null,null,null,null,null,null,null,null,null,null,"-",null,{"$f":"$X$6&\"-\"&$X$4","v":"D-B"},0]
[36,null,null,"-",null,{"$f":"$X$6&\"-\"&$X$5","v":"D-C"},0,null,null,{"$f":"$X$9","v":"G"},{"$f":"IF(OR(ISBLANK($AU$10),$AU$10=0),\"\",$AU$10)","v":""},{"$f":"IF(OR(ISBLANK($AU$21),$AU$21=0),\"\",$AU$21)","v":""},{"$f":"IF(OR(ISBLANK($AU$32),$AU$32=0),\"\",$AU$32)","v":""},{"$f":"IF(OR(ISBLANK($AU$43),$AU$43=0),\"\",$AU$43)","v":""},{"$f":"IF(OR(ISBLANK($AU$54),$AU$54=0),\"\",$AU$54)","v":""},{"$f":"IF(OR(ISBLANK($AU$65),$AU$65=0),\"\",$AU$65)","v":""},{"$f":"IF(OR(ISBLANK($AU$76),$AU$76=0),\"\",$AU$76)","v":""},{"$f":"IF(OR(ISBLANK($AU$87),$AU$87=0),\"\",$AU$87)","v":""},{"$f":"IF(OR(ISBLANK($AU$98),$AU$98=0),\"\",$AU$98)","v":""},{"$f":"IF(OR(ISBLANK($AU$109),$AU$109=0),\"\",$AU$109)","v":""},{"$f":"IF(OR(ISBLANK($AU$120),$AU$120=0),\"\",$AU$120)","v":""},0,null,null,null,null,null,null,null,null,null,null,null,null,null,null,null,null,null,null,null,null,null,"-",null,{"$f":"$X$6&\"-\"&$X$5","v":"D-C"},0,null,null,null,null,null,null,null,null,null,null,null,null,null,null,null,null,null,null,null,null,null,null,null,null,null,null,null,null,null,null,null,null,null,null,null,null,null,null,null,null,null,null,null,null,null,null,"Nämnaren","n(n-1)-t"]
[37,null,null,"-",null,{"$f":"$X$6&\"-\"&$X$6","v":"D-D"},0,null,null,{"$f":"$X$8","v":"F"},{"$f":"IF(OR(ISBLANK($AU$9),$AU$9=0),\"\",$AU$9)","v":""},{"$f":"IF(OR(ISBLANK($AU$20),$AU$20=0),\"\",$AU$20)","v":""},{"$f":"IF(OR(ISBLANK($AU$31),$AU$31=0),\"\",$AU$31)","v":""},{"$f":"IF(OR(ISBLANK($AU$42),$AU$42=0),\"\",$AU$42)","v":""},{"$f":"IF(OR(ISBLANK($AU$53),$AU$53=0),\"\",$AU$53)","v":""},{"$f":"IF(OR(ISBLANK($AU$64),$AU$64=0),\"\",$AU$64)","v":""},{"$f":"IF(OR(ISBLANK($AU$75),$AU$75=0),\"\",$AU$75)","v":""},{"$f":"IF(OR(ISBLANK($AU$86),$AU$86=0),\"\",$AU$86)","v":""},{"$f":"IF(OR(ISBLANK($AU$97),$AU$97=0),\"\",$AU$97)","v":""},{"$f":"IF(OR(ISBLANK($AU$108),$AU$108=0),\"\",$AU$108)","v":""},{"$f":"IF(OR(ISBLANK($AU$119),$AU$119=0),\"\",$AU$119)","v":""},0,null,null,null,null,null,null,null,null,null,null,null,null,null,null,null,null,null,null,null,null,null,"-",null,{"$f":"$X$6&\"-\"&$X$6","v":"D-D"},0,null,null,null,null,null,null,null,null,null,null,null,null,null,null,null,null,null,null,null,null,null,null,null,null,null,null,null,null,null,null,null,"Corrfactor",null,{"$f":"$X$3","v":"A"},{"$f":"$X$4","v":"B"},{"$f":"$X$5","v":"C"},{"$f":"$X$6","v":"D"},{"$f":"$X$7","v":"E"},{"$f":"$X$8","v":"F"},{"$f":"$X$9","v":"G"},{"$f":"$X$10","v":"H"},{"$f":"$X$11","v":"I"},{"$f":"$X$12","v":"J"},{"$f":"$X$13","v":"K"},null,null,null,{"$f":"CN37*(CN37-1)-CN65","v":0}]
[38,null,null,"-",null,{"$f":"$X$6&\"-\"&$X$7","v":"D-E"},0,null,null,{"$f":"X7","v":"E"},{"$f":"IF(OR(ISBLANK($AU$8),$AU$8=0),\"\",$AU$8)","v":""},{"$f":"IF(OR(ISBLANK($AU$19),$AU$19=0),\"\",$AU$19)","v":""},{"$f":"IF(OR(ISBLANK($AU$30),$AU$30=0),\"\",$AU$30)","v":""},{"$f":"IF(OR(ISBLANK($AU$41),$AU$41=0),\"\",$AU$41)","v":""},{"$f":"IF(OR(ISBLANK($AU$52),$AU$52=0),\"\",$AU$52)","v":""},{"$f":"IF(OR(ISBLANK($AU$63),$AU$63=0),\"\",$AU$63)","v":""},{"$f":"IF(OR(ISBLANK($AU$74),$AU$74=0),\"\",$AU$74)","v":""},{"$f":"IF(OR(ISBLANK($AU$85),$AU$85=0),\"\",$AU$85)","v":""},{"$f":"IF(OR(ISBLANK($AU$96),$AU$96=0),\"\",$AU$96)","v":""},{"$f":"IF(OR(ISBLANK($AU$107),$AU$107=0),\"\",$AU$107)","v":""},{"$f":"IF(OR(ISBLANK($AU$118),$AU$118=0),\"\",$AU$118)","v":""},0,null,null,null,null,null,null,null,null,null,null,null,null,null,null,null,null,null,null,null,null,null,"-",null,{"$f":"$X$6&\"-\"&$X$7","v":"D-E"},0,null,null,null,null,null,null,null,null,null,null,null,null,null,null,null,null,null,null,null,null,null,null,null,null,null,null,null,null,null,null,null,null,{"$f":"$X$13","v":"K"},{"$f":"K13","v":""},{"$f":"L13","v":""},{"$f":"M13","v":""},{"$f":"N13","v":""},{"$f":"O13","v":""},{"$f":"P13","v":""},{"$f":"Q13","v":""},{"$f":"R13","v":""},{"$f":"S13","v":""},{"$f":"T13","v":""},{"$f":"U13","v":""}]
[39,null,null,"-",null,{"$f":"$X$6&\"-\"&$X8","v":"D-F"},0,null,null,{"$f":"X6","v":"D"},{"$f":"IF(OR(ISBLANK($AU$7),$AU$7=0),\"\",$AU$7)","v":""},{"$f":"IF(OR(ISBLANK($AU$18),$AU$18=0),\"\",$AU$18)","v":""},{"$f":"IF(OR(ISBLANK($AU$29),$AU$29=0),\"\",$AU$29)","v":""},{"$f":"IF(OR(ISBLANK($AU$40),$AU$40=0),\"\",$AU$40)","v":""},{"$f":"IF(OR(ISBLANK($AU$51),$AU$51=0),\"\",$AU$51)","v":""},{"$f":"IF(OR(ISBLANK($AU$62),$AU$62=0),\"\",$AU$62)","v":""},{"$f":"IF(OR(ISBLANK($AU$73),$AU$73=0),\"\",$AU$73)","v":""},{"$f":"IF(OR(ISBLANK($AU$84),$AU$84=0),\"\",$AU$84)","v":""},{"$f":"IF(OR(ISBLANK($AU$95),$AU$95=0),\"\",$AU$95)","v":""},{"$f":"IF(OR(ISBLANK($AU$106),$AU$106=0),\"\",$AU$106)","v":""},{"$f":"IF(OR(ISBLANK($AU$117),$AU$117=0),\"\",$AU$117)","v":""},0,null,null,null,null,null,null,null,null,null,null,null,null,null,null,null,null,null,null,null,null,null,"-",null,{"$f":"$X$6&\"-\"&$X8","v":"D-F"},0,null,null,null,null,null,null,null,null,null,null,null,null,null,null,null,null,null,null,null,null,null,null,null,null,null,null,null,null,null,null,null,null,{"$f":"$X$12","v":"J"},"","","","","","","","","","",""]
[40,null,null,"-",null,"D-G",0,null,null,{"$f":"X5","v":"C"},{"$f":"IF(OR(ISBLANK($AU$6),$AU$6=0),\"\",$AU$6)","v":""},{"$f":"IF(OR(ISBLANK($AU$17),$AU$17=0),\"\",$AU$17)","v":""},{"$f":"IF(OR(ISBLANK($AU$28),$AU$28=0),\"\",$AU$28)","v":""},{"$f":"IF(OR(ISBLANK($AU$39),$AU$39=0),\"\",$AU$39)","v":""},{"$f":"IF(OR(ISBLANK($AU$50),$AU$50=0),\"\",$AU$50)","v":""},{"$f":"IF(OR(ISBLANK($AU$61),$AU$61=0),\"\",$AU$61)","v":""},{"$f":"IF(OR(ISBLANK($AU$72),$AU$72=0),\"\",$AU$72)","v":""},{"$f":"IF(OR(ISBLANK($AU$83),$AU$83=0),\"\",$AU$83)","v":""},{"$f":"IF(OR(ISBLANK($AU$94),$AU$94=0),\"\",$AU$94)","v":""},{"$f":"IF(OR(ISBLANK($AU$105),$AU$105=0),\"\",$AU$105)","v":""},{"$f":"IF(OR(ISBLANK($AU$116),$AU$116=0),\"\",$AU$116)","v":""},0,null,null,null,null,null,null,null,null,null,null,null,null,null,null,null,null,null,null,null,null,null,"-",null,"D-G",0,null,null,null,null,null,null,null,null,null,null,null,null,null,null,null,null,null,null,null,null,null,null,null,null,null,null,null,null,null,null,null,null,{"$f":"$X$11","v":"I"},"","","","","","","","","","",""]
[41,null,null,"-",null,"D-H",0,null,null,{"$f":"X4","v":"B"},{"$f":"IF(OR(ISBLANK($AU$5),$AU$5=0),\"\",$AU$5)","v":""},{"$f":"IF(OR(ISBLANK($AU$16),$AU$16=0),\"\",$AU$16)","v":""},{"$f":"IF(OR(ISBLANK($AU$27),$AU$27=0),\"\",$AU$27)","v":""},{"$f":"IF(OR(ISBLANK($AU$38),$AU$38=0),\"\",$AU$38)","v":""},{"$f":"IF(OR(ISBLANK($AU$49),$AU$49=0),\"\",$AU$49)","v":""},{"$f":"IF(OR(ISBLANK($AU$60),$AU$60=0),\"\",$AU$60)","v":""},{"$f":"IF(OR(ISBLANK($AU$71),$AU$71=0),\"\",$AU$71)","v":""},{"$f":"IF(OR(ISBLANK($AU$82),$AU$82=0),\"\",$AU$82)","v":""},{"$f":"IF(OR(ISBLANK($AU$93),$AU$93=0),\"\",$AU$93)","v":""},{"$f":"IF(OR(ISBLANK($AU$104),$AU$104=0),\"\",$AU$104)","v":""},{"$f":"IF(OR(ISBLANK($AU$115),$AU$115=0),\"\",$AU$115)","v":""},0,null,null,null,null,null,null,null,null,null,null,null,null,null,null,null,null,null,null,null,null,null,"-",null,"D-H",0,null,null,null,null,null,null,null,null,null,null,null,null,null,null,null,null,null,null,null,null,null,null,null,null,null,null,null,null,null,null,null,null,{"$f":"$X$10","v":"H"},"","","","","","","","","","",""]
[42,null,null,"-",null,"D-I",0,null,null,{"$f":"X3","v":"A"},{"$f":"IF(OR(ISBLANK($AU$4),$AU$4=0),\"\",$AU$4)","v":""},{"$f":"IF(OR(ISBLANK($AU$15),$AU$15=0),\"\",$AU$15)","v":""},{"$f":"IF(OR(ISBLANK($AU$26),$AU$26=0),\"\",$AU$26)","v":""},{"$f":"IF(OR(ISBLANK($AU$37),$AU$37=0),\"\",$AU$37)","v":""},{"$f":"IF(OR(ISBLANK($AU$48),$AU$48=0),\"\",$AU$48)","v":""},{"$f":"IF(OR(ISBLANK($AU$59),$AU$59=0),\"\",$AU$59)","v":""},{"$f":"IF(OR(ISBLANK($AU$70),$AU$70=0),\"\",$AU$70)","v":""},{"$f":"IF(OR(ISBLANK($AU$81),$AU$81=0),\"\",$AU$81)","v":""},{"$f":"IF(OR(ISBLANK($AU$92),$AU$92=0),\"\",$AU$92)","v":""},{"$f":"IF(OR(ISBLANK($AU$103),$AU$103=0),\"\",$AU$103)","v":""},{"$f":"IF(OR(ISBLANK($AU$114),$AU$114=0),\"\",$AU$114)","v":""},0,null,null,null,null,null,null,null,null,null,null,null,null,null,null,null,null,null,null,null,null,null,"-",null,"D-I",0,null,null,null,null,null,null,null,null,null,null,null,null,null,null,null,null,null,null,null,null,null,null,null,null,null,null,null,null,null,null,null,null,{"$f":"$X$9","v":"G"},"","","","","","","","","","",""]
[43,null,null,"-",null,"D-J",0,null,null,null,{"$f":"SUM(K35:K45)","v":0},{"$f":"SUM(L35:L45)","v":0},0,0,0,0,0,0,0,0,0,{"$f":"SUM(K35:U45)","v":0},null,null,null,null,null,null,null,null,null,null,null,null,null,null,null,null,null,null,null,null,null,"-",null,"D-J",0,null,null,null,null,null,null,null,null,null,null,null,null,null,null,null,null,null,null,null,null,null,null,null,null,null,null,null,null,null,null,null,null,{"$f":"$X$8","v":"F"},"","","","","","","","","","",""]
[44,null,null,"-",null,"D-K",0,null,"PA",{"$f":"IF(ISERROR(SUM(K45,L44,M43,N42,O41,P40,Q39,R38,S37,T36,U35)/V46),\"\",SUM(K45,L44,M43,N42,O41,P40,Q39,R38,S37,T36,U35)/V46)","v":""},null,null,null,null,null,null,null,null,null,null,null,null,null,null,null,null,null,null,null,null,null,null,null,null,null,null,null,null,null,null,null,null,null,"-",null,"D-K",0,null,null,null,null,null,null,null,null,null,null,null,null,null,null,null,null,null,null,null,null,null,null,null,null,null,null,null,null,null,null,null,null,{"$f":"$X$7","v":"E"},"","","","","","","","","","",""]
[45,null,null,"-",null,{"$f":"$X$7&\"-\"&$X$3","v":"E-A"},0,null,null,null,null,null,null,null,null,null,null,null,null,null,null,null,null,null,null,null,null,null,null,null,null,null,null,null,null,null,null,null,null,null,null,null,null,"-",null,{"$f":"$X$7&\"-\"&$X$3","v":"E-A"},0,null,null,null,null,null,null,null,null,null,null,null,null,null,null,null,null,null,null,null,null,null,null,null,null,null,null,null,null,null,null,null,null,{"$f":"$X$6","v":"D"},"","","","","","","","","","",""]
[46,null,null,"-",null,{"$f":"$X$7&\"-\"&$X$4","v":"E-B"},0,null,null,null,null,null,null,null,null,null,null,null,null,null,null,null,null,null,null,null,null,null,null,null,null,null,null,null,null,null,null,null,null,null,null,null,null,"-",null,{"$f":"$X$7&\"-\"&$X$4","v":"E-B"},0,null,null,null,null,null,null,null,null,null,null,null,null,null,null,null,null,null,null,null,null,null,null,null,null,null,null,null,null,null,null,null,null,{"$f":"$X$5","v":"C"},"","","","","","","","","","",""]
[47,null,null,"-",null,{"$f":"$X$7&\"-\"&$X$5","v":"E-C"},0,null,null,null,null,null,null,null,null,null,null,null,null,null,null,null,null,null,null,null,null,null,null,null,null,null,null,null,null,null,null,null,null,null,null,null,null,"-",null,{"$f":"$X$7&\"-\"&$X$5","v":"E-C"},0,null,null,null,null,null,null,null,null,null,null,null,null,null,null,null,null,null,null,null,null,null,null,null,null,null,null,null,null,null,null,null,null,{"$f":"$X$4","v":"B"},"","","","","","","","","","",""]
[48,null,null,"-",null,{"$f":"$X$7&\"-\"&$X$6","v":"E-D"},0,null,null,null,null,null,null,null,null,null,null,null,null,null,null,null,null,null,null,null,null,null,null,null,null,null,null,null,null,null,null,null,null,null,null,null,null,"-",null,{"$f":"$X$7&\"-\"&$X$6","v":"E-D"},0,null,null,null,null,null,null,null,null,null,null,null,null,null,null,null,null,null,null,null,null,null,null,null,null,null,null,null,null,null,null,null,null,{"$f":"$X$3","v":"A"},{"$f":"K23","v":""},{"$f":"L23","v":""},"","","","","","","","",""]
[49,null,null,"-",null,{"$f":"$X$7&\"-\"&$X$7","v":"E-E"},0,null,null,null,null,null,null,null,null,null,null,null,null,null,null,null,null,null,null,null,null,null,null,null,null,null,null,null,null,null,null,null,null,null,null,null,null,"-",null,{"$f":"$X$7&\"-\"&$X$7","v":"E-E"},0]
[50,null,null,"-",null,{"$f":"$X$7&\"-\"&$X8","v":"E-F"},0,null,null,"ROC","C(x)%","C(y)%",null,null,null,null,null,null,null,null,null,null,null,null,null,null,null,null,null,null,null,null,null,null,null,null,null,null,null,null,null,null,null,"-",null,{"$f":"$X$7&\"-\"&$X8","v":"E-F"},0]
[51,null,null,"-",null,"E-G",0,null,null,0,0,0,null,null,null,null,null,null,null,null,null,null,null,null,null,null,null,null,null,null,null,null,null,null,null,null,null,null,null,null,null,null,null,"-",null,"E-G",0,null,null,null,null,null,null,null,null,null,null,null,null,null,null,null,null,null,null,null,null,null,null,null,null,null,null,null,null,null,null,null,null,null,{"$f":"IF(ISERROR(CC41*(CC41-1)),0,CC41*(CC41-1))","v":0},{"$f":"IF(ISERROR(CD41*(CD41-1)),0,CD41*(CD41-1))","v":0},0,0,0,0,0,0,0,0,0]
[52,null,null,"-",null,"E-H",0,null,null,{"$f":"$AY$28/$BI$28","v":{"$error":"#DIV/0!"}},{"$f":"$AY$28/$BI$28","v":{"$error":"#DIV/0!"}},{"$f":"$AY$30/$BI$30","v":{"$error":"#DIV/0!"}},null,null,null,null,null,null,null,null,null,null,null,null,null,null,null,null,null,null,null,null,null,null,null,null,null,null,null,null,null,null,null,"-",null,"E-H",0,null,null,null,null,null,null,null,null,null,null,null,null,null,null,null,null,null,null,null,null,null,null,null,null,null,null,null,null,null,null,null,null,null,{"$f":"IF(ISERROR(CC42*(CC42-1)),0,CC42*(CC42-1))","v":0},0,0,0,0,0,0,0,0,0,0]
[53,null,null,"-",null,"E-I",0,null,null,{"$f":"$AZ$28/$BI$28","v":{"$error":"#DIV/0!"}},{"$f":"$AZ$28/$BI$28","v":{"$error":"#DIV/0!"}},{"$f":"$AZ$30/$BI$30","v":{"$error":"#DIV/0!"}},null,null,null,null,null,null,null,null,null,null,null,null,null,null,null,null,null,null,null,null,null,null,null,null,null,null,null,null,null,null,null,"-",null,"E-I",0,null,null,null,null,null,null,null,null,null,null,null,null,null,null,null,null,null,null,null,null,null,null,null,null,null,null,null,null,null,null,null,null,null,0,0,0,0,0,0,0,0,0,0,0]
[54,null,null,"-",null,"E-J",0,null,null,{"$f":"$BA$28/$BI$28","v":{"$error":"#DIV/0!"}},{"$f":"$BA$28/$BI$28","v":{"$error":"#DIV/0!"}},{"$f":"$BA$30/$BI$30","v":{"$error":"#DIV/0!"}},null,null,null,null,null,null,null,null,null,null,null,null,null,null,null,null,null,null,null,null,null,null,null,null,null,null,null,null,null,null,null,"-",null,"E-J",0,null,null,null,null,null,null,null,null,null,null,null,null,null,null,null,null,null,null,null,null,null,null,null,null,null,null,null,null,null,null,null,null,null,0,0,0,0,0,0,0,0,0,0,0]
[55,null,null,"-",null,"E-K",0,null,null,{"$f":"$BB$28/$BI$28","v":{"$error":"#DIV/0!"}},{"$f":"$BB$28/$BI$28","v":{"$error":"#DIV/0!"}},{"$f":"$BB$30/$BI$30","v":{"$error":"#DIV/0!"}},null,null,null,null,null,null,null,null,null,null,null,null,null,null,null,null,null,null,null,null,null,null,null,null,null,null,null,null,null,null,null,"-",null,"E-K",0,null,null,null,null,null,null,null,null,null,null,null,null,null,null,null,null,null,null,null,null,null,null,null,null,null,null,null,null,null,null,null,null,null,0,0,0,0,0,0,0,0,0,0,0,null,null,"Final disorder (D)"]
[56,null,null,"-",null,{"$f":"$X$8&\"-\"&$X$3","v":"F-A"},0,null,null,{"$f":"$BC$28/$BI$28","v":{"$error":"#DIV/0!"}},{"$f":"$BC$28/$BI$28","v":{"$error":"#DIV/0!"}},{"$f":"$BC$30/$BI$30","v":{"$error":"#DIV/0!"}},null,null,null,null,null,null,null,null,null,null,null,null,null,null,null,null,null,null,null,null,null,null,null,null,null,null,null,null,null,null,null,"-",null,{"$f":"$X$8&\"-\"&$X$3","v":"F-A"},0,null,null,null,null,null,null,null,null,null,null,null,null,null,null,null,null,null,null,null,null,null,null,null,null,null,null,null,null,null,null,null,null,null,0,0,0,0,0,0,0,0,0,0,0]
[57,null,null,"-",null,{"$f":"$X$8&\"-\"&$X$4","v":"F-B"},0,null,null,{"$f":"$BD$28/$BI$28","v":{"$error":"#DIV/0!"}},{"$f":"$BD$28/$BI$28","v":{"$error":"#DIV/0!"}},{"$f":"$BD$30/$BI$30","v":{"$error":"#DIV/0!"}},null,null,null,null,null,null,null,null,null,null,null,null,null,null,null,null,null,null,null,null,null,null,null,null,null,null,null,null,null,null,null,"-",null,{"$f":"$X$8&\"-\"&$X$4","v":"F-B"},0,null,null,null,null,null,null,null,null,null,null,null,null,null,null,null,null,null,null,null,null,null,null,null,null,null,null,null,null,null,null,null,null,null,0,0,0,0,0,0,0,0,0,0,0,null,null,{"$f":"DA37*2/CQ40","v":{"$error":"#DIV/0!"}}]
[58,null,null,"-",null,{"$f":"$X$8&\"-\"&$X$5","v":"F-C"},0,null,null,{"$f":"$BE$28/$BI$28","v":{"$error":"#DIV/0!"}},{"$f":"$BE$28/$BI$28","v":{"$error":"#DIV/0!"}},{"$f":"$BE$30/$BI$30","v":{"$error":"#DIV/0!"}},null,null,null,null,null,null,null,null,null,null,null,null,null,null,null,null,null,null,null,null,null,null,null,null,null,null,null,null,null,null,null,"-",null,{"$f":"$X$8&\"-\"&$X$5","v":"F-C"},0,null,null,null,null,null,null,null,null,null,null,null,null,null,null,null,null,null,null,null,null,null,null,null,null,null,null,null,null,null,null,null,null,null,0,0,0,0,0,0,0,0,0,0,0]
[59,null,null,"-",null,{"$f":"$X$8&\"-\"&$X$6","v":"F-D"},0,null,null,{"$f":"$BF$28/$BI$28","v":{"$error":"#DIV/0!"}},{"$f":"$BF$28/$BI$28","v":{"$error":"#DIV/0!"}},{"$f":"$BF$30/$BI$30","v":{"$error":"#DIV/0!"}},null,null,null,null,null,null,null,null,null,null,null,null,null,null,null,null,null,null,null,null,null,null,null,null,null,null,null,null,null,null,null,"-",null,{"$f":"$X$8&\"-\"&$X$6","v":"F-D"},0,null,null,null,null,null,null,null,null,null,null,null,null,null,null,null,null,null,null,null,null,null,null,null,null,null,null,null,null,null,null,null,null,null,0,0,0,0,0,0,0,0,0,0,0]
[60,null,null,"-",null,{"$f":"$X$8&\"-\"&$X$7","v":"F-E"},0,null,null,{"$f":"$BG$28/$BI$28","v":{"$error":"#DIV/0!"}},{"$f":"$BG$28/$BI$28","v":{"$error":"#DIV/0!"}},{"$f":"$BG$30/$BI$30","v":{"$error":"#DIV/0!"}},null,null,null,null,null,null,null,null,null,null,null,null,null,null,null,null,null,null,null,null,null,null,null,null,null,null,null,null,null,null,null,"-",null,{"$f":"$X$8&\"-\"&$X$7","v":"F-E"},0,null,null,null,null,null,null,null,null,null,null,null,null,null,null,null,null,null,null,null,null,null,null,null,null,null,null,null,null,null,null,null,null,null,0,0,0,0,0,0,0,0,0,0,0]
[61,null,null,"-",null,{"$f":"$X$8&\"-\"&$X$8","v":"F-F"},0,null,null,{"$f":"$BH$28/$BI$28","v":{"$error":"#DIV/0!"}},{"$f":"$BH$28/$BI$28","v":{"$error":"#DIV/0!"}},{"$f":"$BH$30/$BI$30","v":{"$error":"#DIV/0!"}},null,null,null,null,null,null,null,null,null,null,null,null,null,null,null,null,null,null,null,null,null,null,null,null,null,null,null,null,null,null,null,"-",null,{"$f":"$X$8&\"-\"&$X$8","v":"F-F"},0,null,null,null,null,null,null,null,null,null,null,null,null,null,null,null,null,null,null,null,null,null,null,null,null,null,null,null,null,null,null,null,null,null,0,0,0,0,0,0,0,0,0,0,0]
[62,null,null,"-",null,{"$f":"$X$8&\"-\"&$X$9","v":"F-G"},0,null,null,1,1,1,null,null,null,null,null,null,null,null,null,null,null,null,null,null,null,null,null,null,null,null,null,null,null,null,null,null,null,null,null,null,null,"-",null,{"$f":"$X$8&\"-\"&$X$9","v":"F-G"},0,null,null,null,null,null,null,null,null,null,null,null,null,null,null,null,null,null,null,null,null,null,null,null,null,null,null,null,null,null,null,null,null,null,null,null,null,null,null,null,null,null,null,null,null,{"$f":"SUM(CC54:CM64)","v":0}]
[63,null,null,"-",null,{"$f":"$X$8&\"-\"&$X$10","v":"F-H"},0,null,null,null,null,null,null,null,null,null,null,null,null,null,null,null,null,null,null,null,null,null,null,null,null,null,null,null,null,null,null,null,null,null,null,null,null,"-",null,{"$f":"$X$8&\"-\"&$X$10","v":"F-H"},0]
[64,null,null,"-",null,{"$f":"$X$8&\"-\"&$X$11","v":"F-I"},0,null,null,null,null,null,null,null,null,null,null,null,null,null,null,null,null,null,null,null,null,null,null,null,null,null,null,null,null,null,null,null,null,null,null,null,null,"-",null,{"$f":"$X$8&\"-\"&$X$11","v":"F-I"},0]
[65,null,null,"-",null,{"$f":"$X$8&\"-\"&$X$12","v":"F-J"},{"$f":"COUNTIF($D$4:$D$10004,F68)","v":0},null,null,null,null,null,null,null,null,null,null,null,null,null,null,null,null,null,null,null,null,null,null,null,null,null,null,null,null,null,null,null,null,null,null,null,null,{"$f":"AP68&\"-\"&AQ68","v":"-"},null,{"$f":"$X$8&\"-\"&$X$12","v":"F-J"},{"$f":"COUNTIF($AR$4:$AR$10004,AT68)","v":0}]
[66,null,null,{"$f":"TRIM(B69)&\"-\"&TRIM(C69)","v":"-"},null,{"$f":"$X$8&\"-\"&$X$13","v":"F-K"},0,null,null,null,null,null,null,null,null,null,null,null,null,null,null,null,null,null,null,null,null,null,null,null,null,null,null,null,null,null,null,null,null,null,null,null,null,"-",null,{"$f":"$X$8&\"-\"&$X$13","v":"F-K"},0]
[67,null,null,"-",null,{"$f":"$X$9&\"-\"&$X$3","v":"G-A"},0,null,null,null,null,null,null,null,null,null,null,null,null,null,null,null,null,null,null,null,null,null,null,null,null,null,null,null,null,null,null,null,null,null,null,null,null,"-",null,{"$f":"$X$9&\"-\"&$X$3","v":"G-A"},0]
[68,null,null,"-",null,{"$f":"$X$9&\"-\"&$X$4","v":"G-B"},0,null,null,null,null,null,null,null,null,null,null,null,null,null,null,null,null,null,null,null,null,null,null,null,null,null,null,null,null,null,null,null,null,null,null,null,null,"-",null,{"$f":"$X$9&\"-\"&$X$4","v":"G-B"},0]
[69,null,null,"-",null,{"$f":"$X$9&\"-\"&$X$5","v":"G-C"},0,null,null,null,null,null,null,null,null,null,null,null,null,null,null,null,null,null,null,null,null,null,null,null,null,null,null,null,null,null,null,null,null,null,null,null,null,"-",null,{"$f":"$X$9&\"-\"&$X$5","v":"G-C"},0]
[70,null,null,"-",null,{"$f":"$X$9&\"-\"&$X$6","v":"G-D"},0,null,null,null,null,null,null,null,null,null,null,null,null,null,null,null,null,null,null,null,null,null,null,null,null,null,null,null,null,null,null,null,null,null,null,null,null,"-",null,{"$f":"$X$9&\"-\"&$X$6","v":"G-D"},0]
[71,null,null,"-",null,{"$f":"$X$9&\"-\"&$X$7","v":"G-E"},0,null,null,null,null,null,null,null,null,null,null,null,null,null,null,null,null,null,null,null,null,null,null,null,null,null,null,null,null,null,null,null,null,null,null,null,null,"-",null,{"$f":"$X$9&\"-\"&$X$7","v":"G-E"},0]
[72,null,null,"-",null,{"$f":"$X$9&\"-\"&$X$8","v":"G-F"},0,null,null,null,null,null,null,null,null,null,null,null,null,null,null,null,null,null,null,null,null,null,null,null,null,null,null,null,null,null,null,null,null,null,null,null,null,"-",null,{"$f":"$X$9&\"-\"&$X$8","v":"G-F"},0]
[73,null,null,"-",null,{"$f":"$X$9&\"-\"&$X$9","v":"G-G"},0,null,null,null,null,null,null,null,null,null,null,null,null,null,null,null,null,null,null,null,null,null,null,null,null,null,null,null,null,null,null,null,null,null,null,null,null,"-",null,{"$f":"$X$9&\"-\"&$X$9","v":"G-G"},0]
[74,null,null,"-",null,{"$f":"$X$9&\"-\"&$X$10","v":"G-H"},0,null,null,null,null,null,null,null,null,null,null,null,null,null,null,null,null,null,null,null,null,null,null,null,null,null,null,null,null,null,null,null,null,null,null,null,null,"-",null,{"$f":"$X$9&\"-\"&$X$10","v":"G-H"},0]
[75,null,null,"-",null,{"$f":"$X$9&\"-\"&$X$11","v":"G-I"},0,null,null,null,null,null,null,null,null,null,null,null,null,null,null,null,null,null,null,null,null,null,null,null,null,null,null,null,null,null,null,null,null,null,null,null,null,"-",null,{"$f":"$X$9&\"-\"&$X$11","v":"G-I"},0]
[76,null,null,"-",null,{"$f":"$X$9&\"-\"&$X$12","v":"G-J"},0,null,null,null,null,null,null,null,null,null,null,null,null,null,null,null,null,null,null,null,null,null,null,null,null,null,null,null,null,null,null,null,null,null,null,null,null,"-",null,{"$f":"$X$9&\"-\"&$X$12","v":"G-J"},0]
[77,null,null,"-",null,{"$f":"$X$9&\"-\"&$X$13","v":"G-K"},0,null,null,null,null,null,null,null,null,null,null,null,null,null,null,null,null,null,null,null,null,null,null,null,null,null,null,null,null,null,null,null,null,null,null,null,null,"-",null,{"$f":"$X$9&\"-\"&$X$13","v":"G-K"},0]
[78,null,null,"-",null,{"$f":"$X$10&\"-\"&$X$3","v":"H-A"},0,null,null,null,null,null,null,null,null,null,null,null,null,null,null,null,null,null,null,null,null,null,null,null,null,null,null,null,null,null,null,null,null,null,null,null,null,"-",null,{"$f":"$X$10&\"-\"&$X$3","v":"H-A"},0]
[79,null,null,"-",null,{"$f":"$X$10&\"-\"&$X$4","v":"H-B"},0,null,null,null,null,null,null,null,null,null,null,null,null,null,null,null,null,null,null,null,null,null,null,null,null,null,null,null,null,null,null,null,null,null,null,null,null,"-",null,{"$f":"$X$10&\"-\"&$X$4","v":"H-B"},0]
[80,null,null,"-",null,{"$f":"$X$10&\"-\"&$X$5","v":"H-C"},0,null,null,null,null,null,null,null,null,null,null,null,null,null,null,null,null,null,null,null,null,null,null,null,null,null,null,null,null,null,null,null,null,null,null,null,null,"-",null,{"$f":"$X$10&\"-\"&$X$5","v":"H-C"},0]
[81,null,null,"-",null,{"$f":"$X$10&\"-\"&$X$6","v":"H-D"},0,null,null,null,null,null,null,null,null,null,null,null,null,null,null,null,null,null,null,null,null,null,null,null,null,null,null,null,null,null,null,null,null,null,null,null,null,"-",null,{"$f":"$X$10&\"-\"&$X$6","v":"H-D"},0]
[82,null,null,"-",null,{"$f":"$X$10&\"-\"&$X$7","v":"H-E"},0,null,null,null,null,null,null,null,null,null,null,null,null,null,null,null,null,null,null,null,null,null,null,null,null,null,null,null,null,null,null,null,null,null,null,null,null,"-",null,{"$f":"$X$10&\"-\"&$X$7","v":"H-E"},0]
[83,null,null,"-",null,{"$f":"$X$10&\"-\"&$X$8","v":"H-F"},0,null,null,null,null,null,null,null,null,null,null,null,null,null,null,null,null,null,null,null,null,null,null,null,null,null,null,null,null,null,null,null,null,null,null,null,null,"-",null,{"$f":"$X$10&\"-\"&$X$8","v":"H-F"},0]
[84,null,null,"-",null,{"$f":"$X$10&\"-\"&$X$9","v":"H-G"},0,null,null,null,null,null,null,null,null,null,null,null,null,null,null,null,null,null,null,null,null,null,null,null,null,null,null,null,null,null,null,null,null,null,null,null,null,"-",null,{"$f":"$X$10&\"-\"&$X$9","v":"H-G"},0]
[85,null,null,"-",null,{"$f":"$X$10&\"-\"&$X$10","v":"H-H"},0,null,null,null,null,null,null,null,null,null,null,null,null,null,null,null,null,null,null,null,null,null,null,null,null,null,null,null,null,null,null,null,null,null,null,null,null,"-",null,{"$f":"$X$10&\"-\"&$X$10","v":"H-H"},0]
[86,null,null,"-",null,{"$f":"$X$10&\"-\"&$X$11","v":"H-I"},0,null,null,null,null,null,null,null,null,null,null,null,null,null,null,null,null,null,null,null,null,null,null,null,null,null,null,null,null,null,null,null,null,null,null,null,null,"-",null,{"$f":"$X$10&\"-\"&$X$11","v":"H-I"},0]
[87,null,null,"-",null,{"$f":"$X$10&\"-\"&$X$12","v":"H-J"},0,null,null,null,null,null,null,null,null,null,null,null,null,null,null,null,null,null,null,null,null,null,null,null,null,null,null,null,null,null,null,null,null,null,null,null,null,"-",null,{"$f":"$X$10&\"-\"&$X$12","v":"H-J"},0]
[88,null,null,"-",null,{"$f":"$X$10&\"-\"&$X$13","v":"H-K"},0,null,null,null,null,null,null,null,null,null,null,null,null,null,null,null,null,null,null,null,null,null,null,null,null,null,null,null,null,null,null,null,null,null,null,null,null,"-",null,{"$f":"$X$10&\"-\"&$X$13","v":"H-K"},0]
[89,null,null,"-",null,{"$f":"$X$11&\"-\"&$X$3","v":"I-A"},0,null,null,null,null,null,null,null,null,null,null,null,null,null,null,null,null,null,null,null,null,null,null,null,null,null,null,null,null,null,null,null,null,null,null,null,null,"-",null,{"$f":"$X$11&\"-\"&$X$3","v":"I-A"},0]
[90,null,null,"-",null,{"$f":"$X$11&\"-\"&$X$4","v":"I-B"},0,null,null,null,null,null,null,null,null,null,null,null,null,null,null,null,null,null,null,null,null,null,null,null,null,null,null,null,null,null,null,null,null,null,null,null,null,"-",null,{"$f":"$X$11&\"-\"&$X$4","v":"I-B"},0]
[91,null,null,"-",null,{"$f":"$X$11&\"-\"&$X$5","v":"I-C"},0,null,null,null,null,null,null,null,null,null,null,null,null,null,null,null,null,null,null,null,null,null,null,null,null,null,null,null,null,null,null,null,null,null,null,null,null,"-",null,{"$f":"$X$11&\"-\"&$X$5","v":"I-C"},0]
[92,null,null,"-",null,{"$f":"$X$11&\"-\"&$X$6","v":"I-D"},0,null,null,null,null,null,null,null,null,null,null,null,null,null,null,null,null,null,null,null,null,null,null,null,null,null,null,null,null,null,null,null,null,null,null,null,null,"-",null,{"$f":"$X$11&\"-\"&$X$6","v":"I-D"},0]
[93,null,null,"-",null,{"$f":"$X$11&\"-\"&$X$7","v":"I-E"},0,null,null,null,null,null,null,null,null,null,null,null,null,null,null,null,null,null,null,null,null,null,null,null,null,null,null,null,null,null,null,null,null,null,null,null,null,"-",null,{"$f":"$X$11&\"-\"&$X$7","v":"I-E"},0]
[94,null,null,"-",null,{"$f":"$X$11&\"-\"&$X$8","v":"I-F"},0,null,null,null,null,null,null,null,null,null,null,null,null,null,null,null,null,null,null,null,null,null,null,null,null,null,null,null,null,null,null,null,null,null,null,null,null,"-",null,{"$f":"$X$11&\"-\"&$X$8","v":"I-F"},0]
[95,null,null,"-",null,{"$f":"$X$11&\"-\"&$X$9","v":"I-G"},0,null,null,null,null,null,null,null,null,null,null,null,null,null,null,null,null,null,null,null,null,null,null,null,null,null,null,null,null,null,null,null,null,null,null,null,null,"-",null,{"$f":"$X$11&\"-\"&$X$9","v":"I-G"},0]
[96,null,null,"-",null,{"$f":"$X$11&\"-\"&$X$10","v":"I-H"},0,null,null,null,null,null,null,null,null,null,null,null,null,null,null,null,null,null,null,null,null,null,null,null,null,null,null,null,null,null,null,null,null,null,null,null,null,"-",null,{"$f":"$X$11&\"-\"&$X$10","v":"I-H"},0]
[97,null,null,"-",null,{"$f":"$X$11&\"-\"&$X$11","v":"I-I"},{"$f":"COUNTIF($D$4:$D$10004,F100)","v":0},null,null,null,null,null,null,null,null,null,null,null,null,null,null,null,null,null,null,null,null,null,null,null,null,null,null,null,null,null,null,null,null,null,null,null,null,"-",null,{"$f":"$X$11&\"-\"&$X$11","v":"I-I"},{"$f":"COUNTIF($AR$4:$AR$10004,AT100)","v":0}]
[98,null,null,"-",null,{"$f":"$X$11&\"-\"&$X$12","v":"I-J"},0,null,null,null,null,null,null,null,null,null,null,null,null,null,null,null,null,null,null,null,null,null,null,null,null,null,null,null,null,null,null,null,null,null,null,null,null,"-",null,{"$f":"$X$11&\"-\"&$X$12","v":"I-J"},0]
[99,null,null,"-",null,{"$f":"$X$11&\"-\"&$X$13","v":"I-K"},0,null,null,null,null,null,null,null,null,null,null,null,null,null,null,null,null,null,null,null,null,null,null,null,null,null,null,null,null,null,null,null,null,null,null,null,null,"-",null,{"$f":"$X$11&\"-\"&$X$13","v":"I-K"},0]
[100,null,null,"-",null,{"$f":"$X$12&\"-\"&$X$3","v":"J-A"},0,null,null,null,null,null,null,null,null,null,null,null,null,null,null,null,null,null,null,null,null,null,null,null,null,null,null,null,null,null,null,null,null,null,null,null,null,{"$f":"AP103&\"-\"&AQ103","v":"-"},null,{"$f":"$X$12&\"-\"&$X$3","v":"J-A"},0]
[101,null,null,"-",null,{"$f":"$X$12&\"-\"&$X$4","v":"J-B"},0,null,null,null,null,null,null,null,null,null,null,null,null,null,null,null,null,null,null,null,null,null,null,null,null,null,null,null,null,null,null,null,null,null,null,null,null,{"$f":"AP104&\"-\"&AQ104","v":"-"},null,{"$f":"$X$12&\"-\"&$X$4","v":"J-B"},0]
[102,null,null,"-",null,{"$f":"$X$12&\"-\"&$X$5","v":"J-C"},0,null,null,null,null,null,null,null,null,null,null,null,null,null,null,null,null,null,null,null,null,null,null,null,null,null,null,null,null,null,null,null,null,null,null,null,null,"-",null,{"$f":"$X$12&\"-\"&$X$5","v":"J-C"},0]
[103,null,null,"-",null,{"$f":"$X$12&\"-\"&$X$6","v":"J-D"},0,null,null,null,null,null,null,null,null,null,null,null,null,null,null,null,null,null,null,null,null,null,null,null,null,null,null,null,null,null,null,null,null,null,null,null,null,"-",null,{"$f":"$X$12&\"-\"&$X$6","v":"J-D"},0]
[104,null,null,"-",null,{"$f":"$X$12&\"-\"&$X$7","v":"J-E"},0,null,null,null,null,null,null,null,null,null,null,null,null,null,null,null,null,null,null,null,null,null,null,null,null,null,null,null,null,null,null,null,null,null,null,null,null,"-",null,{"$f":"$X$12&\"-\"&$X$7","v":"J-E"},0]
[105,null,null,"-",null,{"$f":"$X$12&\"-\"&$X$8","v":"J-F"},0,null,null,null,null,null,null,null,null,null,null,null,null,null,null,null,null,null,null,null,null,null,null,null,null,null,null,null,null,null,null,null,null,null,null,null,null,"-",null,{"$f":"$X$12&\"-\"&$X$8","v":"J-F"},0]
[106,null,null,"-",null,{"$f":"$X$12&\"-\"&$X$9","v":"J-G"},0,null,null,null,null,null,null,null,null,null,null,null,null,null,null,null,null,null,null,null,null,null,null,null,null,null,null,null,null,null,null,null,null,null,null,null,null,"-",null,{"$f":"$X$12&\"-\"&$X$9","v":"J-G"},0]
[107,null,null,"-",null,{"$f":"$X$12&\"-\"&$X$10","v":"J-H"},0,null,null,null,null,null,null,null,null,null,null,null,null,null,null,null,null,null,null,null,null,null,null,null,null,null,null,null,null,null,null,null,null,null,null,null,null,"-",null,{"$f":"$X$12&\"-\"&$X$10","v":"J-H"},0]
[108,null,null,"-",null,{"$f":"$X$12&\"-\"&$X$11","v":"J-I"},0,null,null,null,null,null,null,null,null,null,null,null,null,null,null,null,null,null,null,null,null,null,null,null,null,null,null,null,null,null,null,null,null,null,null,null,null,"-",null,{"$f":"$X$12&\"-\"&$X$11","v":"J-I"},0]
[109,null,null,"-",null,{"$f":"$X$12&\"-\"&$X$12","v":"J-J"},0,null,null,null,null,null,null,null,null,null,null,null,null,null,null,null,null,null,null,null,null,null,null,null,null,null,null,null,null,null,null,null,null,null,null,null,null,"-",null,{"$f":"$X$12&\"-\"&$X$12","v":"J-J"},0]
[110,null,null,"-",null,{"$f":"$X$12&\"-\"&$X$13","v":"J-K"},0,null,null,null,null,null,null,null,null,null,null,null,null,null,null,null,null,null,null,null,null,null,null,null,null,null,null,null,null,null,null,null,null,null,null,null,null,"-",null,{"$f":"$X$12&\"-\"&$X$13","v":"J-K"},0]
[111,null,null,"-",null,{"$f":"$X$13&\"-\"&$X$3","v":"K-A"},0,null,null,null,null,null,null,null,null,null,null,null,null,null,null,null,null,null,null,null,null,null,null,null,null,null,null,null,null,null,null,null,null,null,null,null,null,"-",null,{"$f":"$X$13&\"-\"&$X$3","v":"K-A"},0]
[112,null,null,"-",null,{"$f":"$X$13&\"-\"&$X$4","v":"K-B"},0,null,null,null,null,null,null,null,null,null,null,null,null,null,null,null,null,null,null,null,null,null,null,null,null,null,null,null,null,null,null,null,null,null,null,null,null,"-",null,{"$f":"$X$13&\"-\"&$X$4","v":"K-B"},0]
[113,null,null,"-",null,{"$f":"$X$13&\"-\"&$X$5","v":"K-C"},0,null,null,null,null,null,null,null,null,null,null,null,null,null,null,null,null,null,null,null,null,null,null,null,null,null,null,null,null,null,null,null,null,null,null,null,null,"-",null,{"$f":"$X$13&\"-\"&$X$5","v":"K-C"},0]
[114,null,null,"-",null,{"$f":"$X$13&\"-\"&$X$6","v":"K-D"},0,null,null,null,null,null,null,null,null,null,null,null,null,null,null,null,null,null,null,null,null,null,null,null,null,null,null,null,null,null,null,null,null,null,null,null,null,"-",null,{"$f":"$X$13&\"-\"&$X$6","v":"K-D"},0]
[115,null,null,"-",null,{"$f":"$X$13&\"-\"&$X$7","v":"K-E"},0,null,null,null,null,null,null,null,null,null,null,null,null,null,null,null,null,null,null,null,null,null,null,null,null,null,null,null,null,null,null,null,null,null,null,null,null,"-",null,{"$f":"$X$13&\"-\"&$X$7","v":"K-E"},0]
[116,null,null,"-",null,{"$f":"$X$13&\"-\"&$X$8","v":"K-F"},0,null,null,null,null,null,null,null,null,null,null,null,null,null,null,null,null,null,null,null,null,null,null,null,null,null,null,null,null,null,null,null,null,null,null,null,null,"-",null,{"$f":"$X$13&\"-\"&$X$8","v":"K-F"},0]
[117,null,null,"-",null,{"$f":"$X$13&\"-\"&$X$9","v":"K-G"},0,null,null,null,null,null,null,null,null,null,null,null,null,null,null,null,null,null,null,null,null,null,null,null,null,null,null,null,null,null,null,null,null,null,null,null,null,"-",null,{"$f":"$X$13&\"-\"&$X$9","v":"K-G"},0]
[118,null,null,"-",null,{"$f":"$X$13&\"-\"&$X$10","v":"K-H"},0,null,null,null,null,null,null,null,null,null,null,null,null,null,null,null,null,null,null,null,null,null,null,null,null,null,null,null,null,null,null,null,null,null,null,null,null,"-",null,{"$f":"$X$13&\"-\"&$X$10","v":"K-H"},0]
[119,null,null,"-",null,{"$f":"$X$13&\"-\"&$X$11","v":"K-I"},0,null,null,null,null,null,null,null,null,null,null,null,null,null,null,null,null,null,null,null,null,null,null,null,null,null,null,null,null,null,null,null,null,null,null,null,null,"-",null,{"$f":"$X$13&\"-\"&$X$11","v":"K-I"},0]
[120,null,null,"-",null,{"$f":"$X$13&\"-\"&$X$12","v":"K-J"},0,null,null,null,null,null,null,null,null,null,null,null,null,null,null,null,null,null,null,null,null,null,null,null,null,null,null,null,null,null,null,null,null,null,null,null,null,"-",null,{"$f":"$X$13&\"-\"&$X$12","v":"K-J"},0]
[121,null,null,"-",null,{"$f":"$X$13&\"-\"&$X$13","v":"K-K"},0,null,null,null,null,null,null,null,null,null,null,null,null,null,null,null,null,null,null,null,null,null,null,null,null,null,null,null,null,null,null,null,null,null,null,null,null,"-",null,{"$f":"$X$13&\"-\"&$X$13","v":"K-K"},0]
[122,null,null,"-",null,null,null,null,null,null,null,null,null,null,null,null,null,null,null,null,null,null,null,null,null,null,null,null,null,null,null,null,null,null,null,null,null,null,null,null,null,null,null,"-"]
[123,null,null,"-",null,null,null,null,null,null,null,null,null,null,null,null,null,null,null,null,null,null,null,null,null,null,null,null,null,null,null,null,null,null,null,null,null,null,null,null,null,null,null,"-"]
[124,null,null,"-",null,null,null,null,null,null,null,null,null,null,null,null,null,null,null,null,null,null,null,null,null,null,null,null,null,null,null,null,null,null,null,null,null,null,null,null,null,null,null,"-"]
[125,null,null,"-",null,null,null,null,null,null,null,null,null,null,null,null,null,null,null,null,null,null,null,null,null,null,null,null,null,null,null,null,null,null,null,null,null,null,null,null,null,null,null,"-"]
[126,null,null,"-",null,null,null,null,null,null,null,null,null,null,null,null,null,null,null,null,null,null,null,null,null,null,null,null,null,null,null,null,null,null,null,null,null,null,null,null,null,null,null,"-"]
[127,null,null,"-",null,null,null,null,null,null,null,null,null,null,null,null,null,null,null,null,null,null,null,null,null,null,null,null,null,null,null,null,null,null,null,null,null,null,null,null,null,null,null,"-"]
[128,null,null,"-",null,null,null,null,null,null,null,null,null,null,null,null,null,null,null,null,null,null,null,null,null,null,null,null,null,null,null,null,null,null,null,null,null,null,null,null,null,null,null,"-"]
[129,null,null,"-",null,null,null,null,null,null,null,null,null,null,null,null,null,null,null,null,null,null,null,null,null,null,null,null,null,null,null,null,null,null,null,null,null,null,null,null,null,null,null,"-"]
[130,null,null,{"$f":"TRIM(B133)&\"-\"&TRIM(C133)","v":"-"},null,null,null,null,null,null,null,null,null,null,null,null,null,null,null,null,null,null,null,null,null,null,null,null,null,null,null,null,null,null,null,null,null,null,null,null,null,null,null,"-"]
[131,null,null,"-",null,null,null,null,null,null,null,null,null,null,null,null,null,null,null,null,null,null,null,null,null,null,null,null,null,null,null,null,null,null,null,null,null,null,null,null,null,null,null,"-"]
[132,null,null,"-",null,null,null,null,null,null,null,null,null,null,null,null,null,null,null,null,null,null,null,null,null,null,null,null,null,null,null,null,null,null,null,null,null,null,null,null,null,null,null,"-"]
[133,null,null,"-",null,null,null,null,null,null,null,null,null,null,null,null,null,null,null,null,null,null,null,null,null,null,null,null,null,null,null,null,null,null,null,null,null,null,null,null,null,null,null,"-"]
[134,null,null,"-",null,null,null,null,null,null,null,null,null,null,null,null,null,null,null,null,null,null,null,null,null,null,null,null,null,null,null,null,null,null,null,null,null,null,null,null,null,null,null,"-"]
[135,null,null,"-",null,null,null,null,null,null,null,null,null,null,null,null,null,null,null,null,null,null,null,null,null,null,null,null,null,null,null,null,null,null,null,null,null,null,null,null,null,null,null,"-"]
[136,null,null,"-",null,null,null,null,null,null,null,null,null,null,null,null,null,null,null,null,null,null,null,null,null,null,null,null,null,null,null,null,null,null,null,null,null,null,null,null,null,null,null,"-"]
[137,null,null,"-",null,null,null,null,null,null,null,null,null,null,null,null,null,null,null,null,null,null,null,null,null,null,null,null,null,null,null,null,null,null,null,null,null,null,null,null,null,null,null,"-"]
[138,null,null,"-",null,null,null,null,null,null,null,null,null,null,null,null,null,null,null,null,null,null,null,null,null,null,null,null,null,null,null,null,null,null,null,null,null,null,null,null,null,null,null,"-"]
[139,null,null,"-",null,null,null,null,null,null,null,null,null,null,null,null,null,null,null,null,null,null,null,null,null,null,null,null,null,null,null,null,null,null,null,null,null,null,null,null,null,null,null,"-"]
[140,null,null,"-",null,null,null,null,null,null,null,null,null,null,null,null,null,null,null,null,null,null,null,null,null,null,null,null,null,null,null,null,null,null,null,null,null,null,null,null,null,null,null,"-"]
[141,null,null,"-",null,null,null,null,null,null,null,null,null,null,null,null,null,null,null,null,null,null,null,null,null,null,null,null,null,null,null,null,null,null,null,null,null,null,null,null,null,null,null,"-"]
[142,null,null,"-",null,null,null,null,null,null,null,null,null,null,null,null,null,null,null,null,null,null,null,null,null,null,null,null,null,null,null,null,null,null,null,null,null,null,null,null,null,null,null,"-"]
[143,null,null,"-",null,null,null,null,null,null,null,null,null,null,null,null,null,null,null,null,null,null,null,null,null,null,null,null,null,null,null,null,null,null,null,null,null,null,null,null,null,null,null,"-"]
[144,null,null,"-",null,null,null,null,null,null,null,null,null,null,null,null,null,null,null,null,null,null,null,null,null,null,null,null,null,null,null,null,null,null,null,null,null,null,null,null,null,null,null,"-"]
[145,null,null,"-",null,null,null,null,null,null,null,null,null,null,null,null,null,null,null,null,null,null,null,null,null,null,null,null,null,null,null,null,null,null,null,null,null,null,null,null,null,null,null,"-"]
[146,null,null,"-",null,null,null,null,null,null,null,null,null,null,null,null,null,null,null,null,null,null,null,null,null,null,null,null,null,null,null,null,null,null,null,null,null,null,null,null,null,null,null,"-"]
[147,null,null,"-",null,null,null,null,null,null,null,null,null,null,null,null,null,null,null,null,null,null,null,null,null,null,null,null,null,null,null,null,null,null,null,null,null,null,null,null,null,null,null,"-"]
[148,null,null,"-",null,null,null,null,null,null,null,null,null,null,null,null,null,null,null,null,null,null,null,null,null,null,null,null,null,null,null,null,null,null,null,null,null,null,null,null,null,null,null,"-"]
[149,null,null,"-",null,null,null,null,null,null,null,null,null,null,null,null,null,null,null,null,null,null,null,null,null,null,null,null,null,null,null,null,null,null,null,null,null,null,null,null,null,null,null,"-"]
[150,null,null,"-",null,null,null,null,null,null,null,null,null,null,null,null,null,null,null,null,null,null,null,null,null,null,null,null,null,null,null,null,null,null,null,null,null,null,null,null,null,null,null,"-"]
[151,null,null,"-",null,null,null,null,null,null,null,null,null,null,null,null,null,null,null,null,null,null,null,null,null,null,null,null,null,null,null,null,null,null,null,null,null,null,null,null,null,null,null,"-"]
[152,null,null,"-",null,null,null,null,null,null,null,null,null,null,null,null,null,null,null,null,null,null,null,null,null,null,null,null,null,null,null,null,null,null,null,null,null,null,null,null,null,null,null,"-"]
[153,null,null,"-",null,null,null,null,null,null,null,null,null,null,null,null,null,null,null,null,null,null,null,null,null,null,null,null,null,null,null,null,null,null,null,null,null,null,null,null,null,null,null,"-"]
[154,null,null,"-",null,null,null,null,null,null,null,null,null,null,null,null,null,null,null,null,null,null,null,null,null,null,null,null,null,null,null,null,null,null,null,null,null,null,null,null,null,null,null,"-"]
[155,null,null,"-",null,null,null,null,null,null,null,null,null,null,null,null,null,null,null,null,null,null,null,null,null,null,null,null,null,null,null,null,null,null,null,null,null,null,null,null,null,null,null,"-"]
[156,null,null,"-",null,null,null,null,null,null,null,null,null,null,null,null,null,null,null,null,null,null,null,null,null,null,null,null,null,null,null,null,null,null,null,null,null,null,null,null,null,null,null,"-"]
[157,null,null,"-",null,null,null,null,null,null,null,null,null,null,null,null,null,null,null,null,null,null,null,null,null,null,null,null,null,null,null,null,null,null,null,null,null,null,null,null,null,null,null,"-"]
[158,null,null,"-",null,null,null,null,null,null,null,null,null,null,null,null,null,null,null,null,null,null,null,null,null,null,null,null,null,null,null,null,null,null,null,null,null,null,null,null,null,null,null,"-"]
[159,null,null,"-",null,null,null,null,null,null,null,null,null,null,null,null,null,null,null,null,null,null,null,null,null,null,null,null,null,null,null,null,null,null,null,null,null,null,null,null,null,null,null,"-"]
[160,null,null,"-",null,null,null,null,null,null,null,null,null,null,null,null,null,null,null,null,null,null,null,null,null,null,null,null,null,null,null,null,null,null,null,null,null,null,null,null,null,null,null,"-"]
[161,null,null,"-",null,null,null,null,null,null,null,null,null,null,null,null,null,null,null,null,null,null,null,null,null,null,null,null,null,null,null,null,null,null,null,null,null,null,null,null,null,null,null,"-"]
[162,null,null,"-",null,null,null,null,null,null,null,null,null,null,null,null,null,null,null,null,null,null,null,null,null,null,null,null,null,null,null,null,null,null,null,null,null,null,null,null,null,null,null,"-"]
[163,null,null,"-",null,null,null,null,null,null,null,null,null,null,null,null,null,null,null,null,null,null,null,null,null,null,null,null,null,null,null,null,null,null,null,null,null,null,null,null,null,null,null,"-"]
[164,null,null,"-",null,null,null,null,null,null,null,null,null,null,null,null,null,null,null,null,null,null,null,null,null,null,null,null,null,null,null,null,null,null,null,null,null,null,null,null,null,null,null,"-"]
[165,null,null,"-",null,null,null,null,null,null,null,null,null,null,null,null,null,null,null,null,null,null,null,null,null,null,null,null,null,null,null,null,null,null,null,null,null,null,null,null,null,null,null,{"$f":"AP168&\"-\"&AQ168","v":"-"}]
[166,null,null,"-",null,null,null,null,null,null,null,null,null,null,null,null,null,null,null,null,null,null,null,null,null,null,null,null,null,null,null,null,null,null,null,null,null,null,null,null,null,null,null,"-"]
[167,null,null,"-",null,null,null,null,null,null,null,null,null,null,null,null,null,null,null,null,null,null,null,null,null,null,null,null,null,null,null,null,null,null,null,null,null,null,null,null,null,null,null,"-"]
[168,null,null,"-",null,null,null,null,null,null,null,null,null,null,null,null,null,null,null,null,null,null,null,null,null,null,null,null,null,null,null,null,null,null,null,null,null,null,null,null,null,null,null,"-"]
[169,null,null,"-",null,null,null,null,null,null,null,null,null,null,null,null,null,null,null,null,null,null,null,null,null,null,null,null,null,null,null,null,null,null,null,null,null,null,null,null,null,null,null,"-"]
[170,null,null,"-",null,null,null,null,null,null,null,null,null,null,null,null,null,null,null,null,null,null,null,null,null,null,null,null,null,null,null,null,null,null,null,null,null,null,null,null,null,null,null,"-"]
[171,null,null,"-",null,null,null,null,null,null,null,null,null,null,null,null,null,null,null,null,null,null,null,null,null,null,null,null,null,null,null,null,null,null,null,null,null,null,null,null,null,null,null,"-"]
[172,null,null,"-",null,null,null,null,null,null,null,null,null,null,null,null,null,null,null,null,null,null,null,null,null,null,null,null,null,null,null,null,null,null,null,null,null,null,null,null,null,null,null,"-"]
[173,null,null,"-",null,null,null,null,null,null,null,null,null,null,null,null,null,null,null,null,null,null,null,null,null,null,null,null,null,null,null,null,null,null,null,null,null,null,null,null,null,null,null,"-"]
[174,null,null,"-",null,null,null,null,null,null,null,null,null,null,null,null,null,null,null,null,null,null,null,null,null,null,null,null,null,null,null,null,null,null,null,null,null,null,null,null,null,null,null,"-"]
[175,null,null,"-",null,null,null,null,null,null,null,null,null,null,null,null,null,null,null,null,null,null,null,null,null,null,null,null,null,null,null,null,null,null,null,null,null,null,null,null,null,null,null,"-"]
[176,null,null,"-",null,null,null,null,null,null,null,null,null,null,null,null,null,null,null,null,null,null,null,null,null,null,null,null,null,null,null,null,null,null,null,null,null,null,null,null,null,null,null,"-"]
[177,null,null,"-",null,null,null,null,null,null,null,null,null,null,null,null,null,null,null,null,null,null,null,null,null,null,null,null,null,null,null,null,null,null,null,null,null,null,null,null,null,null,null,"-"]
[178,null,null,"-",null,null,null,null,null,null,null,null,null,null,null,null,null,null,null,null,null,null,null,null,null,null,null,null,null,null,null,null,null,null,null,null,null,null,null,null,null,null,null,"-"]
[179,null,null,"-",null,null,null,null,null,null,null,null,null,null,null,null,null,null,null,null,null,null,null,null,null,null,null,null,null,null,null,null,null,null,null,null,null,null,null,null,null,null,null,"-"]
[180,null,null,"-",null,null,null,null,null,null,null,null,null,null,null,null,null,null,null,null,null,null,null,null,null,null,null,null,null,null,null,null,null,null,null,null,null,null,null,null,null,null,null,"-"]
[181,null,null,"-",null,null,null,null,null,null,null,null,null,null,null,null,null,null,null,null,null,null,null,null,null,null,null,null,null,null,null,null,null,null,null,null,null,null,null,null,null,null,null,"-"]
[182,null,null,"-",null,null,null,null,null,null,null,null,null,null,null,null,null,null,null,null,null,null,null,null,null,null,null,null,null,null,null,null,null,null,null,null,null,null,null,null,null,null,null,"-"]
[183,null,null,"-",null,null,null,null,null,null,null,null,null,null,null,null,null,null,null,null,null,null,null,null,null,null,null,null,null,null,null,null,null,null,null,null,null,null,null,null,null,null,null,"-"]
[184,null,null,"-",null,null,null,null,null,null,null,null,null,null,null,null,null,null,null,null,null,null,null,null,null,null,null,null,null,null,null,null,null,null,null,null,null,null,null,null,null,null,null,"-"]
[185,null,null,"-",null,null,null,null,null,null,null,null,null,null,null,null,null,null,null,null,null,null,null,null,null,null,null,null,null,null,null,null,null,null,null,null,null,null,null,null,null,null,null,"-"]
[186,null,null,"-",null,null,null,null,null,null,null,null,null,null,null,null,null,null,null,null,null,null,null,null,null,null,null,null,null,null,null,null,null,null,null,null,null,null,null,null,null,null,null,"-"]
[187,null,null,"-",null,null,null,null,null,null,null,null,null,null,null,null,null,null,null,null,null,null,null,null,null,null,null,null,null,null,null,null,null,null,null,null,null,null,null,null,null,null,null,"-"]
[188,null,null,"-",null,null,null,null,null,null,null,null,null,null,null,null,null,null,null,null,null,null,null,null,null,null,null,null,null,null,null,null,null,null,null,null,null,null,null,null,null,null,null,"-"]
[189,null,null,"-",null,null,null,null,null,null,null,null,null,null,null,null,null,null,null,null,null,null,null,null,null,null,null,null,null,null,null,null,null,null,null,null,null,null,null,null,null,null,null,"-"]
[190,null,null,"-",null,null,null,null,null,null,null,null,null,null,null,null,null,null,null,null,null,null,null,null,null,null,null,null,null,null,null,null,null,null,null,null,null,null,null,null,null,null,null,"-"]
[191,null,null,"-",null,null,null,null,null,null,null,null,null,null,null,null,null,null,null,null,null,null,null,null,null,null,null,null,null,null,null,null,null,null,null,null,null,null,null,null,null,null,null,"-"]
[192,null,null,"-",null,null,null,null,null,null,null,null,null,null,null,null,null,null,null,null,null,null,null,null,null,null,null,null,null,null,null,null,null,null,null,null,null,null,null,null,null,null,null,"-"]
[193,null,null,"-",null,null,null,null,null,null,null,null,null,null,null,null,null,null,null,null,null,null,null,null,null,null,null,null,null,null,null,null,null,null,null,null,null,null,null,null,null,null,null,"-"]
[194,null,null,{"$f":"TRIM(B197)&\"-\"&TRIM(C197)","v":"-"},null,null,null,null,null,null,null,null,null,null,null,null,null,null,null,null,null,null,null,null,null,null,null,null,null,null,null,null,null,null,null,null,null,null,null,null,null,null,null,"-"]
[195,null,null,"-",null,null,null,null,null,null,null,null,null,null,null,null,null,null,null,null,null,null,null,null,null,null,null,null,null,null,null,null,null,null,null,null,null,null,null,null,null,null,null,"-"]
[196,null,null,"-",null,null,null,null,null,null,null,null,null,null,null,null,null,null,null,null,null,null,null,null,null,null,null,null,null,null,null,null,null,null,null,null,null,null,null,null,null,null,null,"-"]
[197,null,null,"-",null,null,null,null,null,null,null,null,null,null,null,null,null,null,null,null,null,null,null,null,null,null,null,null,null,null,null,null,null,null,null,null,null,null,null,null,null,null,null,"-"]
[198,null,null,"-",null,null,null,null,null,null,null,null,null,null,null,null,null,null,null,null,null,null,null,null,null,null,null,null,null,null,null,null,null,null,null,null,null,null,null,null,null,null,null,"-"]
[199,null,null,"-",null,null,null,null,null,null,null,null,null,null,null,null,null,null,null,null,null,null,null,null,null,null,null,null,null,null,null,null,null,null,null,null,null,null,null,null,null,null,null,"-"]
[200,null,null,"-",null,null,null,null,null,null,null,null,null,null,null,null,null,null,null,null,null,null,null,null,null,null,null,null,null,null,null,null,null,null,null,null,null,null,null,null,null,null,null,"-"]
[201,null,null,"-",null,null,null,null,null,null,null,null,null,null,null,null,null,null,null,null,null,null,null,null,null,null,null,null,null,null,null,null,null,null,null,null,null,null,null,null,null,null,null,"-"]
[202,null,null,"-",null,null,null,null,null,null,null,null,null,null,null,null,null,null,null,null,null,null,null,null,null,null,null,null,null,null,null,null,null,null,null,null,null,null,null,null,null,null,null,"-"]
[203,null,null,"-",null,null,null,null,null,null,null,null,null,null,null,null,null,null,null,null,null,null,null,null,null,null,null,null,null,null,null,null,null,null,null,null,null,null,null,null,null,null,null,"-"]
[204,null,null,"-",null,null,null,null,null,null,null,null,null,null,null,null,null,null,null,null,null,null,null,null,null,null,null,null,null,null,null,null,null,null,null,null,null,null,null,null,null,null,null,"-"]
[205,null,null,"-",null,null,null,null,null,null,null,null,null,null,null,null,null,null,null,null,null,null,null,null,null,null,null,null,null,null,null,null,null,null,null,null,null,null,null,null,null,null,null,"-"]
[206,null,null,"-",null,null,null,null,null,null,null,null,null,null,null,null,null,null,null,null,null,null,null,null,null,null,null,null,null,null,null,null,null,null,null,null,null,null,null,null,null,null,null,"-"]
[207,null,null,"-",null,null,null,null,null,null,null,null,null,null,null,null,null,null,null,null,null,null,null,null,null,null,null,null,null,null,null,null,null,null,null,null,null,null,null,null,null,null,null,"-"]
[208,null,null,"-",null,null,null,null,null,null,null,null,null,null,null,null,null,null,null,null,null,null,null,null,null,null,null,null,null,null,null,null,null,null,null,null,null,null,null,null,null,null,null,"-"]
[209,null,null,"-",null,null,null,null,null,null,null,null,null,null,null,null,null,null,null,null,null,null,null,null,null,null,null,null,null,null,null,null,null,null,null,null,null,null,null,null,null,null,null,"-"]
[210,null,null,"-",null,null,null,null,null,null,null,null,null,null,null,null,null,null,null,null,null,null,null,null,null,null,null,null,null,null,null,null,null,null,null,null,null,null,null,null,null,null,null,"-"]
[211,null,null,"-",null,null,null,null,null,null,null,null,null,null,null,null,null,null,null,null,null,null,null,null,null,null,null,null,null,null,null,null,null,null,null,null,null,null,null,null,null,null,null,"-"]
[212,null,null,"-",null,null,null,null,null,null,null,null,null,null,null,null,null,null,null,null,null,null,null,null,null,null,null,null,null,null,null,null,null,null,null,null,null,null,null,null,null,null,null,"-"]
[213,null,null,"-",null,null,null,null,null,null,null,null,null,null,null,null,null,null,null,null,null,null,null,null,null,null,null,null,null,null,null,null,null,null,null,null,null,null,null,null,null,null,null,"-"]
[214,null,null,"-",null,null,null,null,null,null,null,null,null,null,null,null,null,null,null,null,null,null,null,null,null,null,null,null,null,null,null,null,null,null,null,null,null,null,null,null,null,null,null,"-"]
[215,null,null,"-",null,null,null,null,null,null,null,null,null,null,null,null,null,null,null,null,null,null,null,null,null,null,null,null,null,null,null,null,null,null,null,null,null,null,null,null,null,null,null,"-"]
[216,null,null,"-",null,null,null,null,null,null,null,null,null,null,null,null,null,null,null,null,null,null,null,null,null,null,null,null,null,null,null,null,null,null,null,null,null,null,null,null,null,null,null,"-"]
[217,null,null,"-",null,null,null,null,null,null,null,null,null,null,null,null,null,null,null,null,null,null,null,null,null,null,null,null,null,null,null,null,null,null,null,null,null,null,null,null,null,null,null,"-"]
[218,null,null,"-",null,null,null,null,null,null,null,null,null,null,null,null,null,null,null,null,null,null,null,null,null,null,null,null,null,null,null,null,null,null,null,null,null,null,null,null,null,null,null,"-"]
[219,null,null,"-",null,null,null,null,null,null,null,null,null,null,null,null,null,null,null,null,null,null,null,null,null,null,null,null,null,null,null,null,null,null,null,null,null,null,null,null,null,null,null,"-"]
[220,null,null,"-",null,null,null,null,null,null,null,null,null,null,null,null,null,null,null,null,null,null,null,null,null,null,null,null,null,null,null,null,null,null,null,null,null,null,null,null,null,null,null,"-"]
[221,null,null,"-",null,null,null,null,null,null,null,null,null,null,null,null,null,null,null,null,null,null,null,null,null,null,null,null,null,null,null,null,null,null,null,null,null,null,null,null,null,null,null,"-"]
[222,null,null,"-",null,null,null,null,null,null,null,null,null,null,null,null,null,null,null,null,null,null,null,null,null,null,null,null,null,null,null,null,null,null,null,null,null,null,null,null,null,null,null,"-"]
[223,null,null,"-",null,null,null,null,null,null,null,null,null,null,null,null,null,null,null,null,null,null,null,null,null,null,null,null,null,null,null,null,null,null,null,null,null,null,null,null,null,null,null,"-"]
[224,null,null,"-",null,null,null,null,null,null,null,null,null,null,null,null,null,null,null,null,null,null,null,null,null,null,null,null,null,null,null,null,null,null,null,null,null,null,null,null,null,null,null,"-"]
[225,null,null,"-",null,null,null,null,null,null,null,null,null,null,null,null,null,null,null,null,null,null,null,null,null,null,null,null,null,null,null,null,null,null,null,null,null,null,null,null,null,null,null,"-"]
[226,null,null,"-",null,null,null,null,null,null,null,null,null,null,null,null,null,null,null,null,null,null,null,null,null,null,null,null,null,null,null,null,null,null,null,null,null,null,null,null,null,null,null,"-"]
[227,null,null,"-",null,null,null,null,null,null,null,null,null,null,null,null,null,null,null,null,null,null,null,null,null,null,null,null,null,null,null,null,null,null,null,null,null,null,null,null,null,null,null,"-"]
[228,null,null,"-",null,null,null,null,null,null,null,null,null,null,null,null,null,null,null,null,null,null,null,null,null,null,null,null,null,null,null,null,null,null,null,null,null,null,null,null,null,null,null,"-"]
[229,null,null,"-",null,null,null,null,null,null,null,null,null,null,null,null,null,null,null,null,null,null,null,null,null,null,null,null,null,null,null,null,null,null,null,null,null,null,null,null,null,null,null,{"$f":"AP232&\"-\"&AQ232","v":"-"}]
[230,null,null,"-",null,null,null,null,null,null,null,null,null,null,null,null,null,null,null,null,null,null,null,null,null,null,null,null,null,null,null,null,null,null,null,null,null,null,null,null,null,null,null,"-"]
[231,null,null,"-",null,null,null,null,null,null,null,null,null,null,null,null,null,null,null,null,null,null,null,null,null,null,null,null,null,null,null,null,null,null,null,null,null,null,null,null,null,null,null,"-"]
[232,null,null,"-",null,null,null,null,null,null,null,null,null,null,null,null,null,null,null,null,null,null,null,null,null,null,null,null,null,null,null,null,null,null,null,null,null,null,null,null,null,null,null,"-"]
[233,null,null,"-",null,null,null,null,null,null,null,null,null,null,null,null,null,null,null,null,null,null,null,null,null,null,null,null,null,null,null,null,null,null,null,null,null,null,null,null,null,null,null,"-"]
[234,null,null,"-",null,null,null,null,null,null,null,null,null,null,null,null,null,null,null,null,null,null,null,null,null,null,null,null,null,null,null,null,null,null,null,null,null,null,null,null,null,null,null,"-"]
[235,null,null,"-",null,null,null,null,null,null,null,null,null,null,null,null,null,null,null,null,null,null,null,null,null,null,null,null,null,null,null,null,null,null,null,null,null,null,null,null,null,null,null,"-"]
[236,null,null,"-",null,null,null,null,null,null,null,null,null,null,null,null,null,null,null,null,null,null,null,null,null,null,null,null,null,null,null,null,null,null,null,null,null,null,null,null,null,null,null,"-"]
[237,null,null,"-",null,null,null,null,null,null,null,null,null,null,null,null,null,null,null,null,null,null,null,null,null,null,null,null,null,null,null,null,null,null,null,null,null,null,null,null,null,null,null,"-"]
[238,null,null,"-",null,null,null,null,null,null,null,null,null,null,null,null,null,null,null,null,null,null,null,null,null,null,null,null,null,null,null,null,null,null,null,null,null,null,null,null,null,null,null,"-"]
[239,null,null,"-",null,null,null,null,null,null,null,null,null,null,null,null,null,null,null,null,null,null,null,null,null,null,null,null,null,null,null,null,null,null,null,null,null,null,null,null,null,null,null,"-"]
[240,null,null,"-",null,null,null,null,null,null,null,null,null,null,null,null,null,null,null,null,null,null,null,null,null,null,null,null,null,null,null,null,null,null,null,null,null,null,null,null,null,null,null,"-"]
[241,null,null,"-",null,null,null,null,null,null,null,null,null,null,null,null,null,null,null,null,null,null,null,null,null,null,null,null,null,null,null,null,null,null,null,null,null,null,null,null,null,null,null,"-"]
[242,null,null,"-",null,null,null,null,null,null,null,null,null,null,null,null,null,null,null,null,null,null,null,null,null,null,null,null,null,null,null,null,null,null,null,null,null,null,null,null,null,null,null,"-"]
[243,null,null,"-",null,null,null,null,null,null,null,null,null,null,null,null,null,null,null,null,null,null,null,null,null,null,null,null,null,null,null,null,null,null,null,null,null,null,null,null,null,null,null,"-"]
[244,null,null,"-",null,null,null,null,null,null,null,null,null,null,null,null,null,null,null,null,null,null,null,null,null,null,null,null,null,null,null,null,null,null,null,null,null,null,null,null,null,null,null,"-"]
[245,null,null,"-",null,null,null,null,null,null,null,null,null,null,null,null,null,null,null,null,null,null,null,null,null,null,null,null,null,null,null,null,null,null,null,null,null,null,null,null,null,null,null,"-"]
[246,null,null,"-",null,null,null,null,null,null,null,null,null,null,null,null,null,null,null,null,null,null,null,null,null,null,null,null,null,null,null,null,null,null,null,null,null,null,null,null,null,null,null,"-"]
[247,null,null,"-",null,null,null,null,null,null,null,null,null,null,null,null,null,null,null,null,null,null,null,null,null,null,null,null,null,null,null,null,null,null,null,null,null,null,null,null,null,null,null,"-"]
[248,null,null,"-",null,null,null,null,null,null,null,null,null,null,null,null,null,null,null,null,null,null,null,null,null,null,null,null,null,null,null,null,null,null,null,null,null,null,null,null,null,null,null,"-"]
[249,null,null,"-",null,null,null,null,null,null,null,null,null,null,null,null,null,null,null,null,null,null,null,null,null,null,null,null,null,null,null,null,null,null,null,null,null,null,null,null,null,null,null,"-"]
[250,null,null,"-",null,null,null,null,null,null,null,null,null,null,null,null,null,null,null,null,null,null,null,null,null,null,null,null,null,null,null,null,null,null,null,null,null,null,null,null,null,null,null,"-"]
[251,null,null,"-",null,null,null,null,null,null,null,null,null,null,null,null,null,null,null,null,null,null,null,null,null,null,null,null,null,null,null,null,null,null,null,null,null,null,null,null,null,null,null,"-"]
[252,null,null,"-",null,null,null,null,null,null,null,null,null,null,null,null,null,null,null,null,null,null,null,null,null,null,null,null,null,null,null,null,null,null,null,null,null,null,null,null,null,null,null,"-"]
[253,null,null,"-",null,null,null,null,null,null,null,null,null,null,null,null,null,null,null,null,null,null,null,null,null,null,null,null,null,null,null,null,null,null,null,null,null,null,null,null,null,null,null,"-"]
[254,null,null,"-",null,null,null,null,null,null,null,null,null,null,null,null,null,null,null,null,null,null,null,null,null,null,null,null,null,null,null,null,null,null,null,null,null,null,null,null,null,null,null,"-"]
[255,null,null,"-",null,null,null,null,null,null,null,null,null,null,null,null,null,null,null,null,null,null,null,null,null,null,null,null,null,null,null,null,null,null,null,null,null,null,null,null,null,null,null,"-"]
[256,null,null,"-",null,null,null,null,null,null,null,null,null,null,null,null,null,null,null,null,null,null,null,null,null,null,null,null,null,null,null,null,null,null,null,null,null,null,null,null,null,null,null,"-"]
[257,null,null,"-",null,null,null,null,null,null,null,null,null,null,null,null,null,null,null,null,null,null,null,null,null,null,null,null,null,null,null,null,null,null,null,null,null,null,null,null,null,null,null,"-"]
[258,null,null,{"$f":"TRIM(B261)&\"-\"&TRIM(C261)","v":"-"},null,null,null,null,null,null,null,null,null,null,null,null,null,null,null,null,null,null,null,null,null,null,null,null,null,null,null,null,null,null,null,null,null,null,null,null,null,null,null,"-"]
[259,null,null,"-",null,null,null,null,null,null,null,null,null,null,null,null,null,null,null,null,null,null,null,null,null,null,null,null,null,null,null,null,null,null,null,null,null,null,null,null,null,null,null,"-"]
[260,null,null,"-",null,null,null,null,null,null,null,null,null,null,null,null,null,null,null,null,null,null,null,null,null,null,null,null,null,null,null,null,null,null,null,null,null,null,null,null,null,null,null,"-"]
[261,null,null,"-",null,null,null,null,null,null,null,null,null,null,null,null,null,null,null,null,null,null,null,null,null,null,null,null,null,null,null,null,null,null,null,null,null,null,null,null,null,null,null,"-"]
[262,null,null,"-",null,null,null,null,null,null,null,null,null,null,null,null,null,null,null,null,null,null,null,null,null,null,null,null,null,null,null,null,null,null,null,null,null,null,null,null,null,null,null,"-"]
[263,null,null,"-",null,null,null,null,null,null,null,null,null,null,null,null,null,null,null,null,null,null,null,null,null,null,null,null,null,null,null,null,null,null,null,null,null,null,null,null,null,null,null,"-"]
[264,null,null,"-",null,null,null,null,null,null,null,null,null,null,null,null,null,null,null,null,null,null,null,null,null,null,null,null,null,null,null,null,null,null,null,null,null,null,null,null,null,null,null,"-"]
[265,null,null,"-",null,null,null,null,null,null,null,null,null,null,null,null,null,null,null,null,null,null,null,null,null,null,null,null,null,null,null,null,null,null,null,null,null,null,null,null,null,null,null,"-"]
[266,null,null,"-",null,null,null,null,null,null,null,null,null,null,null,null,null,null,null,null,null,null,null,null,null,null,null,null,null,null,null,null,null,null,null,null,null,null,null,null,null,null,null,"-"]
[267,null,null,"-",null,null,null,null,null,null,null,null,null,null,null,null,null,null,null,null,null,null,null,null,null,null,null,null,null,null,null,null,null,null,null,null,null,null,null,null,null,null,null,"-"]
[268,null,null,"-",null,null,null,null,null,null,null,null,null,null,null,null,null,null,null,null,null,null,null,null,null,null,null,null,null,null,null,null,null,null,null,null,null,null,null,null,null,null,null,"-"]
[269,null,null,"-",null,null,null,null,null,null,null,null,null,null,null,null,null,null,null,null,null,null,null,null,null,null,null,null,null,null,null,null,null,null,null,null,null,null,null,null,null,null,null,"-"]
[270,null,null,"-",null,null,null,null,null,null,null,null,null,null,null,null,null,null,null,null,null,null,null,null,null,null,null,null,null,null,null,null,null,null,null,null,null,null,null,null,null,null,null,"-"]
[271,null,null,"-",null,null,null,null,null,null,null,null,null,null,null,null,null,null,null,null,null,null,null,null,null,null,null,null,null,null,null,null,null,null,null,null,null,null,null,null,null,null,null,"-"]
[272,null,null,"-",null,null,null,null,null,null,null,null,null,null,null,null,null,null,null,null,null,null,null,null,null,null,null,null,null,null,null,null,null,null,null,null,null,null,null,null,null,null,null,"-"]
[273,null,null,"-",null,null,null,null,null,null,null,null,null,null,null,null,null,null,null,null,null,null,null,null,null,null,null,null,null,null,null,null,null,null,null,null,null,null,null,null,null,null,null,"-"]
[274,null,null,"-",null,null,null,null,null,null,null,null,null,null,null,null,null,null,null,null,null,null,null,null,null,null,null,null,null,null,null,null,null,null,null,null,null,null,null,null,null,null,null,"-"]
[275,null,null,"-",null,null,null,null,null,null,null,null,null,null,null,null,null,null,null,null,null,null,null,null,null,null,null,null,null,null,null,null,null,null,null,null,null,null,null,null,null,null,null,"-"]
[276,null,null,"-",null,null,null,null,null,null,null,null,null,null,null,null,null,null,null,null,null,null,null,null,null,null,null,null,null,null,null,null,null,null,null,null,null,null,null,null,null,null,null,"-"]
[277,null,null,"-",null,null,null,null,null,null,null,null,null,null,null,null,null,null,null,null,null,null,null,null,null,null,null,null,null,null,null,null,null,null,null,null,null,null,null,null,null,null,null,"-"]
[278,null,null,"-",null,null,null,null,null,null,null,null,null,null,null,null,null,null,null,null,null,null,null,null,null,null,null,null,null,null,null,null,null,null,null,null,null,null,null,null,null,null,null,"-"]
[279,null,null,"-",null,null,null,null,null,null,null,null,null,null,null,null,null,null,null,null,null,null,null,null,null,null,null,null,null,null,null,null,null,null,null,null,null,null,null,null,null,null,null,"-"]
[280,null,null,"-",null,null,null,null,null,null,null,null,null,null,null,null,null,null,null,null,null,null,null,null,null,null,null,null,null,null,null,null,null,null,null,null,null,null,null,null,null,null,null,"-"]
[281,null,null,"-",null,null,null,null,null,null,null,null,null,null,null,null,null,null,null,null,null,null,null,null,null,null,null,null,null,null,null,null,null,null,null,null,null,null,null,null,null,null,null,"-"]
[282,null,null,"-",null,null,null,null,null,null,null,null,null,null,null,null,null,null,null,null,null,null,null,null,null,null,null,null,null,null,null,null,null,null,null,null,null,null,null,null,null,null,null,"-"]
[283,null,null,"-",null,null,null,null,null,null,null,null,null,null,null,null,null,null,null,null,null,null,null,null,null,null,null,null,null,null,null,null,null,null,null,null,null,null,null,null,null,null,null,"-"]
[284,null,null,"-",null,null,null,null,null,null,null,null,null,null,null,null,null,null,null,null,null,null,null,null,null,null,null,null,null,null,null,null,null,null,null,null,null,null,null,null,null,null,null,"-"]
[285,null,null,"-",null,null,null,null,null,null,null,null,null,null,null,null,null,null,null,null,null,null,null,null,null,null,null,null,null,null,null,null,null,null,null,null,null,null,null,null,null,null,null,"-"]
[286,null,null,"-",null,null,null,null,null,null,null,null,null,null,null,null,null,null,null,null,null,null,null,null,null,null,null,null,null,null,null,null,null,null,null,null,null,null,null,null,null,null,null,"-"]
[287,null,null,"-",null,null,null,null,null,null,null,null,null,null,null,null,null,null,null,null,null,null,null,null,null,null,null,null,null,null,null,null,null,null,null,null,null,null,null,null,null,null,null,"-"]
[288,null,null,"-",null,null,null,null,null,null,null,null,null,null,null,null,null,null,null,null,null,null,null,null,null,null,null,null,null,null,null,null,null,null,null,null,null,null,null,null,null,null,null,"-"]
[289,null,null,"-",null,null,null,null,null,null,null,null,null,null,null,null,null,null,null,null,null,null,null,null,null,null,null,null,null,null,null,null,null,null,null,null,null,null,null,null,null,null,null,"-"]
[290,null,null,"-",null,null,null,null,null,null,null,null,null,null,null,null,null,null,null,null,null,null,null,null,null,null,null,null,null,null,null,null,null,null,null,null,null,null,null,null,null,null,null,"-"]
[291,null,null,"-",null,null,null,null,null,null,null,null,null,null,null,null,null,null,null,null,null,null,null,null,null,null,null,null,null,null,null,null,null,null,null,null,null,null,null,null,null,null,null,"-"]
[292,null,null,"-",null,null,null,null,null,null,null,null,null,null,null,null,null,null,null,null,null,null,null,null,null,null,null,null,null,null,null,null,null,null,null,null,null,null,null,null,null,null,null,"-"]
[293,null,null,"-",null,null,null,null,null,null,null,null,null,null,null,null,null,null,null,null,null,null,null,null,null,null,null,null,null,null,null,null,null,null,null,null,null,null,null,null,null,null,null,{"$f":"AP296&\"-\"&AQ296","v":"-"}]
[294,null,null,"-",null,null,null,null,null,null,null,null,null,null,null,null,null,null,null,null,null,null,null,null,null,null,null,null,null,null,null,null,null,null,null,null,null,null,null,null,null,null,null,"-"]
[295,null,null,"-",null,null,null,null,null,null,null,null,null,null,null,null,null,null,null,null,null,null,null,null,null,null,null,null,null,null,null,null,null,null,null,null,null,null,null,null,null,null,null,"-"]
[296,null,null,"-",null,null,null,null,null,null,null,null,null,null,null,null,null,null,null,null,null,null,null,null,null,null,null,null,null,null,null,null,null,null,null,null,null,null,null,null,null,null,null,"-"]
[297,null,null,"-",null,null,null,null,null,null,null,null,null,null,null,null,null,null,null,null,null,null,null,null,null,null,null,null,null,null,null,null,null,null,null,null,null,null,null,null,null,null,null,"-"]
[298,null,null,"-",null,null,null,null,null,null,null,null,null,null,null,null,null,null,null,null,null,null,null,null,null,null,null,null,null,null,null,null,null,null,null,null,null,null,null,null,null,null,null,"-"]
[299,null,null,"-",null,null,null,null,null,null,null,null,null,null,null,null,null,null,null,null,null,null,null,null,null,null,null,null,null,null,null,null,null,null,null,null,null,null,null,null,null,null,null,"-"]
[300,null,null,"-",null,null,null,null,null,null,null,null,null,null,null,null,null,null,null,null,null,null,null,null,null,null,null,null,null,null,null,null,null,null,null,null,null,null,null,null,null,null,null,"-"]
[301,null,null,"-",null,null,null,null,null,null,null,null,null,null,null,null,null,null,null,null,null,null,null,null,null,null,null,null,null,null,null,null,null,null,null,null,null,null,null,null,null,null,null,"-"]
[302,null,null,"-",null,null,null,null,null,null,null,null,null,null,null,null,null,null,null,null,null,null,null,null,null,null,null,null,null,null,null,null,null,null,null,null,null,null,null,null,null,null,null,"-"]
[303,null,null,"-",null,null,null,null,null,null,null,null,null,null,null,null,null,null,null,null,null,null,null,null,null,null,null,null,null,null,null,null,null,null,null,null,null,null,null,null,null,null,null,"-"]
[304,null,null,"-",null,null,null,null,null,null,null,null,null,null,null,null,null,null,null,null,null,null,null,null,null,null,null,null,null,null,null,null,null,null,null,null,null,null,null,null,null,null,null,"-"]
[305,null,null,"-",null,null,null,null,null,null,null,null,null,null,null,null,null,null,null,null,null,null,null,null,null,null,null,null,null,null,null,null,null,null,null,null,null,null,null,null,null,null,null,"-"]
[306,null,null,"-",null,null,null,null,null,null,null,null,null,null,null,null,null,null,null,null,null,null,null,null,null,null,null,null,null,null,null,null,null,null,null,null,null,null,null,null,null,null,null,"-"]
[307,null,null,"-",null,null,null,null,null,null,null,null,null,null,null,null,null,null,null,null,null,null,null,null,null,null,null,null,null,null,null,null,null,null,null,null,null,null,null,null,null,null,null,"-"]
[308,null,null,"-",null,null,null,null,null,null,null,null,null,null,null,null,null,null,null,null,null,null,null,null,null,null,null,null,null,null,null,null,null,null,null,null,null,null,null,null,null,null,null,"-"]
[309,null,null,"-",null,null,null,null,null,null,null,null,null,null,null,null,null,null,null,null,null,null,null,null,null,null,null,null,null,null,null,null,null,null,null,null,null,null,null,null,null,null,null,"-"]
[310,null,null,"-",null,null,null,null,null,null,null,null,null,null,null,null,null,null,null,null,null,null,null,null,null,null,null,null,null,null,null,null,null,null,null,null,null,null,null,null,null,null,null,"-"]
[311,null,null,"-",null,null,null,null,null,null,null,null,null,null,null,null,null,null,null,null,null,null,null,null,null,null,null,null,null,null,null,null,null,null,null,null,null,null,null,null,null,null,null,"-"]
[312,null,null,"-",null,null,null,null,null,null,null,null,null,null,null,null,null,null,null,null,null,null,null,null,null,null,null,null,null,null,null,null,null,null,null,null,null,null,null,null,null,null,null,"-"]
[313,null,null,"-",null,null,null,null,null,null,null,null,null,null,null,null,null,null,null,null,null,null,null,null,null,null,null,null,null,null,null,null,null,null,null,null,null,null,null,null,null,null,null,"-"]
[314,null,null,"-",null,null,null,null,null,null,null,null,null,null,null,null,null,null,null,null,null,null,null,null,null,null,null,null,null,null,null,null,null,null,null,null,null,null,null,null,null,null,null,"-"]
[315,null,null,"-",null,null,null,null,null,null,null,null,null,null,null,null,null,null,null,null,null,null,null,null,null,null,null,null,null,null,null,null,null,null,null,null,null,null,null,null,null,null,null,"-"]
[316,null,null,"-",null,null,null,null,null,null,null,null,null,null,null,null,null,null,null,null,null,null,null,null,null,null,null,null,null,null,null,null,null,null,null,null,null,null,null,null,null,null,null,"-"]
[317,null,null,"-",null,null,null,null,null,null,null,null,null,null,null,null,null,null,null,null,null,null,null,null,null,null,null,null,null,null,null,null,null,null,null,null,null,null,null,null,null,null,null,"-"]
[318,null,null,"-",null,null,null,null,null,null,null,null,null,null,null,null,null,null,null,null,null,null,null,null,null,null,null,null,null,null,null,null,null,null,null,null,null,null,null,null,null,null,null,"-"]
[319,null,null,"-",null,null,null,null,null,null,null,null,null,null,null,null,null,null,null,null,null,null,null,null,null,null,null,null,null,null,null,null,null,null,null,null,null,null,null,null,null,null,null,"-"]
[320,null,null,"-",null,null,null,null,null,null,null,null,null,null,null,null,null,null,null,null,null,null,null,null,null,null,null,null,null,null,null,null,null,null,null,null,null,null,null,null,null,null,null,"-"]
[321,null,null,"-",null,null,null,null,null,null,null,null,null,null,null,null,null,null,null,null,null,null,null,null,null,null,null,null,null,null,null,null,null,null,null,null,null,null,null,null,null,null,null,"-"]
[322,null,null,{"$f":"TRIM(B325)&\"-\"&TRIM(C325)","v":"-"},null,null,null,null,null,null,null,null,null,null,null,null,null,null,null,null,null,null,null,null,null,null,null,null,null,null,null,null,null,null,null,null,null,null,null,null,null,null,null,"-"]
[323,null,null,"-",null,null,null,null,null,null,null,null,null,null,null,null,null,null,null,null,null,null,null,null,null,null,null,null,null,null,null,null,null,null,null,null,null,null,null,null,null,null,null,"-"]
[324,null,null,"-",null,null,null,null,null,null,null,null,null,null,null,null,null,null,null,null,null,null,null,null,null,null,null,null,null,null,null,null,null,null,null,null,null,null,null,null,null,null,null,"-"]
[325,null,null,"-",null,null,null,null,null,null,null,null,null,null,null,null,null,null,null,null,null,null,null,null,null,null,null,null,null,null,null,null,null,null,null,null,null,null,null,null,null,null,null,"-"]
[326,null,null,"-",null,null,null,null,null,null,null,null,null,null,null,null,null,null,null,null,null,null,null,null,null,null,null,null,null,null,null,null,null,null,null,null,null,null,null,null,null,null,null,"-"]
[327,null,null,"-",null,null,null,null,null,null,null,null,null,null,null,null,null,null,null,null,null,null,null,null,null,null,null,null,null,null,null,null,null,null,null,null,null,null,null,null,null,null,null,"-"]
[328,null,null,"-",null,null,null,null,null,null,null,null,null,null,null,null,null,null,null,null,null,null,null,null,null,null,null,null,null,null,null,null,null,null,null,null,null,null,null,null,null,null,null,"-"]
[329,null,null,"-",null,null,null,null,null,null,null,null,null,null,null,null,null,null,null,null,null,null,null,null,null,null,null,null,null,null,null,null,null,null,null,null,null,null,null,null,null,null,null,"-"]
[330,null,null,"-",null,null,null,null,null,null,null,null,null,null,null,null,null,null,null,null,null,null,null,null,null,null,null,null,null,null,null,null,null,null,null,null,null,null,null,null,null,null,null,"-"]
[331,null,null,"-",null,null,null,null,null,null,null,null,null,null,null,null,null,null,null,null,null,null,null,null,null,null,null,null,null,null,null,null,null,null,null,null,null,null,null,null,null,null,null,"-"]
[332,null,null,"-",null,null,null,null,null,null,null,null,null,null,null,null,null,null,null,null,null,null,null,null,null,null,null,null,null,null,null,null,null,null,null,null,null,null,null,null,null,null,null,"-"]
[333,null,null,"-",null,null,null,null,null,null,null,null,null,null,null,null,null,null,null,null,null,null,null,null,null,null,null,null,null,null,null,null,null,null,null,null,null,null,null,null,null,null,null,"-"]
[334,null,null,"-",null,null,null,null,null,null,null,null,null,null,null,null,null,null,null,null,null,null,null,null,null,null,null,null,null,null,null,null,null,null,null,null,null,null,null,null,null,null,null,"-"]
[335,null,null,"-",null,null,null,null,null,null,null,null,null,null,null,null,null,null,null,null,null,null,null,null,null,null,null,null,null,null,null,null,null,null,null,null,null,null,null,null,null,null,null,"-"]
[336,null,null,"-",null,null,null,null,null,null,null,null,null,null,null,null,null,null,null,null,null,null,null,null,null,null,null,null,null,null,null,null,null,null,null,null,null,null,null,null,null,null,null,"-"]
[337,null,null,"-",null,null,null,null,null,null,null,null,null,null,null,null,null,null,null,null,null,null,null,null,null,null,null,null,null,null,null,null,null,null,null,null,null,null,null,null,null,null,null,"-"]
[338,null,null,"-",null,null,null,null,null,null,null,null,null,null,null,null,null,null,null,null,null,null,null,null,null,null,null,null,null,null,null,null,null,null,null,null,null,null,null,null,null,null,null,"-"]
[339,null,null,"-",null,null,null,null,null,null,null,null,null,null,null,null,null,null,null,null,null,null,null,null,null,null,null,null,null,null,null,null,null,null,null,null,null,null,null,null,null,null,null,"-"]
[340,null,null,"-",null,null,null,null,null,null,null,null,null,null,null,null,null,null,null,null,null,null,null,null,null,null,null,null,null,null,null,null,null,null,null,null,null,null,null,null,null,null,null,"-"]
[341,null,null,"-",null,null,null,null,null,null,null,null,null,null,null,null,null,null,null,null,null,null,null,null,null,null,null,null,null,null,null,null,null,null,null,null,null,null,null,null,null,null,null,"-"]
[342,null,null,"-",null,null,null,null,null,null,null,null,null,null,null,null,null,null,null,null,null,null,null,null,null,null,null,null,null,null,null,null,null,null,null,null,null,null,null,null,null,null,null,"-"]
[343,null,null,"-",null,null,null,null,null,null,null,null,null,null,null,null,null,null,null,null,null,null,null,null,null,null,null,null,null,null,null,null,null,null,null,null,null,null,null,null,null,null,null,"-"]
[344,null,null,"-",null,null,null,null,null,null,null,null,null,null,null,null,null,null,null,null,null,null,null,null,null,null,null,null,null,null,null,null,null,null,null,null,null,null,null,null,null,null,null,"-"]
[345,null,null,"-",null,null,null,null,null,null,null,null,null,null,null,null,null,null,null,null,null,null,null,null,null,null,null,null,null,null,null,null,null,null,null,null,null,null,null,null,null,null,null,"-"]
[346,null,null,"-",null,null,null,null,null,null,null,null,null,null,null,null,null,null,null,null,null,null,null,null,null,null,null,null,null,null,null,null,null,null,null,null,null,null,null,null,null,null,null,"-"]
[347,null,null,"-",null,null,null,null,null,null,null,null,null,null,null,null,null,null,null,null,null,null,null,null,null,null,null,null,null,null,null,null,null,null,null,null,null,null,null,null,null,null,null,"-"]
[348,null,null,"-",null,null,null,null,null,null,null,null,null,null,null,null,null,null,null,null,null,null,null,null,null,null,null,null,null,null,null,null,null,null,null,null,null,null,null,null,null,null,null,"-"]
[349,null,null,"-",null,null,null,null,null,null,null,null,null,null,null,null,null,null,null,null,null,null,null,null,null,null,null,null,null,null,null,null,null,null,null,null,null,null,null,null,null,null,null,"-"]
[350,null,null,"-",null,null,null,null,null,null,null,null,null,null,null,null,null,null,null,null,null,null,null,null,null,null,null,null,null,null,null,null,null,null,null,null,null,null,null,null,null,null,null,"-"]
[351,null,null,"-",null,null,null,null,null,null,null,null,null,null,null,null,null,null,null,null,null,null,null,null,null,null,null,null,null,null,null,null,null,null,null,null,null,null,null,null,null,null,null,"-"]
[352,null,null,"-",null,null,null,null,null,null,null,null,null,null,null,null,null,null,null,null,null,null,null,null,null,null,null,null,null,null,null,null,null,null,null,null,null,null,null,null,null,null,null,"-"]
[353,null,null,"-",null,null,null,null,null,null,null,null,null,null,null,null,null,null,null,null,null,null,null,null,null,null,null,null,null,null,null,null,null,null,null,null,null,null,null,null,null,null,null,"-"]
[354,null,null,"-",null,null,null,null,null,null,null,null,null,null,null,null,null,null,null,null,null,null,null,null,null,null,null,null,null,null,null,null,null,null,null,null,null,null,null,null,null,null,null,"-"]
[355,null,null,"-",null,null,null,null,null,null,null,null,null,null,null,null,null,null,null,null,null,null,null,null,null,null,null,null,null,null,null,null,null,null,null,null,null,null,null,null,null,null,null,"-"]
[356,null,null,"-",null,null,null,null,null,null,null,null,null,null,null,null,null,null,null,null,null,null,null,null,null,null,null,null,null,null,null,null,null,null,null,null,null,null,null,null,null,null,null,"-"]
[357,null,null,"-",null,null,null,null,null,null,null,null,null,null,null,null,null,null,null,null,null,null,null,null,null,null,null,null,null,null,null,null,null,null,null,null,null,null,null,null,null,null,null,{"$f":"AP360&\"-\"&AQ360","v":"-"}]
[358,null,null,"-",null,null,null,null,null,null,null,null,null,null,null,null,null,null,null,null,null,null,null,null,null,null,null,null,null,null,null,null,null,null,null,null,null,null,null,null,null,null,null,"-"]
[359,null,null,"-",null,null,null,null,null,null,null,null,null,null,null,null,null,null,null,null,null,null,null,null,null,null,null,null,null,null,null,null,null,null,null,null,null,null,null,null,null,null,null,"-"]
[360,null,null,"-",null,null,null,null,null,null,null,null,null,null,null,null,null,null,null,null,null,null,null,null,null,null,null,null,null,null,null,null,null,null,null,null,null,null,null,null,null,null,null,"-"]
[361,null,null,"-",null,null,null,null,null,null,null,null,null,null,null,null,null,null,null,null,null,null,null,null,null,null,null,null,null,null,null,null,null,null,null,null,null,null,null,null,null,null,null,"-"]
[362,null,null,"-",null,null,null,null,null,null,null,null,null,null,null,null,null,null,null,null,null,null,null,null,null,null,null,null,null,null,null,null,null,null,null,null,null,null,null,null,null,null,null,"-"]
[363,null,null,"-",null,null,null,null,null,null,null,null,null,null,null,null,null,null,null,null,null,null,null,null,null,null,null,null,null,null,null,null,null,null,null,null,null,null,null,null,null,null,null,"-"]
[364,null,null,"-",null,null,null,null,null,null,null,null,null,null,null,null,null,null,null,null,null,null,null,null,null,null,null,null,null,null,null,null,null,null,null,null,null,null,null,null,null,null,null,"-"]
[365,null,null,"-",null,null,null,null,null,null,null,null,null,null,null,null,null,null,null,null,null,null,null,null,null,null,null,null,null,null,null,null,null,null,null,null,null,null,null,null,null,null,null,"-"]
[366,null,null,"-",null,null,null,null,null,null,null,null,null,null,null,null,null,null,null,null,null,null,null,null,null,null,null,null,null,null,null,null,null,null,null,null,null,null,null,null,null,null,null,"-"]
[367,null,null,"-",null,null,null,null,null,null,null,null,null,null,null,null,null,null,null,null,null,null,null,null,null,null,null,null,null,null,null,null,null,null,null,null,null,null,null,null,null,null,null,"-"]
[368,null,null,"-",null,null,null,null,null,null,null,null,null,null,null,null,null,null,null,null,null,null,null,null,null,null,null,null,null,null,null,null,null,null,null,null,null,null,null,null,null,null,null,"-"]
[369,null,null,"-",null,null,null,null,null,null,null,null,null,null,null,null,null,null,null,null,null,null,null,null,null,null,null,null,null,null,null,null,null,null,null,null,null,null,null,null,null,null,null,"-"]
[370,null,null,"-",null,null,null,null,null,null,null,null,null,null,null,null,null,null,null,null,null,null,null,null,null,null,null,null,null,null,null,null,null,null,null,null,null,null,null,null,null,null,null,"-"]
[371,null,null,"-",null,null,null,null,null,null,null,null,null,null,null,null,null,null,null,null,null,null,null,null,null,null,null,null,null,null,null,null,null,null,null,null,null,null,null,null,null,null,null,"-"]
[372,null,null,"-",null,null,null,null,null,null,null,null,null,null,null,null,null,null,null,null,null,null,null,null,null,null,null,null,null,null,null,null,null,null,null,null,null,null,null,null,null,null,null,"-"]
[373,null,null,"-",null,null,null,null,null,null,null,null,null,null,null,null,null,null,null,null,null,null,null,null,null,null,null,null,null,null,null,null,null,null,null,null,null,null,null,null,null,null,null,"-"]
[374,null,null,"-",null,null,null,null,null,null,null,null,null,null,null,null,null,null,null,null,null,null,null,null,null,null,null,null,null,null,null,null,null,null,null,null,null,null,null,null,null,null,null,"-"]
[375,null,null,"-",null,null,null,null,null,null,null,null,null,null,null,null,null,null,null,null,null,null,null,null,null,null,null,null,null,null,null,null,null,null,null,null,null,null,null,null,null,null,null,"-"]
[376,null,null,"-",null,null,null,null,null,null,null,null,null,null,null,null,null,null,null,null,null,null,null,null,null,null,null,null,null,null,null,null,null,null,null,null,null,null,null,null,null,null,null,"-"]
[377,null,null,"-",null,null,null,null,null,null,null,null,null,null,null,null,null,null,null,null,null,null,null,null,null,null,null,null,null,null,null,null,null,null,null,null,null,null,null,null,null,null,null,"-"]
[378,null,null,"-",null,null,null,null,null,null,null,null,null,null,null,null,null,null,null,null,null,null,null,null,null,null,null,null,null,null,null,null,null,null,null,null,null,null,null,null,null,null,null,"-"]
[379,null,null,"-",null,null,null,null,null,null,null,null,null,null,null,null,null,null,null,null,null,null,null,null,null,null,null,null,null,null,null,null,null,null,null,null,null,null,null,null,null,null,null,"-"]
[380,null,null,"-",null,null,null,null,null,null,null,null,null,null,null,null,null,null,null,null,null,null,null,null,null,null,null,null,null,null,null,null,null,null,null,null,null,null,null,null,null,null,null,"-"]
[381,null,null,"-",null,null,null,null,null,null,null,null,null,null,null,null,null,null,null,null,null,null,null,null,null,null,null,null,null,null,null,null,null,null,null,null,null,null,null,null,null,null,null,"-"]
[382,null,null,"-",null,null,null,null,null,null,null,null,null,null,null,null,null,null,null,null,null,null,null,null,null,null,null,null,null,null,null,null,null,null,null,null,null,null,null,null,null,null,null,"-"]
[383,null,null,"-",null,null,null,null,null,null,null,null,null,null,null,null,null,null,null,null,null,null,null,null,null,null,null,null,null,null,null,null,null,null,null,null,null,null,null,null,null,null,null,"-"]
[384,null,null,"-",null,null,null,null,null,null,null,null,null,null,null,null,null,null,null,null,null,null,null,null,null,null,null,null,null,null,null,null,null,null,null,null,null,null,null,null,null,null,null,"-"]
[385,null,null,"-",null,null,null,null,null,null,null,null,null,null,null,null,null,null,null,null,null,null,null,null,null,null,null,null,null,null,null,null,null,null,null,null,null,null,null,null,null,null,null,"-"]
[386,null,null,{"$f":"TRIM(B389)&\"-\"&TRIM(C389)","v":"-"},null,null,null,null,null,null,null,null,null,null,null,null,null,null,null,null,null,null,null,null,null,null,null,null,null,null,null,null,null,null,null,null,null,null,null,null,null,null,null,"-"]
[387,null,null,"-",null,null,null,null,null,null,null,null,null,null,null,null,null,null,null,null,null,null,null,null,null,null,null,null,null,null,null,null,null,null,null,null,null,null,null,null,null,null,null,"-"]
[388,null,null,"-",null,null,null,null,null,null,null,null,null,null,null,null,null,null,null,null,null,null,null,null,null,null,null,null,null,null,null,null,null,null,null,null,null,null,null,null,null,null,null,"-"]
[389,null,null,"-",null,null,null,null,null,null,null,null,null,null,null,null,null,null,null,null,null,null,null,null,null,null,null,null,null,null,null,null,null,null,null,null,null,null,null,null,null,null,null,"-"]
[390,null,null,"-",null,null,null,null,null,null,null,null,null,null,null,null,null,null,null,null,null,null,null,null,null,null,null,null,null,null,null,null,null,null,null,null,null,null,null,null,null,null,null,"-"]
[391,null,null,"-",null,null,null,null,null,null,null,null,null,null,null,null,null,null,null,null,null,null,null,null,null,null,null,null,null,null,null,null,null,null,null,null,null,null,null,null,null,null,null,"-"]
[392,null,null,"-",null,null,null,null,null,null,null,null,null,null,null,null,null,null,null,null,null,null,null,null,null,null,null,null,null,null,null,null,null,null,null,null,null,null,null,null,null,null,null,"-"]
[393,null,null,"-",null,null,null,null,null,null,null,null,null,null,null,null,null,null,null,null,null,null,null,null,null,null,null,null,null,null,null,null,null,null,null,null,null,null,null,null,null,null,null,"-"]
[394,null,null,"-",null,null,null,null,null,null,null,null,null,null,null,null,null,null,null,null,null,null,null,null,null,null,null,null,null,null,null,null,null,null,null,null,null,null,null,null,null,null,null,"-"]
[395,null,null,"-",null,null,null,null,null,null,null,null,null,null,null,null,null,null,null,null,null,null,null,null,null,null,null,null,null,null,null,null,null,null,null,null,null,null,null,null,null,null,null,"-"]
[396,null,null,"-",null,null,null,null,null,null,null,null,null,null,null,null,null,null,null,null,null,null,null,null,null,null,null,null,null,null,null,null,null,null,null,null,null,null,null,null,null,null,null,"-"]
[397,null,null,"-",null,null,null,null,null,null,null,null,null,null,null,null,null,null,null,null,null,null,null,null,null,null,null,null,null,null,null,null,null,null,null,null,null,null,null,null,null,null,null,"-"]
[398,null,null,"-",null,null,null,null,null,null,null,null,null,null,null,null,null,null,null,null,null,null,null,null,null,null,null,null,null,null,null,null,null,null,null,null,null,null,null,null,null,null,null,"-"]
[399,null,null,"-",null,null,null,null,null,null,null,null,null,null,null,null,null,null,null,null,null,null,null,null,null,null,null,null,null,null,null,null,null,null,null,null,null,null,null,null,null,null,null,"-"]
[400,null,null,"-",null,null,null,null,null,null,null,null,null,null,null,null,null,null,null,null,null,null,null,null,null,null,null,null,null,null,null,null,null,null,null,null,null,null,null,null,null,null,null,"-"]
[401,null,null,"-",null,null,null,null,null,null,null,null,null,null,null,null,null,null,null,null,null,null,null,null,null,null,null,null,null,null,null,null,null,null,null,null,null,null,null,null,null,null,null,"-"]
[402,null,null,"-",null,null,null,null,null,null,null,null,null,null,null,null,null,null,null,null,null,null,null,null,null,null,null,null,null,null,null,null,null,null,null,null,null,null,null,null,null,null,null,"-"]
[403,null,null,"-",null,null,null,null,null,null,null,null,null,null,null,null,null,null,null,null,null,null,null,null,null,null,null,null,null,null,null,null,null,null,null,null,null,null,null,null,null,null,null,"-"]
[404,null,null,"-",null,null,null,null,null,null,null,null,null,null,null,null,null,null,null,null,null,null,null,null,null,null,null,null,null,null,null,null,null,null,null,null,null,null,null,null,null,null,null,"-"]
[405,null,null,"-",null,null,null,null,null,null,null,null,null,null,null,null,null,null,null,null,null,null,null,null,null,null,null,null,null,null,null,null,null,null,null,null,null,null,null,null,null,null,null,"-"]
[406,null,null,"-",null,null,null,null,null,null,null,null,null,null,null,null,null,null,null,null,null,null,null,null,null,null,null,null,null,null,null,null,null,null,null,null,null,null,null,null,null,null,null,"-"]
[407,null,null,"-",null,null,null,null,null,null,null,null,null,null,null,null,null,null,null,null,null,null,null,null,null,null,null,null,null,null,null,null,null,null,null,null,null,null,null,null,null,null,null,"-"]
[408,null,null,"-",null,null,null,null,null,null,null,null,null,null,null,null,null,null,null,null,null,null,null,null,null,null,null,null,null,null,null,null,null,null,null,null,null,null,null,null,null,null,null,"-"]
[409,null,null,"-",null,null,null,null,null,null,null,null,null,null,null,null,null,null,null,null,null,null,null,null,null,null,null,null,null,null,null,null,null,null,null,null,null,null,null,null,null,null,null,"-"]
[410,null,null,"-",null,null,null,null,null,null,null,null,null,null,null,null,null,null,null,null,null,null,null,null,null,null,null,null,null,null,null,null,null,null,null,null,null,null,null,null,null,null,null,"-"]
[411,null,null,"-",null,null,null,null,null,null,null,null,null,null,null,null,null,null,null,null,null,null,null,null,null,null,null,null,null,null,null,null,null,null,null,null,null,null,null,null,null,null,null,"-"]
[412,null,null,"-",null,null,null,null,null,null,null,null,null,null,null,null,null,null,null,null,null,null,null,null,null,null,null,null,null,null,null,null,null,null,null,null,null,null,null,null,null,null,null,"-"]
[413,null,null,"-",null,null,null,null,null,null,null,null,null,null,null,null,null,null,null,null,null,null,null,null,null,null,null,null,null,null,null,null,null,null,null,null,null,null,null,null,null,null,null,"-"]
[414,null,null,"-",null,null,null,null,null,null,null,null,null,null,null,null,null,null,null,null,null,null,null,null,null,null,null,null,null,null,null,null,null,null,null,null,null,null,null,null,null,null,null,"-"]
[415,null,null,"-",null,null,null,null,null,null,null,null,null,null,null,null,null,null,null,null,null,null,null,null,null,null,null,null,null,null,null,null,null,null,null,null,null,null,null,null,null,null,null,"-"]
[416,null,null,"-",null,null,null,null,null,null,null,null,null,null,null,null,null,null,null,null,null,null,null,null,null,null,null,null,null,null,null,null,null,null,null,null,null,null,null,null,null,null,null,"-"]
[417,null,null,"-",null,null,null,null,null,null,null,null,null,null,null,null,null,null,null,null,null,null,null,null,null,null,null,null,null,null,null,null,null,null,null,null,null,null,null,null,null,null,null,"-"]
[418,null,null,"-",null,null,null,null,null,null,null,null,null,null,null,null,null,null,null,null,null,null,null,null,null,null,null,null,null,null,null,null,null,null,null,null,null,null,null,null,null,null,null,"-"]
[419,null,null,"-",null,null,null,null,null,null,null,null,null,null,null,null,null,null,null,null,null,null,null,null,null,null,null,null,null,null,null,null,null,null,null,null,null,null,null,null,null,null,null,"-"]
[420,null,null,"-",null,null,null,null,null,null,null,null,null,null,null,null,null,null,null,null,null,null,null,null,null,null,null,null,null,null,null,null,null,null,null,null,null,null,null,null,null,null,null,"-"]
[421,null,null,"-",null,null,null,null,null,null,null,null,null,null,null,null,null,null,null,null,null,null,null,null,null,null,null,null,null,null,null,null,null,null,null,null,null,null,null,null,null,null,null,{"$f":"AP424&\"-\"&AQ424","v":"-"}]
[422,null,null,"-",null,null,null,null,null,null,null,null,null,null,null,null,null,null,null,null,null,null,null,null,null,null,null,null,null,null,null,null,null,null,null,null,null,null,null,null,null,null,null,"-"]
[423,null,null,"-",null,null,null,null,null,null,null,null,null,null,null,null,null,null,null,null,null,null,null,null,null,null,null,null,null,null,null,null,null,null,null,null,null,null,null,null,null,null,null,"-"]
[424,null,null,"-",null,null,null,null,null,null,null,null,null,null,null,null,null,null,null,null,null,null,null,null,null,null,null,null,null,null,null,null,null,null,null,null,null,null,null,null,null,null,null,"-"]
[425,null,null,"-",null,null,null,null,null,null,null,null,null,null,null,null,null,null,null,null,null,null,null,null,null,null,null,null,null,null,null,null,null,null,null,null,null,null,null,null,null,null,null,"-"]
[426,null,null,"-",null,null,null,null,null,null,null,null,null,null,null,null,null,null,null,null,null,null,null,null,null,null,null,null,null,null,null,null,null,null,null,null,null,null,null,null,null,null,null,"-"]
[427,null,null,"-",null,null,null,null,null,null,null,null,null,null,null,null,null,null,null,null,null,null,null,null,null,null,null,null,null,null,null,null,null,null,null,null,null,null,null,null,null,null,null,"-"]
[428,null,null,"-",null,null,null,null,null,null,null,null,null,null,null,null,null,null,null,null,null,null,null,null,null,null,null,null,null,null,null,null,null,null,null,null,null,null,null,null,null,null,null,"-"]
[429,null,null,"-",null,null,null,null,null,null,null,null,null,null,null,null,null,null,null,null,null,null,null,null,null,null,null,null,null,null,null,null,null,null,null,null,null,null,null,null,null,null,null,"-"]
[430,null,null,"-",null,null,null,null,null,null,null,null,null,null,null,null,null,null,null,null,null,null,null,null,null,null,null,null,null,null,null,null,null,null,null,null,null,null,null,null,null,null,null,"-"]
[431,null,null,"-",null,null,null,null,null,null,null,null,null,null,null,null,null,null,null,null,null,null,null,null,null,null,null,null,null,null,null,null,null,null,null,null,null,null,null,null,null,null,null,"-"]
[432,null,null,"-",null,null,null,null,null,null,null,null,null,null,null,null,null,null,null,null,null,null,null,null,null,null,null,null,null,null,null,null,null,null,null,null,null,null,null,null,null,null,null,"-"]
[433,null,null,"-",null,null,null,null,null,null,null,null,null,null,null,null,null,null,null,null,null,null,null,null,null,null,null,null,null,null,null,null,null,null,null,null,null,null,null,null,null,null,null,"-"]
[434,null,null,"-",null,null,null,null,null,null,null,null,null,null,null,null,null,null,null,null,null,null,null,null,null,null,null,null,null,null,null,null,null,null,null,null,null,null,null,null,null,null,null,"-"]
[435,null,null,"-",null,null,null,null,null,null,null,null,null,null,null,null,null,null,null,null,null,null,null,null,null,null,null,null,null,null,null,null,null,null,null,null,null,null,null,null,null,null,null,"-"]
[436,null,null,"-",null,null,null,null,null,null,null,null,null,null,null,null,null,null,null,null,null,null,null,null,null,null,null,null,null,null,null,null,null,null,null,null,null,null,null,null,null,null,null,"-"]
[437,null,null,"-",null,null,null,null,null,null,null,null,null,null,null,null,null,null,null,null,null,null,null,null,null,null,null,null,null,null,null,null,null,null,null,null,null,null,null,null,null,null,null,"-"]
[438,null,null,"-",null,null,null,null,null,null,null,null,null,null,null,null,null,null,null,null,null,null,null,null,null,null,null,null,null,null,null,null,null,null,null,null,null,null,null,null,null,null,null,"-"]
[439,null,null,"-",null,null,null,null,null,null,null,null,null,null,null,null,null,null,null,null,null,null,null,null,null,null,null,null,null,null,null,null,null,null,null,null,null,null,null,null,null,null,null,"-"]
[440,null,null,"-",null,null,null,null,null,null,null,null,null,null,null,null,null,null,null,null,null,null,null,null,null,null,null,null,null,null,null,null,null,null,null,null,null,null,null,null,null,null,null,"-"]
[441,null,null,"-",null,null,null,null,null,null,null,null,null,null,null,null,null,null,null,null,null,null,null,null,null,null,null,null,null,null,null,null,null,null,null,null,null,null,null,null,null,null,null,"-"]
[442,null,null,"-",null,null,null,null,null,null,null,null,null,null,null,null,null,null,null,null,null,null,null,null,null,null,null,null,null,null,null,null,null,null,null,null,null,null,null,null,null,null,null,"-"]
[443,null,null,"-",null,null,null,null,null,null,null,null,null,null,null,null,null,null,null,null,null,null,null,null,null,null,null,null,null,null,null,null,null,null,null,null,null,null,null,null,null,null,null,"-"]
[444,null,null,"-",null,null,null,null,null,null,null,null,null,null,null,null,null,null,null,null,null,null,null,null,null,null,null,null,null,null,null,null,null,null,null,null,null,null,null,null,null,null,null,"-"]
[445,null,null,"-",null,null,null,null,null,null,null,null,null,null,null,null,null,null,null,null,null,null,null,null,null,null,null,null,null,null,null,null,null,null,null,null,null,null,null,null,null,null,null,"-"]
[446,null,null,"-",null,null,null,null,null,null,null,null,null,null,null,null,null,null,null,null,null,null,null,null,null,null,null,null,null,null,null,null,null,null,null,null,null,null,null,null,null,null,null,"-"]
[447,null,null,"-",null,null,null,null,null,null,null,null,null,null,null,null,null,null,null,null,null,null,null,null,null,null,null,null,null,null,null,null,null,null,null,null,null,null,null,null,null,null,null,"-"]
[448,null,null,"-",null,null,null,null,null,null,null,null,null,null,null,null,null,null,null,null,null,null,null,null,null,null,null,null,null,null,null,null,null,null,null,null,null,null,null,null,null,null,null,"-"]
[449,null,null,"-",null,null,null,null,null,null,null,null,null,null,null,null,null,null,null,null,null,null,null,null,null,null,null,null,null,null,null,null,null,null,null,null,null,null,null,null,null,null,null,"-"]
[450,null,null,{"$f":"TRIM(B453)&\"-\"&TRIM(C453)","v":"-"},null,null,null,null,null,null,null,null,null,null,null,null,null,null,null,null,null,null,null,null,null,null,null,null,null,null,null,null,null,null,null,null,null,null,null,null,null,null,null,"-"]
[451,null,null,"-",null,null,null,null,null,null,null,null,null,null,null,null,null,null,null,null,null,null,null,null,null,null,null,null,null,null,null,null,null,null,null,null,null,null,null,null,null,null,null,"-"]
[452,null,null,"-",null,null,null,null,null,null,null,null,null,null,null,null,null,null,null,null,null,null,null,null,null,null,null,null,null,null,null,null,null,null,null,null,null,null,null,null,null,null,null,"-"]
[453,null,null,"-",null,null,null,null,null,null,null,null,null,null,null,null,null,null,null,null,null,null,null,null,null,null,null,null,null,null,null,null,null,null,null,null,null,null,null,null,null,null,null,"-"]
[454,null,null,"-",null,null,null,null,null,null,null,null,null,null,null,null,null,null,null,null,null,null,null,null,null,null,null,null,null,null,null,null,null,null,null,null,null,null,null,null,null,null,null,"-"]
[455,null,null,"-",null,null,null,null,null,null,null,null,null,null,null,null,null,null,null,null,null,null,null,null,null,null,null,null,null,null,null,null,null,null,null,null,null,null,null,null,null,null,null,"-"]
[456,null,null,"-",null,null,null,null,null,null,null,null,null,null,null,null,null,null,null,null,null,null,null,null,null,null,null,null,null,null,null,null,null,null,null,null,null,null,null,null,null,null,null,"-"]
[457,null,null,"-",null,null,null,null,null,null,null,null,null,null,null,null,null,null,null,null,null,null,null,null,null,null,null,null,null,null,null,null,null,null,null,null,null,null,null,null,null,null,null,"-"]
[458,null,null,"-",null,null,null,null,null,null,null,null,null,null,null,null,null,null,null,null,null,null,null,null,null,null,null,null,null,null,null,null,null,null,null,null,null,null,null,null,null,null,null,"-"]
[459,null,null,"-",null,null,null,null,null,null,null,null,null,null,null,null,null,null,null,null,null,null,null,null,null,null,null,null,null,null,null,null,null,null,null,null,null,null,null,null,null,null,null,"-"]
[460,null,null,"-",null,null,null,null,null,null,null,null,null,null,null,null,null,null,null,null,null,null,null,null,null,null,null,null,null,null,null,null,null,null,null,null,null,null,null,null,null,null,null,"-"]
[461,null,null,"-",null,null,null,null,null,null,null,null,null,null,null,null,null,null,null,null,null,null,null,null,null,null,null,null,null,null,null,null,null,null,null,null,null,null,null,null,null,null,null,"-"]
[462,null,null,"-",null,null,null,null,null,null,null,null,null,null,null,null,null,null,null,null,null,null,null,null,null,null,null,null,null,null,null,null,null,null,null,null,null,null,null,null,null,null,null,"-"]
[463,null,null,"-",null,null,null,null,null,null,null,null,null,null,null,null,null,null,null,null,null,null,null,null,null,null,null,null,null,null,null,null,null,null,null,null,null,null,null,null,null,null,null,"-"]
[464,null,null,"-",null,null,null,null,null,null,null,null,null,null,null,null,null,null,null,null,null,null,null,null,null,null,null,null,null,null,null,null,null,null,null,null,null,null,null,null,null,null,null,"-"]
[465,null,null,"-",null,null,null,null,null,null,null,null,null,null,null,null,null,null,null,null,null,null,null,null,null,null,null,null,null,null,null,null,null,null,null,null,null,null,null,null,null,null,null,"-"]
[466,null,null,"-",null,null,null,null,null,null,null,null,null,null,null,null,null,null,null,null,null,null,null,null,null,null,null,null,null,null,null,null,null,null,null,null,null,null,null,null,null,null,null,"-"]
[467,null,null,"-",null,null,null,null,null,null,null,null,null,null,null,null,null,null,null,null,null,null,null,null,null,null,null,null,null,null,null,null,null,null,null,null,null,null,null,null,null,null,null,"-"]
[468,null,null,"-",null,null,null,null,null,null,null,null,null,null,null,null,null,null,null,null,null,null,null,null,null,null,null,null,null,null,null,null,null,null,null,null,null,null,null,null,null,null,null,"-"]
[469,null,null,"-",null,null,null,null,null,null,null,null,null,null,null,null,null,null,null,null,null,null,null,null,null,null,null,null,null,null,null,null,null,null,null,null,null,null,null,null,null,null,null,"-"]
[470,null,null,"-",null,null,null,null,null,null,null,null,null,null,null,null,null,null,null,null,null,null,null,null,null,null,null,null,null,null,null,null,null,null,null,null,null,null,null,null,null,null,null,"-"]
[471,null,null,"-",null,null,null,null,null,null,null,null,null,null,null,null,null,null,null,null,null,null,null,null,null,null,null,null,null,null,null,null,null,null,null,null,null,null,null,null,null,null,null,"-"]
[472,null,null,"-",null,null,null,null,null,null,null,null,null,null,null,null,null,null,null,null,null,null,null,null,null,null,null,null,null,null,null,null,null,null,null,null,null,null,null,null,null,null,null,"-"]
[473,null,null,"-",null,null,null,null,null,null,null,null,null,null,null,null,null,null,null,null,null,null,null,null,null,null,null,null,null,null,null,null,null,null,null,null,null,null,null,null,null,null,null,"-"]
[474,null,null,"-",null,null,null,null,null,null,null,null,null,null,null,null,null,null,null,null,null,null,null,null,null,null,null,null,null,null,null,null,null,null,null,null,null,null,null,null,null,null,null,"-"]
[475,null,null,"-",null,null,null,null,null,null,null,null,null,null,null,null,null,null,null,null,null,null,null,null,null,null,null,null,null,null,null,null,null,null,null,null,null,null,null,null,null,null,null,"-"]
[476,null,null,"-",null,null,null,null,null,null,null,null,null,null,null,null,null,null,null,null,null,null,null,null,null,null,null,null,null,null,null,null,null,null,null,null,null,null,null,null,null,null,null,"-"]
[477,null,null,"-",null,null,null,null,null,null,null,null,null,null,null,null,null,null,null,null,null,null,null,null,null,null,null,null,null,null,null,null,null,null,null,null,null,null,null,null,null,null,null,"-"]
[478,null,null,"-",null,null,null,null,null,null,null,null,null,null,null,null,null,null,null,null,null,null,null,null,null,null,null,null,null,null,null,null,null,null,null,null,null,null,null,null,null,null,null,"-"]
[479,null,null,"-",null,null,null,null,null,null,null,null,null,null,null,null,null,null,null,null,null,null,null,null,null,null,null,null,null,null,null,null,null,null,null,null,null,null,null,null,null,null,null,"-"]
[480,null,null,"-",null,null,null,null,null,null,null,null,null,null,null,null,null,null,null,null,null,null,null,null,null,null,null,null,null,null,null,null,null,null,null,null,null,null,null,null,null,null,null,"-"]
[481,null,null,"-",null,null,null,null,null,null,null,null,null,null,null,null,null,null,null,null,null,null,null,null,null,null,null,null,null,null,null,null,null,null,null,null,null,null,null,null,null,null,null,"-"]
[482,null,null,"-",null,null,null,null,null,null,null,null,null,null,null,null,null,null,null,null,null,null,null,null,null,null,null,null,null,null,null,null,null,null,null,null,null,null,null,null,null,null,null,"-"]
[483,null,null,"-",null,null,null,null,null,null,null,null,null,null,null,null,null,null,null,null,null,null,null,null,null,null,null,null,null,null,null,null,null,null,null,null,null,null,null,null,null,null,null,"-"]
[484,null,null,"-",null,null,null,null,null,null,null,null,null,null,null,null,null,null,null,null,null,null,null,null,null,null,null,null,null,null,null,null,null,null,null,null,null,null,null,null,null,null,null,"-"]
[485,null,null,"-",null,null,null,null,null,null,null,null,null,null,null,null,null,null,null,null,null,null,null,null,null,null,null,null,null,null,null,null,null,null,null,null,null,null,null,null,null,null,null,{"$f":"AP488&\"-\"&AQ488","v":"-"}]
[486,null,null,"-",null,null,null,null,null,null,null,null,null,null,null,null,null,null,null,null,null,null,null,null,null,null,null,null,null,null,null,null,null,null,null,null,null,null,null,null,null,null,null,"-"]
[487,null,null,"-",null,null,null,null,null,null,null,null,null,null,null,null,null,null,null,null,null,null,null,null,null,null,null,null,null,null,null,null,null,null,null,null,null,null,null,null,null,null,null,"-"]
[488,null,null,"-",null,null,null,null,null,null,null,null,null,null,null,null,null,null,null,null,null,null,null,null,null,null,null,null,null,null,null,null,null,null,null,null,null,null,null,null,null,null,null,"-"]
[489,null,null,"-",null,null,null,null,null,null,null,null,null,null,null,null,null,null,null,null,null,null,null,null,null,null,null,null,null,null,null,null,null,null,null,null,null,null,null,null,null,null,null,"-"]
[490,null,null,"-",null,null,null,null,null,null,null,null,null,null,null,null,null,null,null,null,null,null,null,null,null,null,null,null,null,null,null,null,null,null,null,null,null,null,null,null,null,null,null,"-"]
[491,null,null,"-",null,null,null,null,null,null,null,null,null,null,null,null,null,null,null,null,null,null,null,null,null,null,null,null,null,null,null,null,null,null,null,null,null,null,null,null,null,null,null,"-"]
[492,null,null,"-",null,null,null,null,null,null,null,null,null,null,null,null,null,null,null,null,null,null,null,null,null,null,null,null,null,null,null,null,null,null,null,null,null,null,null,null,null,null,null,"-"]
[493,null,null,"-",null,null,null,null,null,null,null,null,null,null,null,null,null,null,null,null,null,null,null,null,null,null,null,null,null,null,null,null,null,null,null,null,null,null,null,null,null,null,null,"-"]
[494,null,null,"-",null,null,null,null,null,null,null,null,null,null,null,null,null,null,null,null,null,null,null,null,null,null,null,null,null,null,null,null,null,null,null,null,null,null,null,null,null,null,null,"-"]
[495,null,null,"-",null,null,null,null,null,null,null,null,null,null,null,null,null,null,null,null,null,null,null,null,null,null,null,null,null,null,null,null,null,null,null,null,null,null,null,null,null,null,null,"-"]
[496,null,null,"-",null,null,null,null,null,null,null,null,null,null,null,null,null,null,null,null,null,null,null,null,null,null,null,null,null,null,null,null,null,null,null,null,null,null,null,null,null,null,null,"-"]
[497,null,null,"-",null,null,null,null,null,null,null,null,null,null,null,null,null,null,null,null,null,null,null,null,null,null,null,null,null,null,null,null,null,null,null,null,null,null,null,null,null,null,null,"-"]
[513,null,null,"-",null,null,null,null,null,null,null,null,null,null,null,null,null,null,null,null,null,null,null,null,null,null,null,null,null,null,null,null,null,null,null,null,null,null,null,null,null,null,null,"-"]
[517,null,null,"-",null,null,null,null,null,null,null,null,null,null,null,null,null,null,null,null,null,null,null,null,null,null,null,null,null,null,null,null,null,null,null,null,null,null,null,null,null,null,null,"-"]
[536,null,null,"-",null,null,null,null,null,null,null,null,null,null,null,null,null,null,null,null,null,null,null,null,null,null,null,null,null,null,null,null,null,null,null,null,null,null,null,null,null,null,null,"-"]
[561,null,null,"-",null,null,null,null,null,null,null,null,null,null,null,null,null,null,null,null,null,null,null,null,null,null,null,null,null,null,null,null,null,null,null,null,null,null,null,null,null,null,null,"-"]
[590,null,null,"-",null,null,null,null,null,null,null,null,null,null,null,null,null,null,null,null,null,null,null,null,null,null,null,null,null,null,null,null,null,null,null,null,null,null,null,null,null,null,null,"-"]
[598,null,null,"-",null,null,null,null,null,null,null,null,null,null,null,null,null,null,null,null,null,null,null,null,null,null,null,null,null,null,null,null,null,null,null,null,null,null,null,null,null,null,null,"-"]
[623,null,null,"-",null,null,null,null,null,null,null,null,null,null,null,null,null,null,null,null,null,null,null,null,null,null,null,null,null,null,null,null,null,null,null,null,null,null,null,null,null,null,null,"-"]
[642,null,null,{"$f":"TRIM(B645)&\"-\"&TRIM(C645)","v":"-"},null,null,null,null,null,null,null,null,null,null,null,null,null,null,null,null,null,null,null,null,null,null,null,null,null,null,null,null,null,null,null,null,null,null,null,null,null,null,null,"-"]
[649,null,null,"-",null,null,null,null,null,null,null,null,null,null,null,null,null,null,null,null,null,null,null,null,null,null,null,null,null,null,null,null,null,null,null,null,null,null,null,null,null,null,null,"-"]
[666,null,null,"-",null,null,null,null,null,null,null,null,null,null,null,null,null,null,null,null,null,null,null,null,null,null,null,null,null,null,null,null,null,null,null,null,null,null,null,null,null,null,null,"-"]
[685,null,null,"-",null,null,null,null,null,null,null,null,null,null,null,null,null,null,null,null,null,null,null,null,null,null,null,null,null,null,null,null,null,null,null,null,null,null,null,null,null,null,null,"-"]
[710,null,null,"-",null,null,null,null,null,null,null,null,null,null,null,null,null,null,null,null,null,null,null,null,null,null,null,null,null,null,null,null,null,null,null,null,null,null,null,null,null,null,null,"-"]
[740,null,null,"-",null,null,null,null,null,null,null,null,null,null,null,null,null,null,null,null,null,null,null,null,null,null,null,null,null,null,null,null,null,null,null,null,null,null,null,null,null,null,null,"-"]
[747,null,null,"-",null,null,null,null,null,null,null,null,null,null,null,null,null,null,null,null,null,null,null,null,null,null,null,null,null,null,null,null,null,null,null,null,null,null,null,null,null,null,null,"-"]
[772,null,null,"-",null,null,null,null,null,null,null,null,null,null,null,null,null,null,null,null,null,null,null,null,null,null,null,null,null,null,null,null,null,null,null,null,null,null,null,null,null,null,null,"-"]
[791,null,null,"-",null,null,null,null,null,null,null,null,null,null,null,null,null,null,null,null,null,null,null,null,null,null,null,null,null,null,null,null,null,null,null,null,null,null,null,null,null,null,null,"-"]
[799,null,null,"-",null,null,null,null,null,null,null,null,null,null,null,null,null,null,null,null,null,null,null,null,null,null,null,null,null,null,null,null,null,null,null,null,null,null,null,null,null,null,null,"-"]
[834,null,null,{"$f":"TRIM(B837)&\"-\"&TRIM(C837)","v":"-"},null,null,null,null,null,null,null,null,null,null,null,null,null,null,null,null,null,null,null,null,null,null,null,null,null,null,null,null,null,null,null,null,null,null,null,null,null,null,null,"-"]
[853,null,null,"-",null,null,null,null,null,null,null,null,null,null,null,null,null,null,null,null,null,null,null,null,null,null,null,null,null,null,null,null,null,null,null,null,null,null,null,null,null,null,null,"-"]
[859,null,null,"-",null,null,null,null,null,null,null,null,null,null,null,null,null,null,null,null,null,null,null,null,null,null,null,null,null,null,null,null,null,null,null,null,null,null,null,null,null,null,null,"-"]
[890,null,null,"-",null,null,null,null,null,null,null,null,null,null,null,null,null,null,null,null,null,null,null,null,null,null,null,null,null,null,null,null,null,null,null,null,null,null,null,null,null,null,null,"-"]
[902,null,null,"-",null,null,null,null,null,null,null,null,null,null,null,null,null,null,null,null,null,null,null,null,null,null,null,null,null,null,null,null,null,null,null,null,null,null,null,null,null,null,null,"-"]
[921,null,null,"-",null,null,null,null,null,null,null,null,null,null,null,null,null,null,null,null,null,null,null,null,null,null,null,null,null,null,null,null,null,null,null,null,null,null,null,null,null,null,null,"-"]
[940,null,null,"-",null,null,null,null,null,null,null,null,null,null,null,null,null,null,null,null,null,null,null,null,null,null,null,null,null,null,null,null,null,null,null,null,null,null,null,null,null,null,null,"-"]
[949,null,null,"-",null,null,null,null,null,null,null,null,null,null,null,null,null,null,null,null,null,null,null,null,null,null,null,null,null,null,null,null,null,null,null,null,null,null,null,null,null,null,null,"-"]
[983,null,null,"-",null,null,null,null,null,null,null,null,null,null,null,null,null,null,null,null,null,null,null,null,null,null,null,null,null,null,null,null,null,null,null,null,null,null,null,null,null,null,null,"-"]
[1002,null,null,"-",null,null,null,null,null,null,null,null,null,null,null,null,null,null,null,null,null,null,null,null,null,null,null,null,null,null,null,null,null,null,null,null,null,null,null,null,null,null,null,{"$f":"AP1005&\"-\"&AQ1005","v":"-"}]
[1008,null,null,"-",null,null,null,null,null,null,null,null,null,null,null,null,null,null,null,null,null,null,null,null,null,null,null,null,null,null,null,null,null,null,null,null,null,null,null,null,null,null,null,"-"]
[1040,null,null,"-",null,null,null,null,null,null,null,null,null,null,null,null,null,null,null,null,null,null,null,null,null,null,null,null,null,null,null,null,null,null,null,null,null,null,null,null,null,null,null,"-"]
[1051,null,null,"-",null,null,null,null,null,null,null,null,null,null,null,null,null,null,null,null,null,null,null,null,null,null,null,null,null,null,null,null,null,null,null,null,null,null,null,null,null,null,null,"-"]
[1070,null,null,"-",null,null,null,null,null,null,null,null,null,null,null,null,null,null,null,null,null,null,null,null,null,null,null,null,null,null,null,null,null,null,null,null,null,null,null,null,null,null,null,"-"]
[1089,null,null,"-",null,null,null,null,null,null,null,null,null,null,null,null,null,null,null,null,null,null,null,null,null,null,null,null,null,null,null,null,null,null,null,null,null,null,null,null,null,null,null,"-"]
[1114,null,null,"-",null,null,null,null,null,null,null,null,null,null,null,null,null,null,null,null,null,null,null,null,null,null,null,null,null,null,null,null,null,null,null,null,null,null,null,null,null,null,null,"-"]
[1121,null,null,"-",null,null,null,null,null,null,null,null,null,null,null,null,null,null,null,null,null,null,null,null,null,null,null,null,null,null,null,null,null,null,null,null,null,null,null,null,null,null,null,"-"]
[1151,null,null,"-",null,null,null,null,null,null,null,null,null,null,null,null,null,null,null,null,null,null,null,null,null,null,null,null,null,null,null,null,null,null,null,null,null,null,null,null,null,null,null,"-"]
[1157,null,null,"-",null,null,null,null,null,null,null,null,null,null,null,null,null,null,null,null,null,null,null,null,null,null,null,null,null,null,null,null,null,null,null,null,null,null,null,null,null,null,null,"-"]
[1176,null,null,"-",null,null,null,null,null,null,null,null,null,null,null,null,null,null,null,null,null,null,null,null,null,null,null,null,null,null,null,null,null,null,null,null,null,null,null,null,null,null,null,"-"]
[1198,null,null,"-",null,null,null,null,null,null,null,null,null,null,null,null,null,null,null,null,null,null,null,null,null,null,null,null,null,null,null,null,null,null,null,null,null,null,null,null,null,null,null,"-"]
[1219,null,null,"-",null,null,null,null,null,null,null,null,null,null,null,null,null,null,null,null,null,null,null,null,null,null,null,null,null,null,null,null,null,null,null,null,null,null,null,null,null,null,null,"-"]
[1238,null,null,"-",null,null,null,null,null,null,null,null,null,null,null,null,null,null,null,null,null,null,null,null,null,null,null,null,null,null,null,null,null,null,null,null,null,null,null,null,null,null,null,"-"]
[1263,null,null,"-",null,null,null,null,null,null,null,null,null,null,null,null,null,null,null,null,null,null,null,null,null,null,null,null,null,null,null,null,null,null,null,null,null,null,null,null,null,null,null,"-"]
[1271,null,null,"-",null,null,null,null,null,null,null,null,null,null,null,null,null,null,null,null,null,null,null,null,null,null,null,null,null,null,null,null,null,null,null,null,null,null,null,null,null,null,null,"-"]
[1287,null,null,"-",null,null,null,null,null,null,null,null,null,null,null,null,null,null,null,null,null,null,null,null,null,null,null,null,null,null,null,null,null,null,null,null,null,null,null,null,null,null,null,"-"]
[1306,null,null,"-",null,null,null,null,null,null,null,null,null,null,null,null,null,null,null,null,null,null,null,null,null,null,null,null,null,null,null,null,null,null,null,null,null,null,null,null,null,null,null,"-"]
[1325,null,null,"-",null,null,null,null,null,null,null,null,null,null,null,null,null,null,null,null,null,null,null,null,null,null,null,null,null,null,null,null,null,null,null,null,null,null,null,null,null,null,null,"-"]
[1348,null,null,"-",null,null,null,null,null,null,null,null,null,null,null,null,null,null,null,null,null,null,null,null,null,null,null,null,null,null,null,null,null,null,null,null,null,null,null,null,null,null,null,"-"]
[1368,null,null,"-",null,null,null,null,null,null,null,null,null,null,null,null,null,null,null,null,null,null,null,null,null,null,null,null,null,null,null,null,null,null,null,null,null,null,null,null,null,null,null,"-"]
[1387,null,null,"-",null,null,null,null,null,null,null,null,null,null,null,null,null,null,null,null,null,null,null,null,null,null,null,null,null,null,null,null,null,null,null,null,null,null,null,null,null,null,null,"-"]
[1412,null,null,"-",null,null,null,null,null,null,null,null,null,null,null,null,null,null,null,null,null,null,null,null,null,null,null,null,null,null,null,null,null,null,null,null,null,null,null,null,null,null,null,"-"]
[1421,null,null,"-",null,null,null,null,null,null,null,null,null,null,null,null,null,null,null,null,null,null,null,null,null,null,null,null,null,null,null,null,null,null,null,null,null,null,null,null,null,null,null,"-"]
[1436,null,null,"-",null,null,null,null,null,null,null,null,null,null,null,null,null,null,null,null,null,null,null,null,null,null,null,null,null,null,null,null,null,null,null,null,null,null,null,null,null,null,null,"-"]
[1455,null,null,"-",null,null,null,null,null,null,null,null,null,null,null,null,null,null,null,null,null,null,null,null,null,null,null,null,null,null,null,null,null,null,null,null,null,null,null,null,null,null,null,"-"]
[1474,null,null,{"$f":"TRIM(B1477)&\"-\"&TRIM(C1477)","v":"-"},null,null,null,null,null,null,null,null,null,null,null,null,null,null,null,null,null,null,null,null,null,null,null,null,null,null,null,null,null,null,null,null,null,null,null,null,null,null,null,"-"]
[1498,null,null,"-",null,null,null,null,null,null,null,null,null,null,null,null,null,null,null,null,null,null,null,null,null,null,null,null,null,null,null,null,null,null,null,null,null,null,null,null,null,null,null,"-"]
[1517,null,null,"-",null,null,null,null,null,null,null,null,null,null,null,null,null,null,null,null,null,null,null,null,null,null,null,null,null,null,null,null,null,null,null,null,null,null,null,null,null,null,null,"-"]
[1542,null,null,"-",null,null,null,null,null,null,null,null,null,null,null,null,null,null,null,null,null,null,null,null,null,null,null,null,null,null,null,null,null,null,null,null,null,null,null,null,null,null,null,"-"]
[1561,null,null,"-",null,null,null,null,null,null,null,null,null,null,null,null,null,null,null,null,null,null,null,null,null,null,null,null,null,null,null,null,null,null,null,null,null,null,null,null,null,null,null,"-"]
[1571,null,null,"-",null,null,null,null,null,null,null,null,null,null,null,null,null,null,null,null,null,null,null,null,null,null,null,null,null,null,null,null,null,null,null,null,null,null,null,null,null,null,null,"-"]
[1585,null,null,"-",null,null,null,null,null,null,null,null,null,null,null,null,null,null,null,null,null,null,null,null,null,null,null,null,null,null,null,null,null,null,null,null,null,null,null,null,null,null,null,"-"]
[1604,null,null,"-",null,null,null,null,null,null,null,null,null,null,null,null,null,null,null,null,null,null,null,null,null,null,null,null,null,null,null,null,null,null,null,null,null,null,null,null,null,null,null,"-"]
[1623,null,null,"-",null,null,null,null,null,null,null,null,null,null,null,null,null,null,null,null,null,null,null,null,null,null,null,null,null,null,null,null,null,null,null,null,null,null,null,null,null,null,null,"-"]
[1648,null,null,"-",null,null,null,null,null,null,null,null,null,null,null,null,null,null,null,null,null,null,null,null,null,null,null,null,null,null,null,null,null,null,null,null,null,null,null,null,null,null,null,"-"]
[1666,null,null,{"$f":"TRIM(B1669)&\"-\"&TRIM(C1669)","v":"-"},null,null,null,null,null,null,null,null,null,null,null,null,null,null,null,null,null,null,null,null,null,null,null,null,null,null,null,null,null,null,null,null,null,null,null,null,null,null,null,"-"]
[1691,null,null,"-",null,null,null,null,null,null,null,null,null,null,null,null,null,null,null,null,null,null,null,null,null,null,null,null,null,null,null,null,null,null,null,null,null,null,null,null,null,null,null,"-"]
[1710,null,null,"-",null,null,null,null,null,null,null,null,null,null,null,null,null,null,null,null,null,null,null,null,null,null,null,null,null,null,null,null,null,null,null,null,null,null,null,null,null,null,null,"-"]
[1729,null,null,"-",null,null,null,null,null,null,null,null,null,null,null,null,null,null,null,null,null,null,null,null,null,null,null,null,null,null,null,null,null,null,null,null,null,null,null,null,null,null,null,"-"]
[1747,null,null,"-",null,null,null,null,null,null,null,null,null,null,null,null,null,null,null,null,null,null,null,null,null,null,null,null,null,null,null,null,null,null,null,null,null,null,null,null,null,null,null,"-"]
[1772,null,null,"-",null,null,null,null,null,null,null,null,null,null,null,null,null,null,null,null,null,null,null,null,null,null,null,null,null,null,null,null,null,null,null,null,null,null,null,null,null,null,null,"-"]
[1791,null,null,"-",null,null,null,null,null,null,null,null,null,null,null,null,null,null,null,null,null,null,null,null,null,null,null,null,null,null,null,null,null,null,null,null,null,null,null,null,null,null,null,"-"]
[1797,null,null,"-",null,null,null,null,null,null,null,null,null,null,null,null,null,null,null,null,null,null,null,null,null,null,null,null,null,null,null,null,null,null,null,null,null,null,null,null,null,null,null,"-"]
[1820,null,null,"-",null,null,null,null,null,null,null,null,null,null,null,null,null,null,null,null,null,null,null,null,null,null,null,null,null,null,null,null,null,null,null,null,null,null,null,null,null,null,null,"-"]
[1840,null,null,"-",null,null,null,null,null,null,null,null,null,null,null,null,null,null,null,null,null,null,null,null,null,null,null,null,null,null,null,null,null,null,null,null,null,null,null,null,null,null,null,"-"]
[1859,null,null,"-",null,null,null,null,null,null,null,null,null,null,null,null,null,null,null,null,null,null,null,null,null,null,null,null,null,null,null,null,null,null,null,null,null,null,null,null,null,null,null,"-"]
[1878,null,null,"-",null,null,null,null,null,null,null,null,null,null,null,null,null,null,null,null,null,null,null,null,null,null,null,null,null,null,null,null,null,null,null,null,null,null,null,null,null,null,null,"-"]
[1897,null,null,"-",null,null,null,null,null,null,null,null,null,null,null,null,null,null,null,null,null,null,null,null,null,null,null,null,null,null,null,null,null,null,null,null,null,null,null,null,null,null,null,"-"]
[1921,null,null,"-",null,null,null,null,null,null,null,null,null,null,null,null,null,null,null,null,null,null,null,null,null,null,null,null,null,null,null,null,null,null,null,null,null,null,null,null,null,null,null,"-"]
[1927,null,null,"-",null,null,null,null,null,null,null,null,null,null,null,null,null,null,null,null,null,null,null,null,null,null,null,null,null,null,null,null,null,null,null,null,null,null,null,null,null,null,null,"-"]
[1946,null,null,"-",null,null,null,null,null,null,null,null,null,null,null,null,null,null,null,null,null,null,null,null,null,null,null,null,null,null,null,null,null,null,null,null,null,null,null,null,null,null,null,"-"]
[1970,null,null,"-",null,null,null,null,null,null,null,null,null,null,null,null,null,null,null,null,null,null,null,null,null,null,null,null,null,null,null,null,null,null,null,null,null,null,null,null,null,null,null,"-"]
[1989,null,null,"-",null,null,null,null,null,null,null,null,null,null,null,null,null,null,null,null,null,null,null,null,null,null,null,null,null,null,null,null,null,null,null,null,null,null,null,null,null,null,null,"-"]
[2008,null,null,"-",null,null,null,null,null,null,null,null,null,null,null,null,null,null,null,null,null,null,null,null,null,null,null,null,null,null,null,null,null,null,null,null,null,null,null,null,null,null,null,"-"]
[2027,null,null,"-",null,null,null,null,null,null,null,null,null,null,null,null,null,null,null,null,null,null,null,null,null,null,null,null,null,null,null,null,null,null,null,null,null,null,null,null,null,null,null,"-"]
[2047,null,null,"-",null,null,null,null,null,null,null,null,null,null,null,null,null,null,null,null,null,null,null,null,null,null,null,null,null,null,null,null,null,null,null,null,null,null,null,null,null,null,null,"-"]
[2070,null,null,"-",null,null,null,null,null,null,null,null,null,null,null,null,null,null,null,null,null,null,null,null,null,null,null,null,null,null,null,null,null,null,null,null,null,null,null,null,null,null,null,"-"]
[2076,null,null,"-",null,null,null,null,null,null,null,null,null,null,null,null,null,null,null,null,null,null,null,null,null,null,null,null,null,null,null,null,null,null,null,null,null,null,null,null,null,null,null,"-"]
[2095,null,null,"-",null,null,null,null,null,null,null,null,null,null,null,null,null,null,null,null,null,null,null,null,null,null,null,null,null,null,null,null,null,null,null,null,null,null,null,null,null,null,null,"-"]
[2120,null,null,"-",null,null,null,null,null,null,null,null,null,null,null,null,null,null,null,null,null,null,null,null,null,null,null,null,null,null,null,null,null,null,null,null,null,null,null,null,null,null,null,"-"]
[2138,null,null,"-",null,null,null,null,null,null,null,null,null,null,null,null,null,null,null,null,null,null,null,null,null,null,null,null,null,null,null,null,null,null,null,null,null,null,null,null,null,null,null,"-"]
[2157,null,null,"-",null,null,null,null,null,null,null,null,null,null,null,null,null,null,null,null,null,null,null,null,null,null,null,null,null,null,null,null,null,null,null,null,null,null,null,null,null,null,null,"-"]
[2176,null,null,"-",null,null,null,null,null,null,null,null,null,null,null,null,null,null,null,null,null,null,null,null,null,null,null,null,null,null,null,null,null,null,null,null,null,null,null,null,null,null,null,"-"]
[2197,null,null,"-",null,null,null,null,null,null,null,null,null,null,null,null,null,null,null,null,null,null,null,null,null,null,null,null,null,null,null,null,null,null,null,null,null,null,null,null,null,null,null,"-"]
[2219,null,null,"-",null,null,null,null,null,null,null,null,null,null,null,null,null,null,null,null,null,null,null,null,null,null,null,null,null,null,null,null,null,null,null,null,null,null,null,null,null,null,null,"-"]
[2225,null,null,"-",null,null,null,null,null,null,null,null,null,null,null,null,null,null,null,null,null,null,null,null,null,null,null,null,null,null,null,null,null,null,null,null,null,null,null,null,null,null,null,"-"]
[2244,null,null,"-",null,null,null,null,null,null,null,null,null,null,null,null,null,null,null,null,null,null,null,null,null,null,null,null,null,null,null,null,null,null,null,null,null,null,null,null,null,null,null,"-"]
[2263,null,null,"-",null,null,null,null,null,null,null,null,null,null,null,null,null,null,null,null,null,null,null,null,null,null,null,null,null,null,null,null,null,null,null,null,null,null,null,null,null,null,null,"-"]
[2296,null,null,"-",null,null,null,null,null,null,null,null,null,null,null,null,null,null,null,null,null,null,null,null,null,null,null,null,null,null,null,null,null,null,null,null,null,null,null,null,null,null,null,"-"]
[2306,null,null,{"$f":"TRIM(B2309)&\"-\"&TRIM(C2309)","v":"-"},null,null,null,null,null,null,null,null,null,null,null,null,null,null,null,null,null,null,null,null,null,null,null,null,null,null,null,null,null,null,null,null,null,null,null,null,null,null,null,"-"]
[2331,null,null,"-",null,null,null,null,null,null,null,null,null,null,null,null,null,null,null,null,null,null,null,null,null,null,null,null,null,null,null,null,null,null,null,null,null,null,null,null,null,null,null,"-"]
[2350,null,null,"-",null,null,null,null,null,null,null,null,null,null,null,null,null,null,null,null,null,null,null,null,null,null,null,null,null,null,null,null,null,null,null,null,null,null,null,null,null,null,null,"-"]
[2369,null,null,"-",null,null,null,null,null,null,null,null,null,null,null,null,null,null,null,null,null,null,null,null,null,null,null,null,null,null,null,null,null,null,null,null,null,null,null,null,null,null,null,"-"]
[2374,null,null,"-",null,null,null,null,null,null,null,null,null,null,null,null,null,null,null,null,null,null,null,null,null,null,null,null,null,null,null,null,null,null,null,null,null,null,null,null,null,null,null,"-"]
[2393,null,null,"-",null,null,null,null,null,null,null,null,null,null,null,null,null,null,null,null,null,null,null,null,null,null,null,null,null,null,null,null,null,null,null,null,null,null,null,null,null,null,null,"-"]
[2412,null,null,"-",null,null,null,null,null,null,null,null,null,null,null,null,null,null,null,null,null,null,null,null,null,null,null,null,null,null,null,null,null,null,null,null,null,null,null,null,null,null,null,"-"]
[2446,null,null,"-",null,null,null,null,null,null,null,null,null,null,null,null,null,null,null,null,null,null,null,null,null,null,null,null,null,null,null,null,null,null,null,null,null,null,null,null,null,null,null,"-"]
[2455,null,null,"-",null,null,null,null,null,null,null,null,null,null,null,null,null,null,null,null,null,null,null,null,null,null,null,null,null,null,null,null,null,null,null,null,null,null,null,null,null,null,null,"-"]
[2480,null,null,"-",null,null,null,null,null,null,null,null,null,null,null,null,null,null,null,null,null,null,null,null,null,null,null,null,null,null,null,null,null,null,null,null,null,null,null,null,null,null,null,"-"]
[2499,null,null,"-",null,null,null,null,null,null,null,null,null,null,null,null,null,null,null,null,null,null,null,null,null,null,null,null,null,null,null,null,null,null,null,null,null,null,null,null,null,null,null,"-"]
[2519,null,null,"-",null,null,null,null,null,null,null,null,null,null,null,null,null,null,null,null,null,null,null,null,null,null,null,null,null,null,null,null,null,null,null,null,null,null,null,null,null,null,null,"-"]
[2523,null,null,"-",null,null,null,null,null,null,null,null,null,null,null,null,null,null,null,null,null,null,null,null,null,null,null,null,null,null,null,null,null,null,null,null,null,null,null,null,null,null,null,"-"]
[2542,null,null,"-",null,null,null,null,null,null,null,null,null,null,null,null,null,null,null,null,null,null,null,null,null,null,null,null,null,null,null,null,null,null,null,null,null,null,null,null,null,null,null,"-"]
[2567,null,null,"-",null,null,null,null,null,null,null,null,null,null,null,null,null,null,null,null,null,null,null,null,null,null,null,null,null,null,null,null,null,null,null,null,null,null,null,null,null,null,null,"-"]
[2596,null,null,"-",null,null,null,null,null,null,null,null,null,null,null,null,null,null,null,null,null,null,null,null,null,null,null,null,null,null,null,null,null,null,null,null,null,null,null,null,null,null,null,"-"]
[2604,null,null,"-",null,null,null,null,null,null,null,null,null,null,null,null,null,null,null,null,null,null,null,null,null,null,null,null,null,null,null,null,null,null,null,null,null,null,null,null,null,null,null,"-"]
[2629,null,null,"-",null,null,null,null,null,null,null,null,null,null,null,null,null,null,null,null,null,null,null,null,null,null,null,null,null,null,null,null,null,null,null,null,null,null,null,null,null,null,null,"-"]
[2648,null,null,"-",null,null,null,null,null,null,null,null,null,null,null,null,null,null,null,null,null,null,null,null,null,null,null,null,null,null,null,null,null,null,null,null,null,null,null,null,null,null,null,"-"]
[2669,null,null,"-",null,null,null,null,null,null,null,null,null,null,null,null,null,null,null,null,null,null,null,null,null,null,null,null,null,null,null,null,null,null,null,null,null,null,null,null,null,null,null,"-"]
[2691,null,null,"-",null,null,null,null,null,null,null,null,null,null,null,null,null,null,null,null,null,null,null,null,null,null,null,null,null,null,null,null,null,null,null,null,null,null,null,null,null,null,null,"-"]
[2710,null,null,"-",null,null,null,null,null,null,null,null,null,null,null,null,null,null,null,null,null,null,null,null,null,null,null,null,null,null,null,null,null,null,null,null,null,null,null,null,null,null,null,"-"]
[2716,null,null,"-",null,null,null,null,null,null,null,null,null,null,null,null,null,null,null,null,null,null,null,null,null,null,null,null,null,null,null,null,null,null,null,null,null,null,null,null,null,null,null,"-"]
[2746,null,null,"-",null,null,null,null,null,null,null,null,null,null,null,null,null,null,null,null,null,null,null,null,null,null,null,null,null,null,null,null,null,null,null,null,null,null,null,null,null,null,null,"-"]
[2753,null,null,"-",null,null,null,null,null,null,null,null,null,null,null,null,null,null,null,null,null,null,null,null,null,null,null,null,null,null,null,null,null,null,null,null,null,null,null,null,null,null,null,"-"]
[2778,null,null,"-",null,null,null,null,null,null,null,null,null,null,null,null,null,null,null,null,null,null,null,null,null,null,null,null,null,null,null,null,null,null,null,null,null,null,null,null,null,null,null,"-"]
[2797,null,null,"-",null,null,null,null,null,null,null,null,null,null,null,null,null,null,null,null,null,null,null,null,null,null,null,null,null,null,null,null,null,null,null,null,null,null,null,null,null,null,null,"-"]
[2819,null,null,"-",null,null,null,null,null,null,null,null,null,null,null,null,null,null,null,null,null,null,null,null,null,null,null,null,null,null,null,null,null,null,null,null,null,null,null,null,null,null,null,"-"]
[2840,null,null,"-",null,null,null,null,null,null,null,null,null,null,null,null,null,null,null,null,null,null,null,null,null,null,null,null,null,null,null,null,null,null,null,null,null,null,null,null,null,null,null,"-"]
[2859,null,null,"-",null,null,null,null,null,null,null,null,null,null,null,null,null,null,null,null,null,null,null,null,null,null,null,null,null,null,null,null,null,null,null,null,null,null,null,null,null,null,null,"-"]
[2865,null,null,"-",null,null,null,null,null,null,null,null,null,null,null,null,null,null,null,null,null,null,null,null,null,null,null,null,null,null,null,null,null,null,null,null,null,null,null,null,null,null,null,"-"]
[2884,null,null,"-",null,null,null,null,null,null,null,null,null,null,null,null,null,null,null,null,null,null,null,null,null,null,null,null,null,null,null,null,null,null,null,null,null,null,null,null,null,null,null,"-"]
[2900,null,null,"-",null,null,null,null,null,null,null,null,null,null,null,null,null,null,null,null,null,null,null,null,null,null,null,null,null,null,null,null,null,null,null,null,null,null,null,null,null,null,null,"-"]
[2927,null,null,"-",null,null,null,null,null,null,null,null,null,null,null,null,null,null,null,null,null,null,null,null,null,null,null,null,null,null,null,null,null,null,null,null,null,null,null,null,null,null,null,"-"]
[2946,null,null,{"$f":"TRIM(B2949)&\"-\"&TRIM(C2949)","v":"-"},null,null,null,null,null,null,null,null,null,null,null,null,null,null,null,null,null,null,null,null,null,null,null,null,null,null,null,null,null,null,null,null,null,null,null,null,null,null,null,"-"]
[2971,null,null,"-",null,null,null,null,null,null,null,null,null,null,null,null,null,null,null,null,null,null,null,null,null,null,null,null,null,null,null,null,null,null,null,null,null,null,null,null,null,null,null,"-"]
[2977,null,null,"-",null,null,null,null,null,null,null,null,null,null,null,null,null,null,null,null,null,null,null,null,null,null,null,null,null,null,null,null,null,null,null,null,null,null,null,null,null,null,null,"-"]
[3008,null,null,"-",null,null,null,null,null,null,null,null,null,null,null,null,null,null,null,null,null,null,null,null,null,null,null,null,null,null,null,null,null,null,null,null,null,null,null,null,null,null,null,"-"]
[3014,null,null,"-",null,null,null,null,null,null,null,null,null,null,null,null,null,null,null,null,null,null,null,null,null,null,null,null,null,null,null,null,null,null,null,null,null,null,null,null,null,null,null,"-"]
[3033,null,null,"-",null,null,null,null,null,null,null,null,null,null,null,null,null,null,null,null,null,null,null,null,null,null,null,null,null,null,null,null,null,null,null,null,null,null,null,null,null,null,null,"-"]
[3050,null,null,"-",null,null,null,null,null,null,null,null,null,null,null,null,null,null,null,null,null,null,null,null,null,null,null,null,null,null,null,null,null,null,null,null,null,null,null,null,null,null,null,{"$f":"AP3053&\"-\"&AQ3053","v":"-"}]
[3076,null,null,"-",null,null,null,null,null,null,null,null,null,null,null,null,null,null,null,null,null,null,null,null,null,null,null,null,null,null,null,null,null,null,null,null,null,null,null,null,null,null,null,"-"]
[3095,null,null,"-",null,null,null,null,null,null,null,null,null,null,null,null,null,null,null,null,null,null,null,null,null,null,null,null,null,null,null,null,null,null,null,null,null,null,null,null,null,null,null,"-"]
[3120,null,null,"-",null,null,null,null,null,null,null,null,null,null,null,null,null,null,null,null,null,null,null,null,null,null,null,null,null,null,null,null,null,null,null,null,null,null,null,null,null,null,null,"-"]
[3127,null,null,"-",null,null,null,null,null,null,null,null,null,null,null,null,null,null,null,null,null,null,null,null,null,null,null,null,null,null,null,null,null,null,null,null,null,null,null,null,null,null,null,"-"]
[3157,null,null,"-",null,null,null,null,null,null,null,null,null,null,null,null,null,null,null,null,null,null,null,null,null,null,null,null,null,null,null,null,null,null,null,null,null,null,null,null,null,null,null,"-"]
[3163,null,null,"-",null,null,null,null,null,null,null,null,null,null,null,null,null,null,null,null,null,null,null,null,null,null,null,null,null,null,null,null,null,null,null,null,null,null,null,null,null,null,null,"-"]
[3182,null,null,"-",null,null,null,null,null,null,null,null,null,null,null,null,null,null,null,null,null,null,null,null,null,null,null,null,null,null,null,null,null,null,null,null,null,null,null,null,null,null,null,"-"]
[3204,null,null,"-",null,null,null,null,null,null,null,null,null,null,null,null,null,null,null,null,null,null,null,null,null,null,null,null,null,null,null,null,null,null,null,null,null,null,null,null,null,null,null,"-"]
[3225,null,null,"-",null,null,null,null,null,null,null,null,null,null,null,null,null,null,null,null,null,null,null,null,null,null,null,null,null,null,null,null,null,null,null,null,null,null,null,null,null,null,null,"-"]
[3244,null,null,"-",null,null,null,null,null,null,null,null,null,null,null,null,null,null,null,null,null,null,null,null,null,null,null,null,null,null,null,null,null,null,null,null,null,null,null,null,null,null,null,"-"]
[3269,null,null,"-",null,null,null,null,null,null,null,null,null,null,null,null,null,null,null,null,null,null,null,null,null,null,null,null,null,null,null,null,null,null,null,null,null,null,null,null,null,null,null,"-"]
[3277,null,null,"-",null,null,null,null,null,null,null,null,null,null,null,null,null,null,null,null,null,null,null,null,null,null,null,null,null,null,null,null,null,null,null,null,null,null,null,null,null,null,null,"-"]
[3306,null,null,"-",null,null,null,null,null,null,null,null,null,null,null,null,null,null,null,null,null,null,null,null,null,null,null,null,null,null,null,null,null,null,null,null,null,null,null,null,null,null,null,{"$f":"AP3309&\"-\"&AQ3309","v":"-"}]
[3312,null,null,"-",null,null,null,null,null,null,null,null,null,null,null,null,null,null,null,null,null,null,null,null,null,null,null,null,null,null,null,null,null,null,null,null,null,null,null,null,null,null,null,"-"]
[3331,null,null,"-",null,null,null,null,null,null,null,null,null,null,null,null,null,null,null,null,null,null,null,null,null,null,null,null,null,null,null,null,null,null,null,null,null,null,null,null,null,null,null,"-"]
[3354,null,null,"-",null,null,null,null,null,null,null,null,null,null,null,null,null,null,null,null,null,null,null,null,null,null,null,null,null,null,null,null,null,null,null,null,null,null,null,null,null,null,null,"-"]
[3374,null,null,"-",null,null,null,null,null,null,null,null,null,null,null,null,null,null,null,null,null,null,null,null,null,null,null,null,null,null,null,null,null,null,null,null,null,null,null,null,null,null,null,"-"]
[3393,null,null,"-",null,null,null,null,null,null,null,null,null,null,null,null,null,null,null,null,null,null,null,null,null,null,null,null,null,null,null,null,null,null,null,null,null,null,null,null,null,null,null,"-"]
[3418,null,null,"-",null,null,null,null,null,null,null,null,null,null,null,null,null,null,null,null,null,null,null,null,null,null,null,null,null,null,null,null,null,null,null,null,null,null,null,null,null,null,null,"-"]
[3437,null,null,"-",null,null,null,null,null,null,null,null,null,null,null,null,null,null,null,null,null,null,null,null,null,null,null,null,null,null,null,null,null,null,null,null,null,null,null,null,null,null,null,"-"]
[3449,null,null,"-",null,null,null,null,null,null,null,null,null,null,null,null,null,null,null,null,null,null,null,null,null,null,null,null,null,null,null,null,null,null,null,null,null,null,null,null,null,null,null,"-"]
[3461,null,null,"-",null,null,null,null,null,null,null,null,null,null,null,null,null,null,null,null,null,null,null,null,null,null,null,null,null,null,null,null,null,null,null,null,null,null,null,null,null,null,null,"-"]
[3480,null,null,"-",null,null,null,null,null,null,null,null,null,null,null,null,null,null,null,null,null,null,null,null,null,null,null,null,null,null,null,null,null,null,null,null,null,null,null,null,null,null,null,"-"]
[3505,null,null,"-",null,null,null,null,null,null,null,null,null,null,null,null,null,null,null,null,null,null,null,null,null,null,null,null,null,null,null,null,null,null,null,null,null,null,null,null,null,null,null,"-"]
[3526,null,null,"-",null,null,null,null,null,null,null,null,null,null,null,null,null,null,null,null,null,null,null,null,null,null,null,null,null,null,null,null,null,null,null,null,null,null,null,null,null,null,null,"-"]
[3542,null,null,"-",null,null,null,null,null,null,null,null,null,null,null,null,null,null,null,null,null,null,null,null,null,null,null,null,null,null,null,null,null,null,null,null,null,null,null,null,null,null,null,"-"]
[3567,null,null,"-",null,null,null,null,null,null,null,null,null,null,null,null,null,null,null,null,null,null,null,null,null,null,null,null,null,null,null,null,null,null,null,null,null,null,null,null,null,null,null,"-"]
[3586,null,null,{"$f":"TRIM(B3589)&\"-\"&TRIM(C3589)","v":"-"},null,null,null,null,null,null,null,null,null,null,null,null,null,null,null,null,null,null,null,null,null,null,null,null,null,null,null,null,null,null,null,null,null,null,null,null,null,null,null,"-"]
[3603,null,null,"-",null,null,null,null,null,null,null,null,null,null,null,null,null,null,null,null,null,null,null,null,null,null,null,null,null,null,null,null,null,null,null,null,null,null,null,null,null,null,null,"-"]
[3629,null,null,"-",null,null,null,null,null,null,null,null,null,null,null,null,null,null,null,null,null,null,null,null,null,null,null,null,null,null,null,null,null,null,null,null,null,null,null,null,null,null,null,"-"]
[3648,null,null,"-",null,null,null,null,null,null,null,null,null,null,null,null,null,null,null,null,null,null,null,null,null,null,null,null,null,null,null,null,null,null,null,null,null,null,null,null,null,null,null,"-"]
[3654,null,null,"-",null,null,null,null,null,null,null,null,null,null,null,null,null,null,null,null,null,null,null,null,null,null,null,null,null,null,null,null,null,null,null,null,null,null,null,null,null,null,null,"-"]
[3676,null,null,"-",null,null,null,null,null,null,null,null,null,null,null,null,null,null,null,null,null,null,null,null,null,null,null,null,null,null,null,null,null,null,null,null,null,null,null,null,null,null,null,"-"]
[3691,null,null,"-",null,null,null,null,null,null,null,null,null,null,null,null,null,null,null,null,null,null,null,null,null,null,null,null,null,null,null,null,null,null,null,null,null,null,null,null,null,null,null,"-"]
[3716,null,null,"-",null,null,null,null,null,null,null,null,null,null,null,null,null,null,null,null,null,null,null,null,null,null,null,null,null,null,null,null,null,null,null,null,null,null,null,null,null,null,null,"-"]
[3735,null,null,"-",null,null,null,null,null,null,null,null,null,null,null,null,null,null,null,null,null,null,null,null,null,null,null,null,null,null,null,null,null,null,null,null,null,null,null,null,null,null,null,"-"]
[3753,null,null,"-",null,null,null,null,null,null,null,null,null,null,null,null,null,null,null,null,null,null,null,null,null,null,null,null,null,null,null,null,null,null,null,null,null,null,null,null,null,null,null,"-"]
[3778,null,null,{"$f":"TRIM(B3781)&\"-\"&TRIM(C3781)","v":"-"},null,null,null,null,null,null,null,null,null,null,null,null,null,null,null,null,null,null,null,null,null,null,null,null,null,null,null,null,null,null,null,null,null,null,null,null,null,null,null,"-"]
[3797,null,null,"-",null,null,null,null,null,null,null,null,null,null,null,null,null,null,null,null,null,null,null,null,null,null,null,null,null,null,null,null,null,null,null,null,null,null,null,null,null,null,null,"-"]
[3803,null,null,"-",null,null,null,null,null,null,null,null,null,null,null,null,null,null,null,null,null,null,null,null,null,null,null,null,null,null,null,null,null,null,null,null,null,null,null,null,null,null,null,"-"]
[3826,null,null,"-",null,null,null,null,null,null,null,null,null,null,null,null,null,null,null,null,null,null,null,null,null,null,null,null,null,null,null,null,null,null,null,null,null,null,null,null,null,null,null,"-"]
[3840,null,null,"-",null,null,null,null,null,null,null,null,null,null,null,null,null,null,null,null,null,null,null,null,null,null,null,null,null,null,null,null,null,null,null,null,null,null,null,null,null,null,null,"-"]
[3865,null,null,"-",null,null,null,null,null,null,null,null,null,null,null,null,null,null,null,null,null,null,null,null,null,null,null,null,null,null,null,null,null,null,null,null,null,null,null,null,null,null,null,"-"]
[3884,null,null,"-",null,null,null,null,null,null,null,null,null,null,null,null,null,null,null,null,null,null,null,null,null,null,null,null,null,null,null,null,null,null,null,null,null,null,null,null,null,null,null,"-"]
[3903,null,null,"-",null,null,null,null,null,null,null,null,null,null,null,null,null,null,null,null,null,null,null,null,null,null,null,null,null,null,null,null,null,null,null,null,null,null,null,null,null,null,null,"-"]
[3927,null,null,"-",null,null,null,null,null,null,null,null,null,null,null,null,null,null,null,null,null,null,null,null,null,null,null,null,null,null,null,null,null,null,null,null,null,null,null,null,null,null,null,"-"]
[3946,null,null,"-",null,null,null,null,null,null,null,null,null,null,null,null,null,null,null,null,null,null,null,null,null,null,null,null,null,null,null,null,null,null,null,null,null,null,null,null,null,null,null,{"$f":"AP3949&\"-\"&AQ3949","v":"-"}]
[3952,null,null,"-",null,null,null,null,null,null,null,null,null,null,null,null,null,null,null,null,null,null,null,null,null,null,null,null,null,null,null,null,null,null,null,null,null,null,null,null,null,null,null,"-"]
[3976,null,null,"-",null,null,null,null,null,null,null,null,null,null,null,null,null,null,null,null,null,null,null,null,null,null,null,null,null,null,null,null,null,null,null,null,null,null,null,null,null,null,null,"-"]
[3995,null,null,"-",null,null,null,null,null,null,null,null,null,null,null,null,null,null,null,null,null,null,null,null,null,null,null,null,null,null,null,null,null,null,null,null,null,null,null,null,null,null,null,"-"]
[4014,null,null,"-",null,null,null,null,null,null,null,null,null,null,null,null,null,null,null,null,null,null,null,null,null,null,null,null,null,null,null,null,null,null,null,null,null,null,null,null,null,null,null,"-"]
[4033,null,null,"-",null,null,null,null,null,null,null,null,null,null,null,null,null,null,null,null,null,null,null,null,null,null,null,null,null,null,null,null,null,null,null,null,null,null,null,null,null,null,null,"-"]
[4058,null,null,"-",null,null,null,null,null,null,null,null,null,null,null,null,null,null,null,null,null,null,null,null,null,null,null,null,null,null,null,null,null,null,null,null,null,null,null,null,null,null,null,"-"]
[4075,null,null,"-",null,null,null,null,null,null,null,null,null,null,null,null,null,null,null,null,null,null,null,null,null,null,null,null,null,null,null,null,null,null,null,null,null,null,null,null,null,null,null,"-"]
[4095,null,null,"-",null,null,null,null,null,null,null,null,null,null,null,null,null,null,null,null,null,null,null,null,null,null,null,null,null,null,null,null,null,null,null,null,null,null,null,null,null,null,null,"-"]
[4101,null,null,"-",null,null,null,null,null,null,null,null,null,null,null,null,null,null,null,null,null,null,null,null,null,null,null,null,null,null,null,null,null,null,null,null,null,null,null,null,null,null,null,"-"]
[4120,null,null,"-",null,null,null,null,null,null,null,null,null,null,null,null,null,null,null,null,null,null,null,null,null,null,null,null,null,null,null,null,null,null,null,null,null,null,null,null,null,null,null,"-"]
[4152,null,null,"-",null,null,null,null,null,null,null,null,null,null,null,null,null,null,null,null,null,null,null,null,null,null,null,null,null,null,null,null,null,null,null,null,null,null,null,null,null,null,null,"-"]
[4163,null,null,"-",null,null,null,null,null,null,null,null,null,null,null,null,null,null,null,null,null,null,null,null,null,null,null,null,null,null,null,null,null,null,null,null,null,null,null,null,null,null,null,"-"]
[4182,null,null,"-",null,null,null,null,null,null,null,null,null,null,null,null,null,null,null,null,null,null,null,null,null,null,null,null,null,null,null,null,null,null,null,null,null,null,null,null,null,null,null,"-"]
[4207,null,null,"-",null,null,null,null,null,null,null,null,null,null,null,null,null,null,null,null,null,null,null,null,null,null,null,null,null,null,null,null,null,null,null,null,null,null,null,null,null,null,null,"-"]
[4225,null,null,"-",null,null,null,null,null,null,null,null,null,null,null,null,null,null,null,null,null,null,null,null,null,null,null,null,null,null,null,null,null,null,null,null,null,null,null,null,null,null,null,"-"]
[4231,null,null,"-",null,null,null,null,null,null,null,null,null,null,null,null,null,null,null,null,null,null,null,null,null,null,null,null,null,null,null,null,null,null,null,null,null,null,null,null,null,null,null,"-"]
[4250,null,null,"-",null,null,null,null,null,null,null,null,null,null,null,null,null,null,null,null,null,null,null,null,null,null,null,null,null,null,null,null,null,null,null,null,null,null,null,null,null,null,null,"-"]
[4269,null,null,"-",null,null,null,null,null,null,null,null,null,null,null,null,null,null,null,null,null,null,null,null,null,null,null,null,null,null,null,null,null,null,null,null,null,null,null,null,null,null,null,"-"]
[4302,null,null,"-",null,null,null,null,null,null,null,null,null,null,null,null,null,null,null,null,null,null,null,null,null,null,null,null,null,null,null,null,null,null,null,null,null,null,null,null,null,null,null,"-"]
[4312,null,null,"-",null,null,null,null,null,null,null,null,null,null,null,null,null,null,null,null,null,null,null,null,null,null,null,null,null,null,null,null,null,null,null,null,null,null,null,null,null,null,null,"-"]
[4331,null,null,"-",null,null,null,null,null,null,null,null,null,null,null,null,null,null,null,null,null,null,null,null,null,null,null,null,null,null,null,null,null,null,null,null,null,null,null,null,null,null,null,"-"]
[4356,null,null,"-",null,null,null,null,null,null,null,null,null,null,null,null,null,null,null,null,null,null,null,null,null,null,null,null,null,null,null,null,null,null,null,null,null,null,null,null,null,null,null,"-"]
[4375,null,null,"-",null,null,null,null,null,null,null,null,null,null,null,null,null,null,null,null,null,null,null,null,null,null,null,null,null,null,null,null,null,null,null,null,null,null,null,null,null,null,null,"-"]
[4380,null,null,"-",null,null,null,null,null,null,null,null,null,null,null,null,null,null,null,null,null,null,null,null,null,null,null,null,null,null,null,null,null,null,null,null,null,null,null,null,null,null,null,"-"]
[4399,null,null,"-",null,null,null,null,null,null,null,null,null,null,null,null,null,null,null,null,null,null,null,null,null,null,null,null,null,null,null,null,null,null,null,null,null,null,null,null,null,null,null,"-"]
[4418,null,null,{"$f":"TRIM(B4421)&\"-\"&TRIM(C4421)","v":"-"},null,null,null,null,null,null,null,null,null,null,null,null,null,null,null,null,null,null,null,null,null,null,null,null,null,null,null,null,null,null,null,null,null,null,null,null,null,null,null,"-"]
[4452,null,null,"-",null,null,null,null,null,null,null,null,null,null,null,null,null,null,null,null,null,null,null,null,null,null,null,null,null,null,null,null,null,null,null,null,null,null,null,null,null,null,null,"-"]
[4461,null,null,"-",null,null,null,null,null,null,null,null,null,null,null,null,null,null,null,null,null,null,null,null,null,null,null,null,null,null,null,null,null,null,null,null,null,null,null,null,null,null,null,"-"]
[4480,null,null,"-",null,null,null,null,null,null,null,null,null,null,null,null,null,null,null,null,null,null,null,null,null,null,null,null,null,null,null,null,null,null,null,null,null,null,null,null,null,null,null,"-"]
[4505,null,null,"-",null,null,null,null,null,null,null,null,null,null,null,null,null,null,null,null,null,null,null,null,null,null,null,null,null,null,null,null,null,null,null,null,null,null,null,null,null,null,null,"-"]
[4525,null,null,"-",null,null,null,null,null,null,null,null,null,null,null,null,null,null,null,null,null,null,null,null,null,null,null,null,null,null,null,null,null,null,null,null,null,null,null,null,null,null,null,"-"]
[4548,null,null,"-",null,null,null,null,null,null,null,null,null,null,null,null,null,null,null,null,null,null,null,null,null,null,null,null,null,null,null,null,null,null,null,null,null,null,null,null,null,null,null,"-"]
[4567,null,null,"-",null,null,null,null,null,null,null,null,null,null,null,null,null,null,null,null,null,null,null,null,null,null,null,null,null,null,null,null,null,null,null,null,null,null,null,null,null,null,null,"-"]
[4586,null,null,"-",null,null,null,null,null,null,null,null,null,null,null,null,null,null,null,null,null,null,null,null,null,null,null,null,null,null,null,null,null,null,null,null,null,null,null,null,null,null,null,{"$f":"AP4589&\"-\"&AQ4589","v":"-"}]
[4592,null,null,"-",null,null,null,null,null,null,null,null,null,null,null,null,null,null,null,null,null,null,null,null,null,null,null,null,null,null,null,null,null,null,null,null,null,null,null,null,null,null,null,"-"]
[4606,null,null,"-",null,null,null,null,null,null,null,null,null,null,null,null,null,null,null,null,null,null,null,null,null,null,null,null,null,null,null,null,null,null,null,null,null,null,null,null,null,null,null,"-"]
[4635,null,null,"-",null,null,null,null,null,null,null,null,null,null,null,null,null,null,null,null,null,null,null,null,null,null,null,null,null,null,null,null,null,null,null,null,null,null,null,null,null,null,null,"-"]
[4654,null,null,"-",null,null,null,null,null,null,null,null,null,null,null,null,null,null,null,null,null,null,null,null,null,null,null,null,null,null,null,null,null,null,null,null,null,null,null,null,null,null,null,"-"]
[4673,null,null,"-",null,null,null,null,null,null,null,null,null,null,null,null,null,null,null,null,null,null,null,null,null,null,null,null,null,null,null,null,null,null,null,null,null,null,null,null,null,null,null,"-"]
[4683,null,null,"-",null,null,null,null,null,null,null,null,null,null,null,null,null,null,null,null,null,null,null,null,null,null,null,null,null,null,null,null,null,null,null,null,null,null,null,null,null,null,null,"-"]
[4716,null,null,"-",null,null,null,null,null,null,null,null,null,null,null,null,null,null,null,null,null,null,null,null,null,null,null,null,null,null,null,null,null,null,null,null,null,null,null,null,null,null,null,"-"]
[4735,null,null,"-",null,null,null,null,null,null,null,null,null,null,null,null,null,null,null,null,null,null,null,null,null,null,null,null,null,null,null,null,null,null,null,null,null,null,null,null,null,null,null,"-"]
[4741,null,null,"-",null,null,null,null,null,null,null,null,null,null,null,null,null,null,null,null,null,null,null,null,null,null,null,null,null,null,null,null,null,null,null,null,null,null,null,null,null,null,null,"-"]
[4756,null,null,"-",null,null,null,null,null,null,null,null,null,null,null,null,null,null,null,null,null,null,null,null,null,null,null,null,null,null,null,null,null,null,null,null,null,null,null,null,null,null,null,"-"]
[4784,null,null,"-",null,null,null,null,null,null,null,null,null,null,null,null,null,null,null,null,null,null,null,null,null,null,null,null,null,null,null,null,null,null,null,null,null,null,null,null,null,null,null,"-"]
[4803,null,null,"-",null,null,null,null,null,null,null,null,null,null,null,null,null,null,null,null,null,null,null,null,null,null,null,null,null,null,null,null,null,null,null,null,null,null,null,null,null,null,null,"-"]
[4822,null,null,"-",null,null,null,null,null,null,null,null,null,null,null,null,null,null,null,null,null,null,null,null,null,null,null,null,null,null,null,null,null,null,null,null,null,null,null,null,null,null,null,"-"]
[4833,null,null,"-",null,null,null,null,null,null,null,null,null,null,null,null,null,null,null,null,null,null,null,null,null,null,null,null,null,null,null,null,null,null,null,null,null,null,null,null,null,null,null,"-"]
[4865,null,null,"-",null,null,null,null,null,null,null,null,null,null,null,null,null,null,null,null,null,null,null,null,null,null,null,null,null,null,null,null,null,null,null,null,null,null,null,null,null,null,null,"-"]
[4884,null,null,"-",null,null,null,null,null,null,null,null,null,null,null,null,null,null,null,null,null,null,null,null,null,null,null,null,null,null,null,null,null,null,null,null,null,null,null,null,null,null,null,"-"]
[4890,null,null,"-",null,null,null,null,null,null,null,null,null,null,null,null,null,null,null,null,null,null,null,null,null,null,null,null,null,null,null,null,null,null,null,null,null,null,null,null,null,null,null,"-"]
[4906,null,null,"-",null,null,null,null,null,null,null,null,null,null,null,null,null,null,null,null,null,null,null,null,null,null,null,null,null,null,null,null,null,null,null,null,null,null,null,null,null,null,null,{"$f":"AP4909&\"-\"&AQ4909","v":"-"}]
[4933,null,null,"-",null,null,null,null,null,null,null,null,null,null,null,null,null,null,null,null,null,null,null,null,null,null,null,null,null,null,null,null,null,null,null,null,null,null,null,null,null,null,null,"-"]
[4952,null,null,"-",null,null,null,null,null,null,null,null,null,null,null,null,null,null,null,null,null,null,null,null,null,null,null,null,null,null,null,null,null,null,null,null,null,null,null,null,null,null,null,"-"]
[4971,null,null,"-",null,null,null,null,null,null,null,null,null,null,null,null,null,null,null,null,null,null,null,null,null,null,null,null,null,null,null,null,null,null,null,null,null,null,null,null,null,null,null,"-"]
[4983,null,null,"-",null,null,null,null,null,null,null,null,null,null,null,null,null,null,null,null,null,null,null,null,null,null,null,null,null,null,null,null,null,null,null,null,null,null,null,null,null,null,null,"-"]
[5014,null,null,"-",null,null,null,null,null,null,null,null,null,null,null,null,null,null,null,null,null,null,null,null,null,null,null,null,null,null,null,null,null,null,null,null,null,null,null,null,null,null,null,"-"]
[5020,null,null,"-",null,null,null,null,null,null,null,null,null,null,null,null,null,null,null,null,null,null,null,null,null,null,null,null,null,null,null,null,null,null,null,null,null,null,null,null,null,null,null,"-"]
[5039,null,null,"-",null,null,null,null,null,null,null,null,null,null,null,null,null,null,null,null,null,null,null,null,null,null,null,null,null,null,null,null,null,null,null,null,null,null,null,null,null,null,null,"-"]
[5056,null,null,"-",null,null,null,null,null,null,null,null,null,null,null,null,null,null,null,null,null,null,null,null,null,null,null,null,null,null,null,null,null,null,null,null,null,null,null,null,null,null,null,"-"]
[5082,null,null,"-",null,null,null,null,null,null,null,null,null,null,null,null,null,null,null,null,null,null,null,null,null,null,null,null,null,null,null,null,null,null,null,null,null,null,null,null,null,null,null,"-"]
[5101,null,null,"-",null,null,null,null,null,null,null,null,null,null,null,null,null,null,null,null,null,null,null,null,null,null,null,null,null,null,null,null,null,null,null,null,null,null,null,null,null,null,null,"-"]
[5120,null,null,"-",null,null,null,null,null,null,null,null,null,null,null,null,null,null,null,null,null,null,null,null,null,null,null,null,null,null,null,null,null,null,null,null,null,null,null,null,null,null,null,"-"]
[5133,null,null,"-",null,null,null,null,null,null,null,null,null,null,null,null,null,null,null,null,null,null,null,null,null,null,null,null,null,null,null,null,null,null,null,null,null,null,null,null,null,null,null,"-"]
[5163,null,null,"-",null,null,null,null,null,null,null,null,null,null,null,null,null,null,null,null,null,null,null,null,null,null,null,null,null,null,null,null,null,null,null,null,null,null,null,null,null,null,null,"-"]
[5169,null,null,"-",null,null,null,null,null,null,null,null,null,null,null,null,null,null,null,null,null,null,null,null,null,null,null,null,null,null,null,null,null,null,null,null,null,null,null,null,null,null,null,"-"]
[5188,null,null,"-",null,null,null,null,null,null,null,null,null,null,null,null,null,null,null,null,null,null,null,null,null,null,null,null,null,null,null,null,null,null,null,null,null,null,null,null,null,null,null,"-"]
[5207,null,null,"-",null,null,null,null,null,null,null,null,null,null,null,null,null,null,null,null,null,null,null,null,null,null,null,null,null,null,null,null,null,null,null,null,null,null,null,null,null,null,null,"-"]
[5232,null,null,"-",null,null,null,null,null,null,null,null,null,null,null,null,null,null,null,null,null,null,null,null,null,null,null,null,null,null,null,null,null,null,null,null,null,null,null,null,null,null,null,"-"]
[5250,null,null,{"$f":"TRIM(B5253)&\"-\"&TRIM(C5253)","v":"-"},null,null,null,null,null,null,null,null,null,null,null,null,null,null,null,null,null,null,null,null,null,null,null,null,null,null,null,null,null,null,null,null,null,null,null,null,null,null,null,"-"]
[5275,null,null,"-",null,null,null,null,null,null,null,null,null,null,null,null,null,null,null,null,null,null,null,null,null,null,null,null,null,null,null,null,null,null,null,null,null,null,null,null,null,null,null,"-"]
[5294,null,null,"-",null,null,null,null,null,null,null,null,null,null,null,null,null,null,null,null,null,null,null,null,null,null,null,null,null,null,null,null,null,null,null,null,null,null,null,null,null,null,null,"-"]
[5305,null,null,"-",null,null,null,null,null,null,null,null,null,null,null,null,null,null,null,null,null,null,null,null,null,null,null,null,null,null,null,null,null,null,null,null,null,null,null,null,null,null,null,"-"]
[5318,null,null,"-",null,null,null,null,null,null,null,null,null,null,null,null,null,null,null,null,null,null,null,null,null,null,null,null,null,null,null,null,null,null,null,null,null,null,null,null,null,null,null,"-"]
[5337,null,null,"-",null,null,null,null,null,null,null,null,null,null,null,null,null,null,null,null,null,null,null,null,null,null,null,null,null,null,null,null,null,null,null,null,null,null,null,null,null,null,null,"-"]
[5356,null,null,"-",null,null,null,null,null,null,null,null,null,null,null,null,null,null,null,null,null,null,null,null,null,null,null,null,null,null,null,null,null,null,null,null,null,null,null,null,null,null,null,"-"]
[5382,null,null,"-",null,null,null,null,null,null,null,null,null,null,null,null,null,null,null,null,null,null,null,null,null,null,null,null,null,null,null,null,null,null,null,null,null,null,null,null,null,null,null,"-"]
[5399,null,null,"-",null,null,null,null,null,null,null,null,null,null,null,null,null,null,null,null,null,null,null,null,null,null,null,null,null,null,null,null,null,null,null,null,null,null,null,null,null,null,null,"-"]
[5424,null,null,"-",null,null,null,null,null,null,null,null,null,null,null,null,null,null,null,null,null,null,null,null,null,null,null,null,null,null,null,null,null,null,null,null,null,null,null,null,null,null,null,"-"]
[5443,null,null,"-",null,null,null,null,null,null,null,null,null,null,null,null,null,null,null,null,null,null,null,null,null,null,null,null,null,null,null,null,null,null,null,null,null,null,null,null,null,null,null,"-"]
[5455,null,null,"-",null,null,null,null,null,null,null,null,null,null,null,null,null,null,null,null,null,null,null,null,null,null,null,null,null,null,null,null,null,null,null,null,null,null,null,null,null,null,null,"-"]
[5486,null,null,"-",null,null,null,null,null,null,null,null,null,null,null,null,null,null,null,null,null,null,null,null,null,null,null,null,null,null,null,null,null,null,null,null,null,null,null,null,null,null,null,"-"]
[5505,null,null,"-",null,null,null,null,null,null,null,null,null,null,null,null,null,null,null,null,null,null,null,null,null,null,null,null,null,null,null,null,null,null,null,null,null,null,null,null,null,null,null,"-"]
[5524,null,null,"-",null,null,null,null,null,null,null,null,null,null,null,null,null,null,null,null,null,null,null,null,null,null,null,null,null,null,null,null,null,null,null,null,null,null,null,null,null,null,null,"-"]
[5532,null,null,"-",null,null,null,null,null,null,null,null,null,null,null,null,null,null,null,null,null,null,null,null,null,null,null,null,null,null,null,null,null,null,null,null,null,null,null,null,null,null,null,"-"]
[5548,null,null,"-",null,null,null,null,null,null,null,null,null,null,null,null,null,null,null,null,null,null,null,null,null,null,null,null,null,null,null,null,null,null,null,null,null,null,null,null,null,null,null,"-"]
[5573,null,null,"-",null,null,null,null,null,null,null,null,null,null,null,null,null,null,null,null,null,null,null,null,null,null,null,null,null,null,null,null,null,null,null,null,null,null,null,null,null,null,null,"-"]
[5592,null,null,"-",null,null,null,null,null,null,null,null,null,null,null,null,null,null,null,null,null,null,null,null,null,null,null,null,null,null,null,null,null,null,null,null,null,null,null,null,null,null,null,"-"]
[5605,null,null,"-",null,null,null,null,null,null,null,null,null,null,null,null,null,null,null,null,null,null,null,null,null,null,null,null,null,null,null,null,null,null,null,null,null,null,null,null,null,null,null,"-"]
[5635,null,null,"-",null,null,null,null,null,null,null,null,null,null,null,null,null,null,null,null,null,null,null,null,null,null,null,null,null,null,null,null,null,null,null,null,null,null,null,null,null,null,null,"-"]
[5654,null,null,"-",null,null,null,null,null,null,null,null,null,null,null,null,null,null,null,null,null,null,null,null,null,null,null,null,null,null,null,null,null,null,null,null,null,null,null,null,null,null,null,"-"]
[5660,null,null,"-",null,null,null,null,null,null,null,null,null,null,null,null,null,null,null,null,null,null,null,null,null,null,null,null,null,null,null,null,null,null,null,null,null,null,null,null,null,null,null,"-"]
[5682,null,null,"-",null,null,null,null,null,null,null,null,null,null,null,null,null,null,null,null,null,null,null,null,null,null,null,null,null,null,null,null,null,null,null,null,null,null,null,null,null,null,null,"-"]
[5697,null,null,"-",null,null,null,null,null,null,null,null,null,null,null,null,null,null,null,null,null,null,null,null,null,null,null,null,null,null,null,null,null,null,null,null,null,null,null,null,null,null,null,"-"]
[5722,null,null,"-",null,null,null,null,null,null,null,null,null,null,null,null,null,null,null,null,null,null,null,null,null,null,null,null,null,null,null,null,null,null,null,null,null,null,null,null,null,null,null,"-"]
[5741,null,null,"-",null,null,null,null,null,null,null,null,null,null,null,null,null,null,null,null,null,null,null,null,null,null,null,null,null,null,null,null,null,null,null,null,null,null,null,null,null,null,null,"-"]
[5755,null,null,"-",null,null,null,null,null,null,null,null,null,null,null,null,null,null,null,null,null,null,null,null,null,null,null,null,null,null,null,null,null,null,null,null,null,null,null,null,null,null,null,"-"]
[5784,null,null,"-",null,null,null,null,null,null,null,null,null,null,null,null,null,null,null,null,null,null,null,null,null,null,null,null,null,null,null,null,null,null,null,null,null,null,null,null,null,null,null,"-"]
[5803,null,null,"-",null,null,null,null,null,null,null,null,null,null,null,null,null,null,null,null,null,null,null,null,null,null,null,null,null,null,null,null,null,null,null,null,null,null,null,null,null,null,null,"-"]
[5809,null,null,"-",null,null,null,null,null,null,null,null,null,null,null,null,null,null,null,null,null,null,null,null,null,null,null,null,null,null,null,null,null,null,null,null,null,null,null,null,null,null,null,"-"]
[5828,null,null,"-",null,null,null,null,null,null,null,null,null,null,null,null,null,null,null,null,null,null,null,null,null,null,null,null,null,null,null,null,null,null,null,null,null,null,null,null,null,null,null,"-"]
[5854,null,null,"-",null,null,null,null,null,null,null,null,null,null,null,null,null,null,null,null,null,null,null,null,null,null,null,null,null,null,null,null,null,null,null,null,null,null,null,null,null,null,null,"-"]
[5871,null,null,"-",null,null,null,null,null,null,null,null,null,null,null,null,null,null,null,null,null,null,null,null,null,null,null,null,null,null,null,null,null,null,null,null,null,null,null,null,null,null,null,"-"]
[5890,null,null,{"$f":"TRIM(B5893)&\"-\"&TRIM(C5893)","v":"-"},null,null,null,null,null,null,null,null,null,null,null,null,null,null,null,null,null,null,null,null,null,null,null,null,null,null,null,null,null,null,null,null,null,null,null,null,null,null,null,"-"]
[5915,null,null,"-",null,null,null,null,null,null,null,null,null,null,null,null,null,null,null,null,null,null,null,null,null,null,null,null,null,null,null,null,null,null,null,null,null,null,null,null,null,null,null,"-"]
[5931,null,null,"-",null,null,null,null,null,null,null,null,null,null,null,null,null,null,null,null,null,null,null,null,null,null,null,null,null,null,null,null,null,null,null,null,null,null,null,null,null,null,null,"-"]
[5952,null,null,"-",null,null,null,null,null,null,null,null,null,null,null,null,null,null,null,null,null,null,null,null,null,null,null,null,null,null,null,null,null,null,null,null,null,null,null,null,null,null,null,"-"]
[5958,null,null,"-",null,null,null,null,null,null,null,null,null,null,null,null,null,null,null,null,null,null,null,null,null,null,null,null,null,null,null,null,null,null,null,null,null,null,null,null,null,null,null,"-"]
[5977,null,null,"-",null,null,null,null,null,null,null,null,null,null,null,null,null,null,null,null,null,null,null,null,null,null,null,null,null,null,null,null,null,null,null,null,null,null,null,null,null,null,null,"-"]
[6004,null,null,"-",null,null,null,null,null,null,null,null,null,null,null,null,null,null,null,null,null,null,null,null,null,null,null,null,null,null,null,null,null,null,null,null,null,null,null,null,null,null,null,"-"]
[6020,null,null,"-",null,null,null,null,null,null,null,null,null,null,null,null,null,null,null,null,null,null,null,null,null,null,null,null,null,null,null,null,null,null,null,null,null,null,null,null,null,null,null,"-"]
[6039,null,null,"-",null,null,null,null,null,null,null,null,null,null,null,null,null,null,null,null,null,null,null,null,null,null,null,null,null,null,null,null,null,null,null,null,null,null,null,null,null,null,null,"-"]
[6064,null,null,"-",null,null,null,null,null,null,null,null,null,null,null,null,null,null,null,null,null,null,null,null,null,null,null,null,null,null,null,null,null,null,null,null,null,null,null,null,null,null,null,"-"]
[6081,null,null,"-",null,null,null,null,null,null,null,null,null,null,null,null,null,null,null,null,null,null,null,null,null,null,null,null,null,null,null,null,null,null,null,null,null,null,null,null,null,null,null,"-"]
[6101,null,null,"-",null,null,null,null,null,null,null,null,null,null,null,null,null,null,null,null,null,null,null,null,null,null,null,null,null,null,null,null,null,null,null,null,null,null,null,null,null,null,null,"-"]
[6107,null,null,"-",null,null,null,null,null,null,null,null,null,null,null,null,null,null,null,null,null,null,null,null,null,null,null,null,null,null,null,null,null,null,null,null,null,null,null,null,null,null,null,"-"]
[6126,null,null,"-",null,null,null,null,null,null,null,null,null,null,null,null,null,null,null,null,null,null,null,null,null,null,null,null,null,null,null,null,null,null,null,null,null,null,null,null,null,null,null,"-"]
[6154,null,null,"-",null,null,null,null,null,null,null,null,null,null,null,null,null,null,null,null,null,null,null,null,null,null,null,null,null,null,null,null,null,null,null,null,null,null,null,null,null,null,null,"-"]
[6169,null,null,"-",null,null,null,null,null,null,null,null,null,null,null,null,null,null,null,null,null,null,null,null,null,null,null,null,null,null,null,null,null,null,null,null,null,null,null,null,null,null,null,"-"]
[6188,null,null,"-",null,null,null,null,null,null,null,null,null,null,null,null,null,null,null,null,null,null,null,null,null,null,null,null,null,null,null,null,null,null,null,null,null,null,null,null,null,null,null,"-"]
[6213,null,null,"-",null,null,null,null,null,null,null,null,null,null,null,null,null,null,null,null,null,null,null,null,null,null,null,null,null,null,null,null,null,null,null,null,null,null,null,null,null,null,null,"-"]
[6231,null,null,"-",null,null,null,null,null,null,null,null,null,null,null,null,null,null,null,null,null,null,null,null,null,null,null,null,null,null,null,null,null,null,null,null,null,null,null,null,null,null,null,"-"]
[6250,null,null,"-",null,null,null,null,null,null,null,null,null,null,null,null,null,null,null,null,null,null,null,null,null,null,null,null,null,null,null,null,null,null,null,null,null,null,null,null,null,null,null,{"$f":"AP6253&\"-\"&AQ6253","v":"-"}]
[6256,null,null,"-",null,null,null,null,null,null,null,null,null,null,null,null,null,null,null,null,null,null,null,null,null,null,null,null,null,null,null,null,null,null,null,null,null,null,null,null,null,null,null,"-"]
[6275,null,null,"-",null,null,null,null,null,null,null,null,null,null,null,null,null,null,null,null,null,null,null,null,null,null,null,null,null,null,null,null,null,null,null,null,null,null,null,null,null,null,null,"-"]
[6308,null,null,"-",null,null,null,null,null,null,null,null,null,null,null,null,null,null,null,null,null,null,null,null,null,null,null,null,null,null,null,null,null,null,null,null,null,null,null,null,null,null,null,"-"]
[6318,null,null,"-",null,null,null,null,null,null,null,null,null,null,null,null,null,null,null,null,null,null,null,null,null,null,null,null,null,null,null,null,null,null,null,null,null,null,null,null,null,null,null,"-"]
[6337,null,null,"-",null,null,null,null,null,null,null,null,null,null,null,null,null,null,null,null,null,null,null,null,null,null,null,null,null,null,null,null,null,null,null,null,null,null,null,null,null,null,null,"-"]
[6362,null,null,"-",null,null,null,null,null,null,null,null,null,null,null,null,null,null,null,null,null,null,null,null,null,null,null,null,null,null,null,null,null,null,null,null,null,null,null,null,null,null,null,"-"]
[6381,null,null,"-",null,null,null,null,null,null,null,null,null,null,null,null,null,null,null,null,null,null,null,null,null,null,null,null,null,null,null,null,null,null,null,null,null,null,null,null,null,null,null,"-"]
[6403,null,null,"-",null,null,null,null,null,null,null,null,null,null,null,null,null,null,null,null,null,null,null,null,null,null,null,null,null,null,null,null,null,null,null,null,null,null,null,null,null,null,null,"-"]
[6424,null,null,"-",null,null,null,null,null,null,null,null,null,null,null,null,null,null,null,null,null,null,null,null,null,null,null,null,null,null,null,null,null,null,null,null,null,null,null,null,null,null,null,"-"]
[6443,null,null,"-",null,null,null,null,null,null,null,null,null,null,null,null,null,null,null,null,null,null,null,null,null,null,null,null,null,null,null,null,null,null,null,null,null,null,null,null,null,null,null,"-"]
[6449,null,null,"-",null,null,null,null,null,null,null,null,null,null,null,null,null,null,null,null,null,null,null,null,null,null,null,null,null,null,null,null,null,null,null,null,null,null,null,null,null,null,null,"-"]
[6480,null,null,"-",null,null,null,null,null,null,null,null,null,null,null,null,null,null,null,null,null,null,null,null,null,null,null,null,null,null,null,null,null,null,null,null,null,null,null,null,null,null,null,"-"]
[6486,null,null,"-",null,null,null,null,null,null,null,null,null,null,null,null,null,null,null,null,null,null,null,null,null,null,null,null,null,null,null,null,null,null,null,null,null,null,null,null,null,null,null,"-"]
[6511,null,null,"-",null,null,null,null,null,null,null,null,null,null,null,null,null,null,null,null,null,null,null,null,null,null,null,null,null,null,null,null,null,null,null,null,null,null,null,null,null,null,null,"-"]
[6530,null,null,{"$f":"TRIM(B6533)&\"-\"&TRIM(C6533)","v":"-"},null,null,null,null,null,null,null,null,null,null,null,null,null,null,null,null,null,null,null,null,null,null,null,null,null,null,null,null,null,null,null,null,null,null,null,null,null,null,null,"-"]
[6553,null,null,"-",null,null,null,null,null,null,null,null,null,null,null,null,null,null,null,null,null,null,null,null,null,null,null,null,null,null,null,null,null,null,null,null,null,null,null,null,null,null,null,"-"]
[6573,null,null,"-",null,null,null,null,null,null,null,null,null,null,null,null,null,null,null,null,null,null,null,null,null,null,null,null,null,null,null,null,null,null,null,null,null,null,null,null,null,null,null,"-"]
[6592,null,null,"-",null,null,null,null,null,null,null,null,null,null,null,null,null,null,null,null,null,null,null,null,null,null,null,null,null,null,null,null,null,null,null,null,null,null,null,null,null,null,null,"-"]
[6598,null,null,"-",null,null,null,null,null,null,null,null,null,null,null,null,null,null,null,null,null,null,null,null,null,null,null,null,null,null,null,null,null,null,null,null,null,null,null,null,null,null,null,"-"]
[6630,null,null,"-",null,null,null,null,null,null,null,null,null,null,null,null,null,null,null,null,null,null,null,null,null,null,null,null,null,null,null,null,null,null,null,null,null,null,null,null,null,null,null,"-"]
[6635,null,null,"-",null,null,null,null,null,null,null,null,null,null,null,null,null,null,null,null,null,null,null,null,null,null,null,null,null,null,null,null,null,null,null,null,null,null,null,null,null,null,null,"-"]
[6660,null,null,"-",null,null,null,null,null,null,null,null,null,null,null,null,null,null,null,null,null,null,null,null,null,null,null,null,null,null,null,null,null,null,null,null,null,null,null,null,null,null,null,"-"]
[6679,null,null,"-",null,null,null,null,null,null,null,null,null,null,null,null,null,null,null,null,null,null,null,null,null,null,null,null,null,null,null,null,null,null,null,null,null,null,null,null,null,null,null,"-"]
[6689,null,null,"-",null,null,null,null,null,null,null,null,null,null,null,null,null,null,null,null,null,null,null,null,null,null,null,null,null,null,null,null,null,null,null,null,null,null,null,null,null,null,null,"-"]
[6722,null,null,{"$f":"TRIM(B6725)&\"-\"&TRIM(C6725)","v":"-"},null,null,null,null,null,null,null,null,null,null,null,null,null,null,null,null,null,null,null,null,null,null,null,null,null,null,null,null,null,null,null,null,null,null,null,null,null,null,null,"-"]
[6741,null,null,"-",null,null,null,null,null,null,null,null,null,null,null,null,null,null,null,null,null,null,null,null,null,null,null,null,null,null,null,null,null,null,null,null,null,null,null,null,null,null,null,"-"]
[6747,null,null,"-",null,null,null,null,null,null,null,null,null,null,null,null,null,null,null,null,null,null,null,null,null,null,null,null,null,null,null,null,null,null,null,null,null,null,null,null,null,null,null,"-"]
[6780,null,null,"-",null,null,null,null,null,null,null,null,null,null,null,null,null,null,null,null,null,null,null,null,null,null,null,null,null,null,null,null,null,null,null,null,null,null,null,null,null,null,null,"-"]
[6784,null,null,"-",null,null,null,null,null,null,null,null,null,null,null,null,null,null,null,null,null,null,null,null,null,null,null,null,null,null,null,null,null,null,null,null,null,null,null,null,null,null,null,"-"]
[6809,null,null,"-",null,null,null,null,null,null,null,null,null,null,null,null,null,null,null,null,null,null,null,null,null,null,null,null,null,null,null,null,null,null,null,null,null,null,null,null,null,null,null,"-"]
[6828,null,null,"-",null,null,null,null,null,null,null,null,null,null,null,null,null,null,null,null,null,null,null,null,null,null,null,null,null,null,null,null,null,null,null,null,null,null,null,null,null,null,null,"-"]
[6839,null,null,"-",null,null,null,null,null,null,null,null,null,null,null,null,null,null,null,null,null,null,null,null,null,null,null,null,null,null,null,null,null,null,null,null,null,null,null,null,null,null,null,"-"]
[6871,null,null,"-",null,null,null,null,null,null,null,null,null,null,null,null,null,null,null,null,null,null,null,null,null,null,null,null,null,null,null,null,null,null,null,null,null,null,null,null,null,null,null,"-"]
[6890,null,null,"-",null,null,null,null,null,null,null,null,null,null,null,null,null,null,null,null,null,null,null,null,null,null,null,null,null,null,null,null,null,null,null,null,null,null,null,null,null,null,null,{"$f":"AP6893&\"-\"&AQ6893","v":"-"}]
[6896,null,null,"-",null,null,null,null,null,null,null,null,null,null,null,null,null,null,null,null,null,null,null,null,null,null,null,null,null,null,null,null,null,null,null,null,null,null,null,null,null,null,null,"-"]
[6930,null,null,"-",null,null,null,null,null,null,null,null,null,null,null,null,null,null,null,null,null,null,null,null,null,null,null,null,null,null,null,null,null,null,null,null,null,null,null,null,null,null,null,"-"]
[6939,null,null,"-",null,null,null,null,null,null,null,null,null,null,null,null,null,null,null,null,null,null,null,null,null,null,null,null,null,null,null,null,null,null,null,null,null,null,null,null,null,null,null,"-"]
[6958,null,null,"-",null,null,null,null,null,null,null,null,null,null,null,null,null,null,null,null,null,null,null,null,null,null,null,null,null,null,null,null,null,null,null,null,null,null,null,null,null,null,null,"-"]
[6977,null,null,"-",null,null,null,null,null,null,null,null,null,null,null,null,null,null,null,null,null,null,null,null,null,null,null,null,null,null,null,null,null,null,null,null,null,null,null,null,null,null,null,"-"]
[7002,null,null,"-",null,null,null,null,null,null,null,null,null,null,null,null,null,null,null,null,null,null,null,null,null,null,null,null,null,null,null,null,null,null,null,null,null,null,null,null,null,null,null,"-"]
[7011,null,null,"-",null,null,null,null,null,null,null,null,null,null,null,null,null,null,null,null,null,null,null,null,null,null,null,null,null,null,null,null,null,null,null,null,null,null,null,null,null,null,null,"-"]
[7039,null,null,"-",null,null,null,null,null,null,null,null,null,null,null,null,null,null,null,null,null,null,null,null,null,null,null,null,null,null,null,null,null,null,null,null,null,null,null,null,null,null,null,"-"]
[7045,null,null,"-",null,null,null,null,null,null,null,null,null,null,null,null,null,null,null,null,null,null,null,null,null,null,null,null,null,null,null,null,null,null,null,null,null,null,null,null,null,null,null,"-"]
[7064,null,null,"-",null,null,null,null,null,null,null,null,null,null,null,null,null,null,null,null,null,null,null,null,null,null,null,null,null,null,null,null,null,null,null,null,null,null,null,null,null,null,null,"-"]
[7088,null,null,"-",null,null,null,null,null,null,null,null,null,null,null,null,null,null,null,null,null,null,null,null,null,null,null,null,null,null,null,null,null,null,null,null,null,null,null,null,null,null,null,"-"]
[7107,null,null,"-",null,null,null,null,null,null,null,null,null,null,null,null,null,null,null,null,null,null,null,null,null,null,null,null,null,null,null,null,null,null,null,null,null,null,null,null,null,null,null,"-"]
[7126,null,null,"-",null,null,null,null,null,null,null,null,null,null,null,null,null,null,null,null,null,null,null,null,null,null,null,null,null,null,null,null,null,null,null,null,null,null,null,null,null,null,null,"-"]
[7151,null,null,"-",null,null,null,null,null,null,null,null,null,null,null,null,null,null,null,null,null,null,null,null,null,null,null,null,null,null,null,null,null,null,null,null,null,null,null,null,null,null,null,"-"]
[7161,null,null,"-",null,null,null,null,null,null,null,null,null,null,null,null,null,null,null,null,null,null,null,null,null,null,null,null,null,null,null,null,null,null,null,null,null,null,null,null,null,null,null,"-"]
[7188,null,null,"-",null,null,null,null,null,null,null,null,null,null,null,null,null,null,null,null,null,null,null,null,null,null,null,null,null,null,null,null,null,null,null,null,null,null,null,null,null,null,null,"-"]
[7194,null,null,"-",null,null,null,null,null,null,null,null,null,null,null,null,null,null,null,null,null,null,null,null,null,null,null,null,null,null,null,null,null,null,null,null,null,null,null,null,null,null,null,"-"]
[7213,null,null,"-",null,null,null,null,null,null,null,null,null,null,null,null,null,null,null,null,null,null,null,null,null,null,null,null,null,null,null,null,null,null,null,null,null,null,null,null,null,null,null,"-"]
[7238,null,null,"-",null,null,null,null,null,null,null,null,null,null,null,null,null,null,null,null,null,null,null,null,null,null,null,null,null,null,null,null,null,null,null,null,null,null,null,null,null,null,null,"-"]
[7256,null,null,"-",null,null,null,null,null,null,null,null,null,null,null,null,null,null,null,null,null,null,null,null,null,null,null,null,null,null,null,null,null,null,null,null,null,null,null,null,null,null,null,"-"]
[7275,null,null,"-",null,null,null,null,null,null,null,null,null,null,null,null,null,null,null,null,null,null,null,null,null,null,null,null,null,null,null,null,null,null,null,null,null,null,null,null,null,null,null,"-"]
[7300,null,null,"-",null,null,null,null,null,null,null,null,null,null,null,null,null,null,null,null,null,null,null,null,null,null,null,null,null,null,null,null,null,null,null,null,null,null,null,null,null,null,null,"-"]
[7311,null,null,"-",null,null,null,null,null,null,null,null,null,null,null,null,null,null,null,null,null,null,null,null,null,null,null,null,null,null,null,null,null,null,null,null,null,null,null,null,null,null,null,"-"]
[7343,null,null,"-",null,null,null,null,null,null,null,null,null,null,null,null,null,null,null,null,null,null,null,null,null,null,null,null,null,null,null,null,null,null,null,null,null,null,null,null,null,null,null,"-"]
[7362,null,null,{"$f":"TRIM(B7365)&\"-\"&TRIM(C7365)","v":"-"},null,null,null,null,null,null,null,null,null,null,null,null,null,null,null,null,null,null,null,null,null,null,null,null,null,null,null,null,null,null,null,null,null,null,null,null,null,null,null,"-"]
[7381,null,null,"-",null,null,null,null,null,null,null,null,null,null,null,null,null,null,null,null,null,null,null,null,null,null,null,null,null,null,null,null,null,null,null,null,null,null,null,null,null,null,null,"-"]
[7388,null,null,"-",null,null,null,null,null,null,null,null,null,null,null,null,null,null,null,null,null,null,null,null,null,null,null,null,null,null,null,null,null,null,null,null,null,null,null,null,null,null,null,"-"]
[7405,null,null,"-",null,null,null,null,null,null,null,null,null,null,null,null,null,null,null,null,null,null,null,null,null,null,null,null,null,null,null,null,null,null,null,null,null,null,null,null,null,null,null,"-"]
[7424,null,null,"-",null,null,null,null,null,null,null,null,null,null,null,null,null,null,null,null,null,null,null,null,null,null,null,null,null,null,null,null,null,null,null,null,null,null,null,null,null,null,null,"-"]
[7449,null,null,"-",null,null,null,null,null,null,null,null,null,null,null,null,null,null,null,null,null,null,null,null,null,null,null,null,null,null,null,null,null,null,null,null,null,null,null,null,null,null,null,"-"]
[7461,null,null,"-",null,null,null,null,null,null,null,null,null,null,null,null,null,null,null,null,null,null,null,null,null,null,null,null,null,null,null,null,null,null,null,null,null,null,null,null,null,null,null,"-"]
[7492,null,null,"-",null,null,null,null,null,null,null,null,null,null,null,null,null,null,null,null,null,null,null,null,null,null,null,null,null,null,null,null,null,null,null,null,null,null,null,null,null,null,null,"-"]
[7511,null,null,"-",null,null,null,null,null,null,null,null,null,null,null,null,null,null,null,null,null,null,null,null,null,null,null,null,null,null,null,null,null,null,null,null,null,null,null,null,null,null,null,"-"]
[7530,null,null,"-",null,null,null,null,null,null,null,null,null,null,null,null,null,null,null,null,null,null,null,null,null,null,null,null,null,null,null,null,null,null,null,null,null,null,null,null,null,null,null,{"$f":"AP7533&\"-\"&AQ7533","v":"-"}]
[7536,null,null,"-",null,null,null,null,null,null,null,null,null,null,null,null,null,null,null,null,null,null,null,null,null,null,null,null,null,null,null,null,null,null,null,null,null,null,null,null,null,null,null,"-"]
[7560,null,null,"-",null,null,null,null,null,null,null,null,null,null,null,null,null,null,null,null,null,null,null,null,null,null,null,null,null,null,null,null,null,null,null,null,null,null,null,null,null,null,null,"-"]
[7579,null,null,"-",null,null,null,null,null,null,null,null,null,null,null,null,null,null,null,null,null,null,null,null,null,null,null,null,null,null,null,null,null,null,null,null,null,null,null,null,null,null,null,"-"]
[7598,null,null,"-",null,null,null,null,null,null,null,null,null,null,null,null,null,null,null,null,null,null,null,null,null,null,null,null,null,null,null,null,null,null,null,null,null,null,null,null,null,null,null,"-"]
[7617,null,null,"-",null,null,null,null,null,null,null,null,null,null,null,null,null,null,null,null,null,null,null,null,null,null,null,null,null,null,null,null,null,null,null,null,null,null,null,null,null,null,null,"-"]
[7637,null,null,"-",null,null,null,null,null,null,null,null,null,null,null,null,null,null,null,null,null,null,null,null,null,null,null,null,null,null,null,null,null,null,null,null,null,null,null,null,null,null,null,"-"]
[7660,null,null,"-",null,null,null,null,null,null,null,null,null,null,null,null,null,null,null,null,null,null,null,null,null,null,null,null,null,null,null,null,null,null,null,null,null,null,null,null,null,null,null,"-"]
[7679,null,null,"-",null,null,null,null,null,null,null,null,null,null,null,null,null,null,null,null,null,null,null,null,null,null,null,null,null,null,null,null,null,null,null,null,null,null,null,null,null,null,null,"-"]
[7685,null,null,"-",null,null,null,null,null,null,null,null,null,null,null,null,null,null,null,null,null,null,null,null,null,null,null,null,null,null,null,null,null,null,null,null,null,null,null,null,null,null,null,"-"]
[7710,null,null,"-",null,null,null,null,null,null,null,null,null,null,null,null,null,null,null,null,null,null,null,null,null,null,null,null,null,null,null,null,null,null,null,null,null,null,null,null,null,null,null,"-"]
[7728,null,null,"-",null,null,null,null,null,null,null,null,null,null,null,null,null,null,null,null,null,null,null,null,null,null,null,null,null,null,null,null,null,null,null,null,null,null,null,null,null,null,null,"-"]
[7747,null,null,"-",null,null,null,null,null,null,null,null,null,null,null,null,null,null,null,null,null,null,null,null,null,null,null,null,null,null,null,null,null,null,null,null,null,null,null,null,null,null,null,"-"]
[7766,null,null,"-",null,null,null,null,null,null,null,null,null,null,null,null,null,null,null,null,null,null,null,null,null,null,null,null,null,null,null,null,null,null,null,null,null,null,null,null,null,null,null,"-"]
[7787,null,null,"-",null,null,null,null,null,null,null,null,null,null,null,null,null,null,null,null,null,null,null,null,null,null,null,null,null,null,null,null,null,null,null,null,null,null,null,null,null,null,null,"-"]
[7809,null,null,"-",null,null,null,null,null,null,null,null,null,null,null,null,null,null,null,null,null,null,null,null,null,null,null,null,null,null,null,null,null,null,null,null,null,null,null,null,null,null,null,"-"]
[7828,null,null,"-",null,null,null,null,null,null,null,null,null,null,null,null,null,null,null,null,null,null,null,null,null,null,null,null,null,null,null,null,null,null,null,null,null,null,null,null,null,null,null,"-"]
[7834,null,null,"-",null,null,null,null,null,null,null,null,null,null,null,null,null,null,null,null,null,null,null,null,null,null,null,null,null,null,null,null,null,null,null,null,null,null,null,null,null,null,null,"-"]
[7860,null,null,"-",null,null,null,null,null,null,null,null,null,null,null,null,null,null,null,null,null,null,null,null,null,null,null,null,null,null,null,null,null,null,null,null,null,null,null,null,null,null,null,"-"]
[7877,null,null,"-",null,null,null,null,null,null,null,null,null,null,null,null,null,null,null,null,null,null,null,null,null,null,null,null,null,null,null,null,null,null,null,null,null,null,null,null,null,null,null,"-"]
[7896,null,null,"-",null,null,null,null,null,null,null,null,null,null,null,null,null,null,null,null,null,null,null,null,null,null,null,null,null,null,null,null,null,null,null,null,null,null,null,null,null,null,null,"-"]
[7915,null,null,"-",null,null,null,null,null,null,null,null,null,null,null,null,null,null,null,null,null,null,null,null,null,null,null,null,null,null,null,null,null,null,null,null,null,null,null,null,null,null,null,"-"]
[7937,null,null,"-",null,null,null,null,null,null,null,null,null,null,null,null,null,null,null,null,null,null,null,null,null,null,null,null,null,null,null,null,null,null,null,null,null,null,null,null,null,null,null,"-"]
[7958,null,null,"-",null,null,null,null,null,null,null,null,null,null,null,null,null,null,null,null,null,null,null,null,null,null,null,null,null,null,null,null,null,null,null,null,null,null,null,null,null,null,null,"-"]
[7964,null,null,"-",null,null,null,null,null,null,null,null,null,null,null,null,null,null,null,null,null,null,null,null,null,null,null,null,null,null,null,null,null,null,null,null,null,null,null,null,null,null,null,"-"]
[7983,null,null,"-",null,null,null,null,null,null,null,null,null,null,null,null,null,null,null,null,null,null,null,null,null,null,null,null,null,null,null,null,null,null,null,null,null,null,null,null,null,null,null,"-"]
[8010,null,null,"-",null,null,null,null,null,null,null,null,null,null,null,null,null,null,null,null,null,null,null,null,null,null,null,null,null,null,null,null,null,null,null,null,null,null,null,null,null,null,null,"-"]
[8026,null,null,"-",null,null,null,null,null,null,null,null,null,null,null,null,null,null,null,null,null,null,null,null,null,null,null,null,null,null,null,null,null,null,null,null,null,null,null,null,null,null,null,"-"]
[8045,null,null,"-",null,null,null,null,null,null,null,null,null,null,null,null,null,null,null,null,null,null,null,null,null,null,null,null,null,null,null,null,null,null,null,null,null,null,null,null,null,null,null,"-"]
[8064,null,null,"-",null,null,null,null,null,null,null,null,null,null,null,null,null,null,null,null,null,null,null,null,null,null,null,null,null,null,null,null,null,null,null,null,null,null,null,null,null,null,null,"-"]
[8087,null,null,"-",null,null,null,null,null,null,null,null,null,null,null,null,null,null,null,null,null,null,null,null,null,null,null,null,null,null,null,null,null,null,null,null,null,null,null,null,null,null,null,"-"]
[8107,null,null,"-",null,null,null,null,null,null,null,null,null,null,null,null,null,null,null,null,null,null,null,null,null,null,null,null,null,null,null,null,null,null,null,null,null,null,null,null,null,null,null,"-"]
[8113,null,null,"-",null,null,null,null,null,null,null,null,null,null,null,null,null,null,null,null,null,null,null,null,null,null,null,null,null,null,null,null,null,null,null,null,null,null,null,null,null,null,null,"-"]
[8132,null,null,"-",null,null,null,null,null,null,null,null,null,null,null,null,null,null,null,null,null,null,null,null,null,null,null,null,null,null,null,null,null,null,null,null,null,null,null,null,null,null,null,"-"]
[8151,null,null,"-",null,null,null,null,null,null,null,null,null,null,null,null,null,null,null,null,null,null,null,null,null,null,null,null,null,null,null,null,null,null,null,null,null,null,null,null,null,null,null,"-"]
[8186,null,null,"-",null,null,null,null,null,null,null,null,null,null,null,null,null,null,null,null,null,null,null,null,null,null,null,null,null,null,null,null,null,null,null,null,null,null,null,null,null,null,null,"-"]
[8194,null,null,{"$f":"TRIM(B8197)&\"-\"&TRIM(C8197)","v":"-"},null,null,null,null,null,null,null,null,null,null,null,null,null,null,null,null,null,null,null,null,null,null,null,null,null,null,null,null,null,null,null,null,null,null,null,null,null,null,null,"-"]
[8213,null,null,"-",null,null,null,null,null,null,null,null,null,null,null,null,null,null,null,null,null,null,null,null,null,null,null,null,null,null,null,null,null,null,null,null,null,null,null,null,null,null,null,"-"]
[8238,null,null,"-",null,null,null,null,null,null,null,null,null,null,null,null,null,null,null,null,null,null,null,null,null,null,null,null,null,null,null,null,null,null,null,null,null,null,null,null,null,null,null,"-"]
[8259,null,null,"-",null,null,null,null,null,null,null,null,null,null,null,null,null,null,null,null,null,null,null,null,null,null,null,null,null,null,null,null,null,null,null,null,null,null,null,null,null,null,null,"-"]
[8281,null,null,"-",null,null,null,null,null,null,null,null,null,null,null,null,null,null,null,null,null,null,null,null,null,null,null,null,null,null,null,null,null,null,null,null,null,null,null,null,null,null,null,"-"]
[8300,null,null,"-",null,null,null,null,null,null,null,null,null,null,null,null,null,null,null,null,null,null,null,null,null,null,null,null,null,null,null,null,null,null,null,null,null,null,null,null,null,null,null,"-"]
[8319,null,null,"-",null,null,null,null,null,null,null,null,null,null,null,null,null,null,null,null,null,null,null,null,null,null,null,null,null,null,null,null,null,null,null,null,null,null,null,null,null,null,null,"-"]
[8336,null,null,"-",null,null,null,null,null,null,null,null,null,null,null,null,null,null,null,null,null,null,null,null,null,null,null,null,null,null,null,null,null,null,null,null,null,null,null,null,null,null,null,"-"]
[8343,null,null,"-",null,null,null,null,null,null,null,null,null,null,null,null,null,null,null,null,null,null,null,null,null,null,null,null,null,null,null,null,null,null,null,null,null,null,null,null,null,null,null,"-"]
[8368,null,null,"-",null,null,null,null,null,null,null,null,null,null,null,null,null,null,null,null,null,null,null,null,null,null,null,null,null,null,null,null,null,null,null,null,null,null,null,null,null,null,null,"-"]
[8387,null,null,"-",null,null,null,null,null,null,null,null,null,null,null,null,null,null,null,null,null,null,null,null,null,null,null,null,null,null,null,null,null,null,null,null,null,null,null,null,null,null,null,"-"]
[8409,null,null,"-",null,null,null,null,null,null,null,null,null,null,null,null,null,null,null,null,null,null,null,null,null,null,null,null,null,null,null,null,null,null,null,null,null,null,null,null,null,null,null,"-"]
[8430,null,null,"-",null,null,null,null,null,null,null,null,null,null,null,null,null,null,null,null,null,null,null,null,null,null,null,null,null,null,null,null,null,null,null,null,null,null,null,null,null,null,null,"-"]
[8449,null,null,"-",null,null,null,null,null,null,null,null,null,null,null,null,null,null,null,null,null,null,null,null,null,null,null,null,null,null,null,null,null,null,null,null,null,null,null,null,null,null,null,"-"]
[8468,null,null,"-",null,null,null,null,null,null,null,null,null,null,null,null,null,null,null,null,null,null,null,null,null,null,null,null,null,null,null,null,null,null,null,null,null,null,null,null,null,null,null,"-"]
[8486,null,null,"-",null,null,null,null,null,null,null,null,null,null,null,null,null,null,null,null,null,null,null,null,null,null,null,null,null,null,null,null,null,null,null,null,null,null,null,null,null,null,null,"-"]
[8492,null,null,"-",null,null,null,null,null,null,null,null,null,null,null,null,null,null,null,null,null,null,null,null,null,null,null,null,null,null,null,null,null,null,null,null,null,null,null,null,null,null,null,"-"]
[8517,null,null,"-",null,null,null,null,null,null,null,null,null,null,null,null,null,null,null,null,null,null,null,null,null,null,null,null,null,null,null,null,null,null,null,null,null,null,null,null,null,null,null,"-"]
[8536,null,null,"-",null,null,null,null,null,null,null,null,null,null,null,null,null,null,null,null,null,null,null,null,null,null,null,null,null,null,null,null,null,null,null,null,null,null,null,null,null,null,null,"-"]
[8559,null,null,"-",null,null,null,null,null,null,null,null,null,null,null,null,null,null,null,null,null,null,null,null,null,null,null,null,null,null,null,null,null,null,null,null,null,null,null,null,null,null,null,"-"]
[8579,null,null,"-",null,null,null,null,null,null,null,null,null,null,null,null,null,null,null,null,null,null,null,null,null,null,null,null,null,null,null,null,null,null,null,null,null,null,null,null,null,null,null,"-"]
[8598,null,null,"-",null,null,null,null,null,null,null,null,null,null,null,null,null,null,null,null,null,null,null,null,null,null,null,null,null,null,null,null,null,null,null,null,null,null,null,null,null,null,null,"-"]
[8604,null,null,"-",null,null,null,null,null,null,null,null,null,null,null,null,null,null,null,null,null,null,null,null,null,null,null,null,null,null,null,null,null,null,null,null,null,null,null,null,null,null,null,"-"]
[8636,null,null,"-",null,null,null,null,null,null,null,null,null,null,null,null,null,null,null,null,null,null,null,null,null,null,null,null,null,null,null,null,null,null,null,null,null,null,null,null,null,null,null,"-"]
[8641,null,null,"-",null,null,null,null,null,null,null,null,null,null,null,null,null,null,null,null,null,null,null,null,null,null,null,null,null,null,null,null,null,null,null,null,null,null,null,null,null,null,null,"-"]
[8666,null,null,"-",null,null,null,null,null,null,null,null,null,null,null,null,null,null,null,null,null,null,null,null,null,null,null,null,null,null,null,null,null,null,null,null,null,null,null,null,null,null,null,"-"]
[8685,null,null,"-",null,null,null,null,null,null,null,null,null,null,null,null,null,null,null,null,null,null,null,null,null,null,null,null,null,null,null,null,null,null,null,null,null,null,null,null,null,null,null,"-"]
[8704,null,null,"-",null,null,null,null,null,null,null,null,null,null,null,null,null,null,null,null,null,null,null,null,null,null,null,null,null,null,null,null,null,null,null,null,null,null,null,null,null,null,null,"-"]
[8717,null,null,"-",null,null,null,null,null,null,null,null,null,null,null,null,null,null,null,null,null,null,null,null,null,null,null,null,null,null,null,null,null,null,null,null,null,null,null,null,null,null,null,"-"]
[8747,null,null,"-",null,null,null,null,null,null,null,null,null,null,null,null,null,null,null,null,null,null,null,null,null,null,null,null,null,null,null,null,null,null,null,null,null,null,null,null,null,null,null,"-"]
[8753,null,null,"-",null,null,null,null,null,null,null,null,null,null,null,null,null,null,null,null,null,null,null,null,null,null,null,null,null,null,null,null,null,null,null,null,null,null,null,null,null,null,null,"-"]
[8772,null,null,"-",null,null,null,null,null,null,null,null,null,null,null,null,null,null,null,null,null,null,null,null,null,null,null,null,null,null,null,null,null,null,null,null,null,null,null,null,null,null,null,"-"]
[8790,null,null,"-",null,null,null,null,null,null,null,null,null,null,null,null,null,null,null,null,null,null,null,null,null,null,null,null,null,null,null,null,null,null,null,null,null,null,null,null,null,null,null,"-"]
[8815,null,null,"-",null,null,null,null,null,null,null,null,null,null,null,null,null,null,null,null,null,null,null,null,null,null,null,null,null,null,null,null,null,null,null,null,null,null,null,null,null,null,null,"-"]
[8834,null,null,{"$f":"TRIM(B8837)&\"-\"&TRIM(C8837)","v":"-"},null,null,null,null,null,null,null,null,null,null,null,null,null,null,null,null,null,null,null,null,null,null,null,null,null,null,null,null,null,null,null,null,null,null,null,null,null,null,null,"-"]
[8853,null,null,"-",null,null,null,null,null,null,null,null,null,null,null,null,null,null,null,null,null,null,null,null,null,null,null,null,null,null,null,null,null,null,null,null,null,null,null,null,null,null,null,"-"]
[8867,null,null,"-",null,null,null,null,null,null,null,null,null,null,null,null,null,null,null,null,null,null,null,null,null,null,null,null,null,null,null,null,null,null,null,null,null,null,null,null,null,null,null,"-"]
[8896,null,null,"-",null,null,null,null,null,null,null,null,null,null,null,null,null,null,null,null,null,null,null,null,null,null,null,null,null,null,null,null,null,null,null,null,null,null,null,null,null,null,null,"-"]
[8902,null,null,"-",null,null,null,null,null,null,null,null,null,null,null,null,null,null,null,null,null,null,null,null,null,null,null,null,null,null,null,null,null,null,null,null,null,null,null,null,null,null,null,"-"]
[8921,null,null,"-",null,null,null,null,null,null,null,null,null,null,null,null,null,null,null,null,null,null,null,null,null,null,null,null,null,null,null,null,null,null,null,null,null,null,null,null,null,null,null,"-"]
[8940,null,null,"-",null,null,null,null,null,null,null,null,null,null,null,null,null,null,null,null,null,null,null,null,null,null,null,null,null,null,null,null,null,null,null,null,null,null,null,null,null,null,null,"-"]
[8964,null,null,"-",null,null,null,null,null,null,null,null,null,null,null,null,null,null,null,null,null,null,null,null,null,null,null,null,null,null,null,null,null,null,null,null,null,null,null,null,null,null,null,"-"]
[8983,null,null,"-",null,null,null,null,null,null,null,null,null,null,null,null,null,null,null,null,null,null,null,null,null,null,null,null,null,null,null,null,null,null,null,null,null,null,null,null,null,null,null,"-"]
[9008,null,null,"-",null,null,null,null,null,null,null,null,null,null,null,null,null,null,null,null,null,null,null,null,null,null,null,null,null,null,null,null,null,null,null,null,null,null,null,null,null,null,null,"-"]
[9017,null,null,"-",null,null,null,null,null,null,null,null,null,null,null,null,null,null,null,null,null,null,null,null,null,null,null,null,null,null,null,null,null,null,null,null,null,null,null,null,null,null,null,"-"]
[9045,null,null,"-",null,null,null,null,null,null,null,null,null,null,null,null,null,null,null,null,null,null,null,null,null,null,null,null,null,null,null,null,null,null,null,null,null,null,null,null,null,null,null,"-"]
[9051,null,null,"-",null,null,null,null,null,null,null,null,null,null,null,null,null,null,null,null,null,null,null,null,null,null,null,null,null,null,null,null,null,null,null,null,null,null,null,null,null,null,null,"-"]
[9070,null,null,"-",null,null,null,null,null,null,null,null,null,null,null,null,null,null,null,null,null,null,null,null,null,null,null,null,null,null,null,null,null,null,null,null,null,null,null,null,null,null,null,"-"]
[9090,null,null,{"$f":"TRIM(B9093)&\"-\"&TRIM(C9093)","v":"-"},null,null,null,null,null,null,null,null,null,null,null,null,null,null,null,null,null,null,null,null,null,null,null,null,null,null,null,null,null,null,null,null,null,null,null,null,null,null,null,"-"]
[9113,null,null,"-",null,null,null,null,null,null,null,null,null,null,null,null,null,null,null,null,null,null,null,null,null,null,null,null,null,null,null,null,null,null,null,null,null,null,null,null,null,null,null,"-"]
[9132,null,null,"-",null,null,null,null,null,null,null,null,null,null,null,null,null,null,null,null,null,null,null,null,null,null,null,null,null,null,null,null,null,null,null,null,null,null,null,null,null,null,null,"-"]
[9157,null,null,"-",null,null,null,null,null,null,null,null,null,null,null,null,null,null,null,null,null,null,null,null,null,null,null,null,null,null,null,null,null,null,null,null,null,null,null,null,null,null,null,"-"]
[9167,null,null,"-",null,null,null,null,null,null,null,null,null,null,null,null,null,null,null,null,null,null,null,null,null,null,null,null,null,null,null,null,null,null,null,null,null,null,null,null,null,null,null,"-"]
[9194,null,null,"-",null,null,null,null,null,null,null,null,null,null,null,null,null,null,null,null,null,null,null,null,null,null,null,null,null,null,null,null,null,null,null,null,null,null,null,null,null,null,null,{"$f":"AP9197&\"-\"&AQ9197","v":"-"}]
[9219,null,null,"-",null,null,null,null,null,null,null,null,null,null,null,null,null,null,null,null,null,null,null,null,null,null,null,null,null,null,null,null,null,null,null,null,null,null,null,null,null,null,null,"-"]
[9238,null,null,"-",null,null,null,null,null,null,null,null,null,null,null,null,null,null,null,null,null,null,null,null,null,null,null,null,null,null,null,null,null,null,null,null,null,null,null,null,null,null,null,"-"]
[9240,null,null,"-",null,null,null,null,null,null,null,null,null,null,null,null,null,null,null,null,null,null,null,null,null,null,null,null,null,null,null,null,null,null,null,null,null,null,null,null,null,null,null,"-"]
[9262,null,null,"-",null,null,null,null,null,null,null,null,null,null,null,null,null,null,null,null,null,null,null,null,null,null,null,null,null,null,null,null,null,null,null,null,null,null,null,null,null,null,null,"-"]
[9281,null,null,"-",null,null,null,null,null,null,null,null,null,null,null,null,null,null,null,null,null,null,null,null,null,null,null,null,null,null,null,null,null,null,null,null,null,null,null,null,null,null,null,"-"]
[9306,null,null,"-",null,null,null,null,null,null,null,null,null,null,null,null,null,null,null,null,null,null,null,null,null,null,null,null,null,null,null,null,null,null,null,null,null,null,null,null,null,null,null,"-"]
[9325,null,null,"-",null,null,null,null,null,null,null,null,null,null,null,null,null,null,null,null,null,null,null,null,null,null,null,null,null,null,null,null,null,null,null,null,null,null,null,null,null,null,null,"-"]
[9339,null,null,"-",null,null,null,null,null,null,null,null,null,null,null,null,null,null,null,null,null,null,null,null,null,null,null,null,null,null,null,null,null,null,null,null,null,null,null,null,null,null,null,"-"]
[9368,null,null,"-",null,null,null,null,null,null,null,null,null,null,null,null,null,null,null,null,null,null,null,null,null,null,null,null,null,null,null,null,null,null,null,null,null,null,null,null,null,null,null,"-"]
[9387,null,null,"-",null,null,null,null,null,null,null,null,null,null,null,null,null,null,null,null,null,null,null,null,null,null,null,null,null,null,null,null,null,null,null,null,null,null,null,null,null,null,null,"-"]
[9393,null,null,"-",null,null,null,null,null,null,null,null,null,null,null,null,null,null,null,null,null,null,null,null,null,null,null,null,null,null,null,null,null,null,null,null,null,null,null,null,null,null,null,"-"]
[9416,null,null,"-",null,null,null,null,null,null,null,null,null,null,null,null,null,null,null,null,null,null,null,null,null,null,null,null,null,null,null,null,null,null,null,null,null,null,null,null,null,null,null,"-"]
[9430,null,null,"-",null,null,null,null,null,null,null,null,null,null,null,null,null,null,null,null,null,null,null,null,null,null,null,null,null,null,null,null,null,null,null,null,null,null,null,null,null,null,null,"-"]
[9455,null,null,"-",null,null,null,null,null,null,null,null,null,null,null,null,null,null,null,null,null,null,null,null,null,null,null,null,null,null,null,null,null,null,null,null,null,null,null,null,null,null,null,"-"]
[9474,null,null,{"$f":"TRIM(B9477)&\"-\"&TRIM(C9477)","v":"-"},null,null,null,null,null,null,null,null,null,null,null,null,null,null,null,null,null,null,null,null,null,null,null,null,null,null,null,null,null,null,null,null,null,null,null,null,null,null,null,"-"]
[9489,null,null,"-",null,null,null,null,null,null,null,null,null,null,null,null,null,null,null,null,null,null,null,null,null,null,null,null,null,null,null,null,null,null,null,null,null,null,null,null,null,null,null,"-"]
[9517,null,null,"-",null,null,null,null,null,null,null,null,null,null,null,null,null,null,null,null,null,null,null,null,null,null,null,null,null,null,null,null,null,null,null,null,null,null,null,null,null,null,null,"-"]
[9536,null,null,"-",null,null,null,null,null,null,null,null,null,null,null,null,null,null,null,null,null,null,null,null,null,null,null,null,null,null,null,null,null,null,null,null,null,null,null,null,null,null,null,"-"]
[9542,null,null,"-",null,null,null,null,null,null,null,null,null,null,null,null,null,null,null,null,null,null,null,null,null,null,null,null,null,null,null,null,null,null,null,null,null,null,null,null,null,null,null,"-"]
[9566,null,null,"-",null,null,null,null,null,null,null,null,null,null,null,null,null,null,null,null,null,null,null,null,null,null,null,null,null,null,null,null,null,null,null,null,null,null,null,null,null,null,null,"-"]
[9579,null,null,"-",null,null,null,null,null,null,null,null,null,null,null,null,null,null,null,null,null,null,null,null,null,null,null,null,null,null,null,null,null,null,null,null,null,null,null,null,null,null,null,"-"]
[9604,null,null,"-",null,null,null,null,null,null,null,null,null,null,null,null,null,null,null,null,null,null,null,null,null,null,null,null,null,null,null,null,null,null,null,null,null,null,null,null,null,null,null,"-"]
[9623,null,null,"-",null,null,null,null,null,null,null,null,null,null,null,null,null,null,null,null,null,null,null,null,null,null,null,null,null,null,null,null,null,null,null,null,null,null,null,null,null,null,null,"-"]
[9643,null,null,"-",null,null,null,null,null,null,null,null,null,null,null,null,null,null,null,null,null,null,null,null,null,null,null,null,null,null,null,null,null,null,null,null,null,null,null,null,null,null,null,"-"]
[9666,null,null,{"$f":"TRIM(B9669)&\"-\"&TRIM(C9669)","v":"-"},null,null,null,null,null,null,null,null,null,null,null,null,null,null,null,null,null,null,null,null,null,null,null,null,null,null,null,null,null,null,null,null,null,null,null,null,null,null,null,"-"]
[9685,null,null,"-",null,null,null,null,null,null,null,null,null,null,null,null,null,null,null,null,null,null,null,null,null,null,null,null,null,null,null,null,null,null,null,null,null,null,null,null,null,null,null,"-"]
[9691,null,null,"-",null,null,null,null,null,null,null,null,null,null,null,null,null,null,null,null,null,null,null,null,null,null,null,null,null,null,null,null,null,null,null,null,null,null,null,null,null,null,null,"-"]
[9716,null,null,"-",null,null,null,null,null,null,null,null,null,null,null,null,null,null,null,null,null,null,null,null,null,null,null,null,null,null,null,null,null,null,null,null,null,null,null,null,null,null,null,"-"]
[9728,null,null,"-",null,null,null,null,null,null,null,null,null,null,null,null,null,null,null,null,null,null,null,null,null,null,null,null,null,null,null,null,null,null,null,null,null,null,null,null,null,null,null,"-"]
[9753,null,null,"-",null,null,null,null,null,null,null,null,null,null,null,null,null,null,null,null,null,null,null,null,null,null,null,null,null,null,null,null,null,null,null,null,null,null,null,null,null,null,null,"-"]
[9772,null,null,"-",null,null,null,null,null,null,null,null,null,null,null,null,null,null,null,null,null,null,null,null,null,null,null,null,null,null,null,null,null,null,null,null,null,null,null,null,null,null,null,"-"]
[9793,null,null,"-",null,null,null,null,null,null,null,null,null,null,null,null,null,null,null,null,null,null,null,null,null,null,null,null,null,null,null,null,null,null,null,null,null,null,null,null,null,null,null,"-"]
[9815,null,null,"-",null,null,null,null,null,null,null,null,null,null,null,null,null,null,null,null,null,null,null,null,null,null,null,null,null,null,null,null,null,null,null,null,null,null,null,null,null,null,null,"-"]
[9834,null,null,"-",null,null,null,null,null,null,null,null,null,null,null,null,null,null,null,null,null,null,null,null,null,null,null,null,null,null,null,null,null,null,null,null,null,null,null,null,null,null,null,{"$f":"AP9837&\"-\"&AQ9837","v":"-"}]
[9840,null,null,"-",null,null,null,null,null,null,null,null,null,null,null,null,null,null,null,null,null,null,null,null,null,null,null,null,null,null,null,null,null,null,null,null,null,null,null,null,null,null,null,"-"]
[9859,null,null,"-",null,null,null,null,null,null,null,null,null,null,null,null,null,null,null,null,null,null,null,null,null,null,null,null,null,null,null,null,null,null,null,null,null,null,null,null,null,null,null,"-"]
[9877,null,null,"-",null,null,null,null,null,null,null,null,null,null,null,null,null,null,null,null,null,null,null,null,null,null,null,null,null,null,null,null,null,null,null,null,null,null,null,null,null,null,null,"-"]
[9878,null,null,"-",null,null,null,null,null,null,null,null,null,null,null,null,null,null,null,null,null,null,null,null,null,null,null,null,null,null,null,null,null,null,null,null,null,null,null,null,null,null,null,"-"]
[9879,null,null,"-",null,null,null,null,null,null,null,null,null,null,null,null,null,null,null,null,null,null,null,null,null,null,null,null,null,null,null,null,null,null,null,null,null,null,null,null,null,null,null,"-"]
[9880,null,null,"-",null,null,null,null,null,null,null,null,null,null,null,null,null,null,null,null,null,null,null,null,null,null,null,null,null,null,null,null,null,null,null,null,null,null,null,null,null,null,null,"-"]
[9881,null,null,"-",null,null,null,null,null,null,null,null,null,null,null,null,null,null,null,null,null,null,null,null,null,null,null,null,null,null,null,null,null,null,null,null,null,null,null,null,null,null,null,"-"]
[9882,null,null,"-",null,null,null,null,null,null,null,null,null,null,null,null,null,null,null,null,null,null,null,null,null,null,null,null,null,null,null,null,null,null,null,null,null,null,null,null,null,null,null,"-"]
[9883,null,null,"-",null,null,null,null,null,null,null,null,null,null,null,null,null,null,null,null,null,null,null,null,null,null,null,null,null,null,null,null,null,null,null,null,null,null,null,null,null,null,null,"-"]
[9884,null,null,"-",null,null,null,null,null,null,null,null,null,null,null,null,null,null,null,null,null,null,null,null,null,null,null,null,null,null,null,null,null,null,null,null,null,null,null,null,null,null,null,"-"]
[9885,null,null,"-",null,null,null,null,null,null,null,null,null,null,null,null,null,null,null,null,null,null,null,null,null,null,null,null,null,null,null,null,null,null,null,null,null,null,null,null,null,null,null,"-"]
[9886,null,null,"-",null,null,null,null,null,null,null,null,null,null,null,null,null,null,null,null,null,null,null,null,null,null,null,null,null,null,null,null,null,null,null,null,null,null,null,null,null,null,null,"-"]
[9887,null,null,"-",null,null,null,null,null,null,null,null,null,null,null,null,null,null,null,null,null,null,null,null,null,null,null,null,null,null,null,null,null,null,null,null,null,null,null,null,null,null,null,"-"]
[9888,null,null,"-",null,null,null,null,null,null,null,null,null,null,null,null,null,null,null,null,null,null,null,null,null,null,null,null,null,null,null,null,null,null,null,null,null,null,null,null,null,null,null,"-"]
[9889,null,null,"-",null,null,null,null,null,null,null,null,null,null,null,null,null,null,null,null,null,null,null,null,null,null,null,null,null,null,null,null,null,null,null,null,null,null,null,null,null,null,null,"-"]
[9890,null,null,"-",null,null,null,null,null,null,null,null,null,null,null,null,null,null,null,null,null,null,null,null,null,null,null,null,null,null,null,null,null,null,null,null,null,null,null,null,null,null,null,"-"]
[9891,null,null,"-",null,null,null,null,null,null,null,null,null,null,null,null,null,null,null,null,null,null,null,null,null,null,null,null,null,null,null,null,null,null,null,null,null,null,null,null,null,null,null,"-"]
[9892,null,null,"-",null,null,null,null,null,null,null,null,null,null,null,null,null,null,null,null,null,null,null,null,null,null,null,null,null,null,null,null,null,null,null,null,null,null,null,null,null,null,null,"-"]
[9893,null,null,"-",null,null,null,null,null,null,null,null,null,null,null,null,null,null,null,null,null,null,null,null,null,null,null,null,null,null,null,null,null,null,null,null,null,null,null,null,null,null,null,"-"]
[9894,null,null,"-",null,null,null,null,null,null,null,null,null,null,null,null,null,null,null,null,null,null,null,null,null,null,null,null,null,null,null,null,null,null,null,null,null,null,null,null,null,null,null,"-"]
[9895,null,null,"-",null,null,null,null,null,null,null,null,null,null,null,null,null,null,null,null,null,null,null,null,null,null,null,null,null,null,null,null,null,null,null,null,null,null,null,null,null,null,null,"-"]
[9896,null,null,"-",null,null,null,null,null,null,null,null,null,null,null,null,null,null,null,null,null,null,null,null,null,null,null,null,null,null,null,null,null,null,null,null,null,null,null,null,null,null,null,"-"]
[9897,null,null,"-",null,null,null,null,null,null,null,null,null,null,null,null,null,null,null,null,null,null,null,null,null,null,null,null,null,null,null,null,null,null,null,null,null,null,null,null,null,null,null,"-"]
[9898,null,null,"-",null,null,null,null,null,null,null,null,null,null,null,null,null,null,null,null,null,null,null,null,null,null,null,null,null,null,null,null,null,null,null,null,null,null,null,null,null,null,null,{"$f":"AP9901&\"-\"&AQ9901","v":"-"}]
[9899,null,null,"-",null,null,null,null,null,null,null,null,null,null,null,null,null,null,null,null,null,null,null,null,null,null,null,null,null,null,null,null,null,null,null,null,null,null,null,null,null,null,null,"-"]
[9900,null,null,"-",null,null,null,null,null,null,null,null,null,null,null,null,null,null,null,null,null,null,null,null,null,null,null,null,null,null,null,null,null,null,null,null,null,null,null,null,null,null,null,"-"]
[9901,null,null,"-",null,null,null,null,null,null,null,null,null,null,null,null,null,null,null,null,null,null,null,null,null,null,null,null,null,null,null,null,null,null,null,null,null,null,null,null,null,null,null,"-"]
[9902,null,null,"-",null,null,null,null,null,null,null,null,null,null,null,null,null,null,null,null,null,null,null,null,null,null,null,null,null,null,null,null,null,null,null,null,null,null,null,null,null,null,null,"-"]
[9903,null,null,"-",null,null,null,null,null,null,null,null,null,null,null,null,null,null,null,null,null,null,null,null,null,null,null,null,null,null,null,null,null,null,null,null,null,null,null,null,null,null,null,"-"]
[9904,null,null,"-",null,null,null,null,null,null,null,null,null,null,null,null,null,null,null,null,null,null,null,null,null,null,null,null,null,null,null,null,null,null,null,null,null,null,null,null,null,null,null,"-"]
[9905,null,null,"-",null,null,null,null,null,null,null,null,null,null,null,null,null,null,null,null,null,null,null,null,null,null,null,null,null,null,null,null,null,null,null,null,null,null,null,null,null,null,null,"-"]
[9906,null,null,"-",null,null,null,null,null,null,null,null,null,null,null,null,null,null,null,null,null,null,null,null,null,null,null,null,null,null,null,null,null,null,null,null,null,null,null,null,null,null,null,"-"]
[9907,null,null,"-",null,null,null,null,null,null,null,null,null,null,null,null,null,null,null,null,null,null,null,null,null,null,null,null,null,null,null,null,null,null,null,null,null,null,null,null,null,null,null,"-"]
[9908,null,null,"-",null,null,null,null,null,null,null,null,null,null,null,null,null,null,null,null,null,null,null,null,null,null,null,null,null,null,null,null,null,null,null,null,null,null,null,null,null,null,null,"-"]
[9909,null,null,"-",null,null,null,null,null,null,null,null,null,null,null,null,null,null,null,null,null,null,null,null,null,null,null,null,null,null,null,null,null,null,null,null,null,null,null,null,null,null,null,"-"]
[9910,null,null,"-",null,null,null,null,null,null,null,null,null,null,null,null,null,null,null,null,null,null,null,null,null,null,null,null,null,null,null,null,null,null,null,null,null,null,null,null,null,null,null,"-"]
[9911,null,null,"-",null,null,null,null,null,null,null,null,null,null,null,null,null,null,null,null,null,null,null,null,null,null,null,null,null,null,null,null,null,null,null,null,null,null,null,null,null,null,null,"-"]
[9912,null,null,"-",null,null,null,null,null,null,null,null,null,null,null,null,null,null,null,null,null,null,null,null,null,null,null,null,null,null,null,null,null,null,null,null,null,null,null,null,null,null,null,"-"]
[9913,null,null,"-",null,null,null,null,null,null,null,null,null,null,null,null,null,null,null,null,null,null,null,null,null,null,null,null,null,null,null,null,null,null,null,null,null,null,null,null,null,null,null,"-"]
[9914,null,null,"-",null,null,null,null,null,null,null,null,null,null,null,null,null,null,null,null,null,null,null,null,null,null,null,null,null,null,null,null,null,null,null,null,null,null,null,null,null,null,null,"-"]
[9915,null,null,"-",null,null,null,null,null,null,null,null,null,null,null,null,null,null,null,null,null,null,null,null,null,null,null,null,null,null,null,null,null,null,null,null,null,null,null,null,null,null,null,"-"]
[9916,null,null,"-",null,null,null,null,null,null,null,null,null,null,null,null,null,null,null,null,null,null,null,null,null,null,null,null,null,null,null,null,null,null,null,null,null,null,null,null,null,null,null,"-"]
[9917,null,null,"-",null,null,null,null,null,null,null,null,null,null,null,null,null,null,null,null,null,null,null,null,null,null,null,null,null,null,null,null,null,null,null,null,null,null,null,null,null,null,null,"-"]
[9918,null,null,"-",null,null,null,null,null,null,null,null,null,null,null,null,null,null,null,null,null,null,null,null,null,null,null,null,null,null,null,null,null,null,null,null,null,null,null,null,null,null,null,"-"]
[9919,null,null,"-",null,null,null,null,null,null,null,null,null,null,null,null,null,null,null,null,null,null,null,null,null,null,null,null,null,null,null,null,null,null,null,null,null,null,null,null,null,null,null,"-"]
[9920,null,null,"-",null,null,null,null,null,null,null,null,null,null,null,null,null,null,null,null,null,null,null,null,null,null,null,null,null,null,null,null,null,null,null,null,null,null,null,null,null,null,null,"-"]
[9921,null,null,"-",null,null,null,null,null,null,null,null,null,null,null,null,null,null,null,null,null,null,null,null,null,null,null,null,null,null,null,null,null,null,null,null,null,null,null,null,null,null,null,"-"]
[9922,null,null,{"$f":"TRIM(B9925)&\"-\"&TRIM(C9925)","v":"-"},null,null,null,null,null,null,null,null,null,null,null,null,null,null,null,null,null,null,null,null,null,null,null,null,null,null,null,null,null,null,null,null,null,null,null,null,null,null,null,"-"]
[9923,null,null,"-",null,null,null,null,null,null,null,null,null,null,null,null,null,null,null,null,null,null,null,null,null,null,null,null,null,null,null,null,null,null,null,null,null,null,null,null,null,null,null,"-"]
[9924,null,null,"-",null,null,null,null,null,null,null,null,null,null,null,null,null,null,null,null,null,null,null,null,null,null,null,null,null,null,null,null,null,null,null,null,null,null,null,null,null,null,null,"-"]
[9925,null,null,"-",null,null,null,null,null,null,null,null,null,null,null,null,null,null,null,null,null,null,null,null,null,null,null,null,null,null,null,null,null,null,null,null,null,null,null,null,null,null,null,"-"]
[9926,null,null,"-",null,null,null,null,null,null,null,null,null,null,null,null,null,null,null,null,null,null,null,null,null,null,null,null,null,null,null,null,null,null,null,null,null,null,null,null,null,null,null,"-"]
[9927,null,null,"-",null,null,null,null,null,null,null,null,null,null,null,null,null,null,null,null,null,null,null,null,null,null,null,null,null,null,null,null,null,null,null,null,null,null,null,null,null,null,null,"-"]
[9928,null,null,"-",null,null,null,null,null,null,null,null,null,null,null,null,null,null,null,null,null,null,null,null,null,null,null,null,null,null,null,null,null,null,null,null,null,null,null,null,null,null,null,"-"]
[9929,null,null,"-",null,null,null,null,null,null,null,null,null,null,null,null,null,null,null,null,null,null,null,null,null,null,null,null,null,null,null,null,null,null,null,null,null,null,null,null,null,null,null,"-"]
[9930,null,null,"-",null,null,null,null,null,null,null,null,null,null,null,null,null,null,null,null,null,null,null,null,null,null,null,null,null,null,null,null,null,null,null,null,null,null,null,null,null,null,null,"-"]
[9931,null,null,"-",null,null,null,null,null,null,null,null,null,null,null,null,null,null,null,null,null,null,null,null,null,null,null,null,null,null,null,null,null,null,null,null,null,null,null,null,null,null,null,"-"]
[9932,null,null,"-",null,null,null,null,null,null,null,null,null,null,null,null,null,null,null,null,null,null,null,null,null,null,null,null,null,null,null,null,null,null,null,null,null,null,null,null,null,null,null,"-"]
[9933,null,null,"-",null,null,null,null,null,null,null,null,null,null,null,null,null,null,null,null,null,null,null,null,null,null,null,null,null,null,null,null,null,null,null,null,null,null,null,null,null,null,null,"-"]
[9934,null,null,"-",null,null,null,null,null,null,null,null,null,null,null,null,null,null,null,null,null,null,null,null,null,null,null,null,null,null,null,null,null,null,null,null,null,null,null,null,null,null,null,"-"]
[9935,null,null,"-",null,null,null,null,null,null,null,null,null,null,null,null,null,null,null,null,null,null,null,null,null,null,null,null,null,null,null,null,null,null,null,null,null,null,null,null,null,null,null,"-"]
[9936,null,null,"-",null,null,null,null,null,null,null,null,null,null,null,null,null,null,null,null,null,null,null,null,null,null,null,null,null,null,null,null,null,null,null,null,null,null,null,null,null,null,null,"-"]
[9937,null,null,"-",null,null,null,null,null,null,null,null,null,null,null,null,null,null,null,null,null,null,null,null,null,null,null,null,null,null,null,null,null,null,null,null,null,null,null,null,null,null,null,"-"]
[9938,null,null,"-",null,null,null,null,null,null,null,null,null,null,null,null,null,null,null,null,null,null,null,null,null,null,null,null,null,null,null,null,null,null,null,null,null,null,null,null,null,null,null,"-"]
[9939,null,null,"-",null,null,null,null,null,null,null,null,null,null,null,null,null,null,null,null,null,null,null,null,null,null,null,null,null,null,null,null,null,null,null,null,null,null,null,null,null,null,null,"-"]
[9940,null,null,"-",null,null,null,null,null,null,null,null,null,null,null,null,null,null,null,null,null,null,null,null,null,null,null,null,null,null,null,null,null,null,null,null,null,null,null,null,null,null,null,"-"]
[9941,null,null,"-",null,null,null,null,null,null,null,null,null,null,null,null,null,null,null,null,null,null,null,null,null,null,null,null,null,null,null,null,null,null,null,null,null,null,null,null,null,null,null,"-"]
[9942,null,null,"-",null,null,null,null,null,null,null,null,null,null,null,null,null,null,null,null,null,null,null,null,null,null,null,null,null,null,null,null,null,null,null,null,null,null,null,null,null,null,null,"-"]
[9943,null,null,"-",null,null,null,null,null,null,null,null,null,null,null,null,null,null,null,null,null,null,null,null,null,null,null,null,null,null,null,null,null,null,null,null,null,null,null,null,null,null,null,"-"]
[9944,null,null,"-",null,null,null,null,null,null,null,null,null,null,null,null,null,null,null,null,null,null,null,null,null,null,null,null,null,null,null,null,null,null,null,null,null,null,null,null,null,null,null,"-"]
[9945,null,null,"-",null,null,null,null,null,null,null,null,null,null,null,null,null,null,null,null,null,null,null,null,null,null,null,null,null,null,null,null,null,null,null,null,null,null,null,null,null,null,null,"-"]
[9946,null,null,"-",null,null,null,null,null,null,null,null,null,null,null,null,null,null,null,null,null,null,null,null,null,null,null,null,null,null,null,null,null,null,null,null,null,null,null,null,null,null,null,"-"]
[9947,null,null,"-",null,null,null,null,null,null,null,null,null,null,null,null,null,null,null,null,null,null,null,null,null,null,null,null,null,null,null,null,null,null,null,null,null,null,null,null,null,null,null,"-"]
[9948,null,null,"-",null,null,null,null,null,null,null,null,null,null,null,null,null,null,null,null,null,null,null,null,null,null,null,null,null,null,null,null,null,null,null,null,null,null,null,null,null,null,null,"-"]
[9949,null,null,"-",null,null,null,null,null,null,null,null,null,null,null,null,null,null,null,null,null,null,null,null,null,null,null,null,null,null,null,null,null,null,null,null,null,null,null,null,null,null,null,"-"]
[9950,null,null,"-",null,null,null,null,null,null,null,null,null,null,null,null,null,null,null,null,null,null,null,null,null,null,null,null,null,null,null,null,null,null,null,null,null,null,null,null,null,null,null,"-"]
[9951,null,null,"-",null,null,null,null,null,null,null,null,null,null,null,null,null,null,null,null,null,null,null,null,null,null,null,null,null,null,null,null,null,null,null,null,null,null,null,null,null,null,null,"-"]
[9952,null,null,"-",null,null,null,null,null,null,null,null,null,null,null,null,null,null,null,null,null,null,null,null,null,null,null,null,null,null,null,null,null,null,null,null,null,null,null,null,null,null,null,"-"]
[9953,null,null,"-",null,null,null,null,null,null,null,null,null,null,null,null,null,null,null,null,null,null,null,null,null,null,null,null,null,null,null,null,null,null,null,null,null,null,null,null,null,null,null,"-"]
[9954,null,null,"-",null,null,null,null,null,null,null,null,null,null,null,null,null,null,null,null,null,null,null,null,null,null,null,null,null,null,null,null,null,null,null,null,null,null,null,null,null,null,null,"-"]
[9955,null,null,"-",null,null,null,null,null,null,null,null,null,null,null,null,null,null,null,null,null,null,null,null,null,null,null,null,null,null,null,null,null,null,null,null,null,null,null,null,null,null,null,"-"]
[9956,null,null,"-",null,null,null,null,null,null,null,null,null,null,null,null,null,null,null,null,null,null,null,null,null,null,null,null,null,null,null,null,null,null,null,null,null,null,null,null,null,null,null,"-"]
[9957,null,null,"-",null,null,null,null,null,null,null,null,null,null,null,null,null,null,null,null,null,null,null,null,null,null,null,null,null,null,null,null,null,null,null,null,null,null,null,null,null,null,null,"-"]
[9958,null,null,"-",null,null,null,null,null,null,null,null,null,null,null,null,null,null,null,null,null,null,null,null,null,null,null,null,null,null,null,null,null,null,null,null,null,null,null,null,null,null,null,"-"]
[9959,null,null,"-",null,null,null,null,null,null,null,null,null,null,null,null,null,null,null,null,null,null,null,null,null,null,null,null,null,null,null,null,null,null,null,null,null,null,null,null,null,null,null,"-"]
[9960,null,null,"-",null,null,null,null,null,null,null,null,null,null,null,null,null,null,null,null,null,null,null,null,null,null,null,null,null,null,null,null,null,null,null,null,null,null,null,null,null,null,null,"-"]
[9961,null,null,"-",null,null,null,null,null,null,null,null,null,null,null,null,null,null,null,null,null,null,null,null,null,null,null,null,null,null,null,null,null,null,null,null,null,null,null,null,null,null,null,"-"]
[9962,null,null,"-",null,null,null,null,null,null,null,null,null,null,null,null,null,null,null,null,null,null,null,null,null,null,null,null,null,null,null,null,null,null,null,null,null,null,null,null,null,null,null,{"$f":"AP9965&\"-\"&AQ9965","v":"-"}]
[9963,null,null,"-",null,null,null,null,null,null,null,null,null,null,null,null,null,null,null,null,null,null,null,null,null,null,null,null,null,null,null,null,null,null,null,null,null,null,null,null,null,null,null,"-"]
[9964,null,null,"-",null,null,null,null,null,null,null,null,null,null,null,null,null,null,null,null,null,null,null,null,null,null,null,null,null,null,null,null,null,null,null,null,null,null,null,null,null,null,null,"-"]
[9965,null,null,"-",null,null,null,null,null,null,null,null,null,null,null,null,null,null,null,null,null,null,null,null,null,null,null,null,null,null,null,null,null,null,null,null,null,null,null,null,null,null,null,"-"]
[9966,null,null,"-",null,null,null,null,null,null,null,null,null,null,null,null,null,null,null,null,null,null,null,null,null,null,null,null,null,null,null,null,null,null,null,null,null,null,null,null,null,null,null,"-"]
[9967,null,null,"-",null,null,null,null,null,null,null,null,null,null,null,null,null,null,null,null,null,null,null,null,null,null,null,null,null,null,null,null,null,null,null,null,null,null,null,null,null,null,null,"-"]
[9968,null,null,"-",null,null,null,null,null,null,null,null,null,null,null,null,null,null,null,null,null,null,null,null,null,null,null,null,null,null,null,null,null,null,null,null,null,null,null,null,null,null,null,"-"]
[9969,null,null,"-",null,null,null,null,null,null,null,null,null,null,null,null,null,null,null,null,null,null,null,null,null,null,null,null,null,null,null,null,null,null,null,null,null,null,null,null,null,null,null,"-"]
[9970,null,null,"-",null,null,null,null,null,null,null,null,null,null,null,null,null,null,null,null,null,null,null,null,null,null,null,null,null,null,null,null,null,null,null,null,null,null,null,null,null,null,null,"-"]
[9971,null,null,"-",null,null,null,null,null,null,null,null,null,null,null,null,null,null,null,null,null,null,null,null,null,null,null,null,null,null,null,null,null,null,null,null,null,null,null,null,null,null,null,"-"]
[9972,null,null,"-",null,null,null,null,null,null,null,null,null,null,null,null,null,null,null,null,null,null,null,null,null,null,null,null,null,null,null,null,null,null,null,null,null,null,null,null,null,null,null,"-"]
[9973,null,null,"-",null,null,null,null,null,null,null,null,null,null,null,null,null,null,null,null,null,null,null,null,null,null,null,null,null,null,null,null,null,null,null,null,null,null,null,null,null,null,null,"-"]
[9974,null,null,"-",null,null,null,null,null,null,null,null,null,null,null,null,null,null,null,null,null,null,null,null,null,null,null,null,null,null,null,null,null,null,null,null,null,null,null,null,null,null,null,"-"]
[9975,null,null,"-",null,null,null,null,null,null,null,null,null,null,null,null,null,null,null,null,null,null,null,null,null,null,null,null,null,null,null,null,null,null,null,null,null,null,null,null,null,null,null,"-"]
[9976,null,null,"-",null,null,null,null,null,null,null,null,null,null,null,null,null,null,null,null,null,null,null,null,null,null,null,null,null,null,null,null,null,null,null,null,null,null,null,null,null,null,null,"-"]
[9977,null,null,"-",null,null,null,null,null,null,null,null,null,null,null,null,null,null,null,null,null,null,null,null,null,null,null,null,null,null,null,null,null,null,null,null,null,null,null,null,null,null,null,"-"]
[9978,null,null,"-",null,null,null,null,null,null,null,null,null,null,null,null,null,null,null,null,null,null,null,null,null,null,null,null,null,null,null,null,null,null,null,null,null,null,null,null,null,null,null,"-"]
[9979,null,null,"-",null,null,null,null,null,null,null,null,null,null,null,null,null,null,null,null,null,null,null,null,null,null,null,null,null,null,null,null,null,null,null,null,null,null,null,null,null,null,null,"-"]
[9980,null,null,"-",null,null,null,null,null,null,null,null,null,null,null,null,null,null,null,null,null,null,null,null,null,null,null,null,null,null,null,null,null,null,null,null,null,null,null,null,null,null,null,"-"]
[9981,null,null,"-",null,null,null,null,null,null,null,null,null,null,null,null,null,null,null,null,null,null,null,null,null,null,null,null,null,null,null,null,null,null,null,null,null,null,null,null,null,null,null,"-"]
[9982,null,null,"-",null,null,null,null,null,null,null,null,null,null,null,null,null,null,null,null,null,null,null,null,null,null,null,null,null,null,null,null,null,null,null,null,null,null,null,null,null,null,null,"-"]
[9983,null,null,"-",null,null,null,null,null,null,null,null,null,null,null,null,null,null,null,null,null,null,null,null,null,null,null,null,null,null,null,null,null,null,null,null,null,null,null,null,null,null,null,"-"]
[9984,null,null,"-",null,null,null,null,null,null,null,null,null,null,null,null,null,null,null,null,null,null,null,null,null,null,null,null,null,null,null,null,null,null,null,null,null,null,null,null,null,null,null,"-"]
[9985,null,null,"-",null,null,null,null,null,null,null,null,null,null,null,null,null,null,null,null,null,null,null,null,null,null,null,null,null,null,null,null,null,null,null,null,null,null,null,null,null,null,null,"-"]
[9986,null,null,{"$f":"TRIM(B9989)&\"-\"&TRIM(C9989)","v":"-"},null,null,null,null,null,null,null,null,null,null,null,null,null,null,null,null,null,null,null,null,null,null,null,null,null,null,null,null,null,null,null,null,null,null,null,null,null,null,null,"-"]
[9987,null,null,"-",null,null,null,null,null,null,null,null,null,null,null,null,null,null,null,null,null,null,null,null,null,null,null,null,null,null,null,null,null,null,null,null,null,null,null,null,null,null,null,"-"]
[9988,null,null,"-",null,null,null,null,null,null,null,null,null,null,null,null,null,null,null,null,null,null,null,null,null,null,null,null,null,null,null,null,null,null,null,null,null,null,null,null,null,null,null,"-"]
[9989,null,null,"-",null,null,null,null,null,null,null,null,null,null,null,null,null,null,null,null,null,null,null,null,null,null,null,null,null,null,null,null,null,null,null,null,null,null,null,null,null,null,null,"-"]
[9990,null,null,"-",null,null,null,null,null,null,null,null,null,null,null,null,null,null,null,null,null,null,null,null,null,null,null,null,null,null,null,null,null,null,null,null,null,null,null,null,null,null,null,"-"]
[9991,null,null,"-",null,null,null,null,null,null,null,null,null,null,null,null,null,null,null,null,null,null,null,null,null,null,null,null,null,null,null,null,null,null,null,null,null,null,null,null,null,null,null,"-"]
[9992,null,null,"-",null,null,null,null,null,null,null,null,null,null,null,null,null,null,null,null,null,null,null,null,null,null,null,null,null,null,null,null,null,null,null,null,null,null,null,null,null,null,null,"-"]
[9993,null,null,"-",null,null,null,null,null,null,null,null,null,null,null,null,null,null,null,null,null,null,null,null,null,null,null,null,null,null,null,null,null,null,null,null,null,null,null,null,null,null,null,"-"]
[9994,null,null,"-",null,null,null,null,null,null,null,null,null,null,null,null,null,null,null,null,null,null,null,null,null,null,null,null,null,null,null,null,null,null,null,null,null,null,null,null,null,null,null,"-"]
[9995,null,null,"-",null,null,null,null,null,null,null,null,null,null,null,null,null,null,null,null,null,null,null,null,null,null,null,null,null,null,null,null,null,null,null,null,null,null,null,null,null,null,null,"-"]
[9996,null,null,"-",null,null,null,null,null,null,null,null,null,null,null,null,null,null,null,null,null,null,null,null,null,null,null,null,null,null,null,null,null,null,null,null,null,null,null,null,null,null,null,"-"]
[9997,null,null,"-",null,null,null,null,null,null,null,null,null,null,null,null,null,null,null,null,null,null,null,null,null,null,null,null,null,null,null,null,null,null,null,null,null,null,null,null,null,null,null,"-"]
[9998,null,null,"-",null,null,null,null,null,null,null,null,null,null,null,null,null,null,null,null,null,null,null,null,null,null,null,null,null,null,null,null,null,null,null,null,null,null,null,null,null,null,null,"-"]
[9999,null,null,"-",null,null,null,null,null,null,null,null,null,null,null,null,null,null,null,null,null,null,null,null,null,null,null,null,null,null,null,null,null,null,null,null,null,null,null,null,null,null,null,"-"]
[10000,null,null,"-",null,null,null,null,null,null,null,null,null,null,null,null,null,null,null,null,null,null,null,null,null,null,null,null,null,null,null,null,null,null,null,null,null,null,null,null,null,null,null,"-"]
[10001,null,null,"-",null,null,null,null,null,null,null,null,null,null,null,null,null,null,null,null,null,null,null,null,null,null,null,null,null,null,null,null,null,null,null,null,null,null,null,null,null,null,null,"-"]